Service Area,Service Division,Expense Type,Expense Code,Detailed Expense Type,Payment Date,Transaction Number,Amount Exc Vat,Supplier Name
Adults Wellbeing and Health,AWH Redundant Cost Centres,Employees,040149,"Recruitment, Instruction and Training",13-Jun-2013,2605477-106776,675.00,VIRTUAL COLLEGE LTD.
Adults Wellbeing and Health,AWH Redundant Cost Centres,Supplies and Services,338026,Services,11-Jun-2013,2604286-3004/2013,948.13,ANNE HUTSON.
Adults Wellbeing and Health,AWH Redundant Cost Centres,Supplies and Services,338091,Services,13-Jun-2013,2605029-10009629,570.00,DURHAM & DARLINGTON FIRE & RESCUE.
Adults Wellbeing and Health,AWH Redundant Cost Centres,Supplies and Services,338091,Services,13-Jun-2013,2605236-IEVANS,855.00,MR IVOR EVANS.
Adults Wellbeing and Health,AWH Redundant Cost Centres,Supplies and Services,338091,Services,13-Jun-2013,2605470-10177314-003,"1,000.00",UNIVERSITY OF TEESSIDE.
Adults Wellbeing and Health,AWH Redundant Cost Centres,Third Party Payments,479111,Purchase of Care,05-Jun-2013,2602145-3140170,"29,523.00",CO DURHAM & DARLINGTON NHS FOUNDATION TRUST.
Adults Wellbeing and Health,Central Charges,Supplies and Services,304421,Equipment and Materials,06-Jun-2013,2602570-1601953657,855.05,XEROX (UK) LTD.
Adults Wellbeing and Health,Commissioning inc Supporting People,Supplies and Services,312009,"Newspapers, Books and Periodicals",28-Jun-2013,2612358-3917374,749.75,ASKEWS & HOLTS LIBRARY SERVICES LTD.
Adults Wellbeing and Health,Commissioning inc Supporting People,Third Party Payments,479101,Purchase of Care,04-Jun-2013,2601387-650040909,"3,712.00",BRITISH RED CROSS SOCIETY.
Adults Wellbeing and Health,Commissioning inc Supporting People,Third Party Payments,479111,Purchase of Care,04-Jun-2013,2601410-1854,"3,112.30",CARERS FEDERATION LTD.
Adults Wellbeing and Health,Commissioning inc Supporting People,Third Party Payments,473111,Purchase of Care,04-Jun-2013,2601777-MIND0014,"6,187.95",NEWTON AYCLIFFE MIND.
Adults Wellbeing and Health,Commissioning inc Supporting People,Third Party Payments,479111,Purchase of Care,04-Jun-2013,2602013-LD23-1/4-30/6/13,"6,086.40",THE BEFRIENDER SCHEME.
Adults Wellbeing and Health,Commissioning inc Supporting People,Third Party Payments,479111,Purchase of Care,06-Jun-2013,2602516-1525,"9,079.75",SKILLS FOR PEOPLE.
Adults Wellbeing and Health,Commissioning inc Supporting People,Third Party Payments,479111,Purchase of Care,11-Jun-2013,2604569-SITRH/0005401,"10,275.11",THREE RIVERS HOUSING ASSOCIATION LTD.
Adults Wellbeing and Health,Commissioning inc Supporting People,Third Party Payments,442002,Supporting People,12-Jun-2013,2604615-1950836,"19,676.48",BID SERVICES WITH DEAF PEOPLE.
Adults Wellbeing and Health,Commissioning inc Supporting People,Third Party Payments,443001,Supporting People,12-Jun-2013,2604642-1950485,"1,200.00",COMMUNITY INTEGRATED CARE LTD.
Adults Wellbeing and Health,Commissioning inc Supporting People,Third Party Payments,443001,Supporting People,12-Jun-2013,2604642-1950488,"1,600.00",COMMUNITY INTEGRATED CARE LTD.
Adults Wellbeing and Health,Commissioning inc Supporting People,Third Party Payments,443001,Supporting People,12-Jun-2013,2604642-1950518,"2,800.00",COMMUNITY INTEGRATED CARE LTD.
Adults Wellbeing and Health,Commissioning inc Supporting People,Third Party Payments,443001,Supporting People,12-Jun-2013,2604642-1950522,"3,200.00",COMMUNITY INTEGRATED CARE LTD.
Adults Wellbeing and Health,Commissioning inc Supporting People,Third Party Payments,442002,Supporting People,12-Jun-2013,2604649-1950980,"18,783.36",CREATIVE SUPPORT LTD.
Adults Wellbeing and Health,Commissioning inc Supporting People,Third Party Payments,443001,Supporting People,12-Jun-2013,2604655-1950825,"4,456.80",DEACONSTAR LTD.
Adults Wellbeing and Health,Commissioning inc Supporting People,Third Party Payments,442002,Supporting People,12-Jun-2013,2604657-1950886,"2,439.44",DERWENTSIDE DOMESTIC ABUSE SERVICE.
Adults Wellbeing and Health,Commissioning inc Supporting People,Third Party Payments,442002,Supporting People,12-Jun-2013,2604658-1951037,"33,160.66",DISC LTD.
Adults Wellbeing and Health,Commissioning inc Supporting People,Third Party Payments,441001,Supporting People,12-Jun-2013,2604663-1950882,"17,866.88",DURHAM ACTION ON SINGLE HOUSING.
Adults Wellbeing and Health,Commissioning inc Supporting People,Third Party Payments,443001,Supporting People,12-Jun-2013,2604663-1950891,"1,454.08",DURHAM ACTION ON SINGLE HOUSING.
Adults Wellbeing and Health,Commissioning inc Supporting People,Third Party Payments,443001,Supporting People,12-Jun-2013,2604663-1950893,"2,181.12",DURHAM ACTION ON SINGLE HOUSING.
Adults Wellbeing and Health,Commissioning inc Supporting People,Third Party Payments,443001,Supporting People,12-Jun-2013,2604663-1950894,727.04,DURHAM ACTION ON SINGLE HOUSING.
Adults Wellbeing and Health,Commissioning inc Supporting People,Third Party Payments,441001,Supporting People,12-Jun-2013,2604668-1950480,"5,402.40",EAST DURHAM COMMUNITY INITIATIVES LTD.
Adults Wellbeing and Health,Commissioning inc Supporting People,Third Party Payments,442002,Supporting People,12-Jun-2013,2604682-1951034,"36,276.56",FOUNDATION.
Adults Wellbeing and Health,Commissioning inc Supporting People,Third Party Payments,442002,Supporting People,12-Jun-2013,2604698-1950884,"5,906.84",HANOVER HOUSING ASSOCIATION.
Adults Wellbeing and Health,Commissioning inc Supporting People,Third Party Payments,441001,Supporting People,12-Jun-2013,2604700-1950838,"9,190.44",HARBOUR SUPPORT SERVICES.
Adults Wellbeing and Health,Commissioning inc Supporting People,Third Party Payments,442002,Supporting People,12-Jun-2013,2604700-1951005,"3,445.26",HARBOUR SUPPORT SERVICES.
Adults Wellbeing and Health,Commissioning inc Supporting People,Third Party Payments,443001,Supporting People,12-Jun-2013,2604705-1950816,"9,797.76",HIGHLEA CARE LTD.
Adults Wellbeing and Health,Commissioning inc Supporting People,Third Party Payments,443001,Supporting People,12-Jun-2013,2604708-1950786,739.68,HOME HOUSING ASSOCIATION LTD.
Adults Wellbeing and Health,Commissioning inc Supporting People,Third Party Payments,443001,Supporting People,12-Jun-2013,2604718-1950482,"1,125.72",INTEGRATION TRUST.
Adults Wellbeing and Health,Commissioning inc Supporting People,Third Party Payments,443001,Supporting People,12-Jun-2013,2604738-1950899,"10,781.36",KINDSTREAM CARE LTD.
Adults Wellbeing and Health,Commissioning inc Supporting People,Third Party Payments,443001,Supporting People,12-Jun-2013,2604738-1950906,"2,629.60",KINDSTREAM CARE LTD.
Adults Wellbeing and Health,Commissioning inc Supporting People,Third Party Payments,443001,Supporting People,12-Jun-2013,2604766-1950685,"2,524.44",MENCAP.
Adults Wellbeing and Health,Commissioning inc Supporting People,Third Party Payments,443001,Supporting People,12-Jun-2013,2604766-1950686,907.96,MENCAP.
Adults Wellbeing and Health,Commissioning inc Supporting People,Third Party Payments,443001,Supporting People,12-Jun-2013,2604766-1950687,"2,484.76",MENCAP.
Adults Wellbeing and Health,Commissioning inc Supporting People,Third Party Payments,442002,Supporting People,12-Jun-2013,2604768-1950877,"7,460.12",MENTAL HEALTH MATTERS.
Adults Wellbeing and Health,Commissioning inc Supporting People,Third Party Payments,442002,Supporting People,12-Jun-2013,2604775-1950840,"5,561.68",MOVING ON.
Adults Wellbeing and Health,Commissioning inc Supporting People,Third Party Payments,441001,Supporting People,12-Jun-2013,2604793-1950489,"45,170.87",NORCARE LTD.
Adults Wellbeing and Health,Commissioning inc Supporting People,Third Party Payments,442002,Supporting People,12-Jun-2013,2604793-1950612,"3,078.80",NORCARE LTD.
Adults Wellbeing and Health,Commissioning inc Supporting People,Third Party Payments,442002,Supporting People,12-Jun-2013,2604793-1950656,"1,954.64",NORCARE LTD.
Adults Wellbeing and Health,Commissioning inc Supporting People,Third Party Payments,441001,Supporting People,12-Jun-2013,2604793-1950978,"8,097.92",NORCARE LTD.
Adults Wellbeing and Health,Commissioning inc Supporting People,Third Party Payments,444002,Supporting People,12-Jun-2013,2604806-1950493,864.00,OAKLEA TRUST.
Adults Wellbeing and Health,Commissioning inc Supporting People,Third Party Payments,444002,Supporting People,12-Jun-2013,2604806-1950495,"4,320.00",OAKLEA TRUST.
Adults Wellbeing and Health,Commissioning inc Supporting People,Third Party Payments,444002,Supporting People,12-Jun-2013,2604806-1950497,"1,728.00",OAKLEA TRUST.
Adults Wellbeing and Health,Commissioning inc Supporting People,Third Party Payments,444002,Supporting People,12-Jun-2013,2604806-1950508,"1,296.00",OAKLEA TRUST.
Adults Wellbeing and Health,Commissioning inc Supporting People,Third Party Payments,444002,Supporting People,12-Jun-2013,2604806-1950513,"1,296.00",OAKLEA TRUST.
Adults Wellbeing and Health,Commissioning inc Supporting People,Third Party Payments,442002,Supporting People,12-Jun-2013,2604818-1950950,"8,985.20",RICHMOND FELLOWSHIP.
Adults Wellbeing and Health,Commissioning inc Supporting People,Third Party Payments,444002,Supporting People,12-Jun-2013,2604818-1950951,"4,595.04",RICHMOND FELLOWSHIP.
Adults Wellbeing and Health,Commissioning inc Supporting People,Third Party Payments,441001,Supporting People,12-Jun-2013,2604818-1950963,"9,429.16",RICHMOND FELLOWSHIP.
Adults Wellbeing and Health,Commissioning inc Supporting People,Third Party Payments,442002,Supporting People,12-Jun-2013,2604828-1950841,"9,294.32",SHAID.
Adults Wellbeing and Health,Commissioning inc Supporting People,Third Party Payments,443001,Supporting People,12-Jun-2013,2604836-1950709,"9,593.28",ST ANNES SHELTER & HOUSING ACTION.
Adults Wellbeing and Health,Commissioning inc Supporting People,Third Party Payments,442002,Supporting People,12-Jun-2013,2604841-1950643,"178,650.32",STONHAM HOUSING ASSOCIATION LTD.
Adults Wellbeing and Health,Commissioning inc Supporting People,Third Party Payments,441001,Supporting People,12-Jun-2013,2604841-1950706,"48,252.08",STONHAM HOUSING ASSOCIATION LTD.
Adults Wellbeing and Health,Commissioning inc Supporting People,Third Party Payments,443001,Supporting People,12-Jun-2013,2604841-1950842,"8,131.20",STONHAM HOUSING ASSOCIATION LTD.
Adults Wellbeing and Health,Commissioning inc Supporting People,Third Party Payments,443001,Supporting People,12-Jun-2013,2604841-1950854,"18,363.80",STONHAM HOUSING ASSOCIATION LTD.
Adults Wellbeing and Health,Commissioning inc Supporting People,Third Party Payments,441001,Supporting People,12-Jun-2013,2604841-1950971,"16,646.56",STONHAM HOUSING ASSOCIATION LTD.
Adults Wellbeing and Health,Commissioning inc Supporting People,Third Party Payments,442002,Supporting People,12-Jun-2013,2604841-1950976,"28,364.92",STONHAM HOUSING ASSOCIATION LTD.
Adults Wellbeing and Health,Commissioning inc Supporting People,Third Party Payments,441001,Supporting People,12-Jun-2013,2604850-1950964,"29,247.64",TEES VALLEY HOUSING LTD.
Adults Wellbeing and Health,Commissioning inc Supporting People,Third Party Payments,442002,Supporting People,12-Jun-2013,2604850-1950966,"24,552.30",TEES VALLEY HOUSING LTD.
Adults Wellbeing and Health,Commissioning inc Supporting People,Third Party Payments,441001,Supporting People,12-Jun-2013,2604853-1950968,"19,231.20",THE CYRENIANS LTD.
Adults Wellbeing and Health,Commissioning inc Supporting People,Third Party Payments,441001,Supporting People,12-Jun-2013,2604856-1950478,"11,181.61",THREE RIVERS HOUSING ASSOCIATION LTD.
Adults Wellbeing and Health,Commissioning inc Supporting People,Third Party Payments,442002,Supporting People,12-Jun-2013,2604856-1950805,"8,976.12",THREE RIVERS HOUSING ASSOCIATION LTD.
Adults Wellbeing and Health,Commissioning inc Supporting People,Third Party Payments,442002,Supporting People,12-Jun-2013,2604856-1950834,"43,230.76",THREE RIVERS HOUSING ASSOCIATION LTD.
Adults Wellbeing and Health,Commissioning inc Supporting People,Third Party Payments,442002,Supporting People,12-Jun-2013,2604856-1950878,"3,835.60",THREE RIVERS HOUSING ASSOCIATION LTD.
Adults Wellbeing and Health,Commissioning inc Supporting People,Third Party Payments,441001,Supporting People,12-Jun-2013,2604856-1950967,"7,692.32",THREE RIVERS HOUSING ASSOCIATION LTD.
Adults Wellbeing and Health,Commissioning inc Supporting People,Third Party Payments,443001,Supporting People,12-Jun-2013,2604872-1950808,"1,374.48",WADDINGTON STREET CENTRE LTD.
Adults Wellbeing and Health,Commissioning inc Supporting People,Third Party Payments,441001,Supporting People,12-Jun-2013,2604872-1950969,"1,166.12",WADDINGTON STREET CENTRE LTD.
Adults Wellbeing and Health,Commissioning inc Supporting People,Third Party Payments,441001,Supporting People,12-Jun-2013,2604875-1950970,"7,617.32",WEAR VALLEY WOMENS AID.
Adults Wellbeing and Health,Commissioning inc Supporting People,Third Party Payments,479111,Purchase of Care,13-Jun-2013,2605005-511797,"40,955.50",COUNTY DURHAM PCT .
Adults Wellbeing and Health,Commissioning inc Supporting People,Third Party Payments,479111,Purchase of Care,14-Jun-2013,2605665-CRM3720,"50,027.00",STROKE ASSOCIATION.
Adults Wellbeing and Health,Commissioning inc Supporting People,Third Party Payments,473111,Purchase of Care,17-Jun-2013,2605728-Q1OP42-2013,"4,750.00",ASSOCIATION OF TEESDALE DAY CLUBS.
Adults Wellbeing and Health,Commissioning inc Supporting People,Third Party Payments,479111,Purchase of Care,19-Jun-2013,2607090-1869,"3,107.18",CARERS FEDERATION LTD.
Adults Wellbeing and Health,Commissioning inc Supporting People,Third Party Payments,479111,Purchase of Care,20-Jun-2013,2608057-1834,"14,484.00",CARERS FEDERATION LTD.
Adults Wellbeing and Health,Commissioning inc Supporting People,Third Party Payments,472113,Purchase of Care,20-Jun-2013,2608164-1336764H,991.72,DALE CARE LTD.
Adults Wellbeing and Health,Commissioning inc Supporting People,Third Party Payments,472113,Purchase of Care,20-Jun-2013,2608164-1340096H,801.84,DALE CARE LTD.
Adults Wellbeing and Health,Commissioning inc Supporting People,Third Party Payments,472113,Purchase of Care,20-Jun-2013,2608164-1340486H,696.32,DALE CARE LTD.
Adults Wellbeing and Health,Commissioning inc Supporting People,Third Party Payments,472113,Purchase of Care,20-Jun-2013,2608164-1340851H,960.08,DALE CARE LTD.
Adults Wellbeing and Health,Commissioning inc Supporting People,Third Party Payments,472113,Purchase of Care,20-Jun-2013,2608164-1341602H,770.16,DALE CARE LTD.
Adults Wellbeing and Health,Commissioning inc Supporting People,Third Party Payments,479101,Purchase of Care,24-Jun-2013,2609942-0000000358,"14,538.95",AGE CONCERN.
Adults Wellbeing and Health,Commissioning inc Supporting People,Third Party Payments,478111,Purchase of Care,24-Jun-2013,2609963-JULY2013,"1,137.50",REDACTED - PAYMENT TO INDIVIDUAL
Adults Wellbeing and Health,Commissioning inc Supporting People,Third Party Payments,479101,Purchase of Care,24-Jun-2013,2610209-4810000165,"4,150.79",TEES ESK & WEAR VALLEY NHS FOUNDATION TRUST.
Adults Wellbeing and Health,Commissioning inc Supporting People,Third Party Payments,478111,Purchase of Care,24-Jun-2013,2610221-JULY2013,"1,322.91",REDACTED - PAYMENT TO INDIVIDUAL
Adults Wellbeing and Health,Commissioning inc Supporting People,Third Party Payments,470101,Purchase of Care,25-Jun-2013,2611096-RINVTP/00279027,"4,047.23",LEONARD CHESHIRE DISABILITY.
Adults Wellbeing and Health,Commissioning inc Supporting People,Transport,230005,Contract Hire,24-Jun-2013,2610071-1948,"1,520.00",LANGLEY PARK COMMUNITY TRANSPORT.
Adults Wellbeing and Health,Commissioning inc Supporting People,Transport,240045,Car Allowances,25-Jun-2013,2611245-2973,"20,316.62",SOCIAL RESOURCE CENTRE LTD.
Adults Wellbeing and Health,Financing-Adult Services,Debtors,930131,Debtor-Hospital Re-Admission Avoidance Project,10-Jun-2013,2603183-50776,614.18,CAREWATCH (DURHAM & EASINGTON) FASTFLOW ACC.
Adults Wellbeing and Health,Financing-Adult Services,Debtors,930024,Debtor-free nursing care,20-Jun-2013,2607969-2107426,846.95,BARCHESTER HEALTHCARE HOMES LTD.
Adults Wellbeing and Health,Financing-Adult Services,Debtors,930024,Debtor-free nursing care,20-Jun-2013,2607984-2107740,627.37,BELMONT NURSING HOME.
Adults Wellbeing and Health,Financing-Adult Services,Debtors,930024,Debtor-free nursing care,20-Jun-2013,2607984-2107744,909.69,BELMONT NURSING HOME.
Adults Wellbeing and Health,Financing-Adult Services,Debtors,930024,Debtor-free nursing care,20-Jun-2013,2607988-2105591,604.40,BENFIELD HALL.
Adults Wellbeing and Health,Financing-Adult Services,Debtors,930024,Debtor-free nursing care,20-Jun-2013,2608364-2107783,909.69,FOUR SEASONS HEALTH CARE..
Adults Wellbeing and Health,Financing-Adult Services,Debtors,930024,Debtor-free nursing care,20-Jun-2013,2608426-2107307,831.27,HADRIAN HEALTHCARE (NE) LTD (ORCHARD MANOR).
Adults Wellbeing and Health,Financing-Adult Services,Debtors,930024,Debtor-free nursing care,20-Jun-2013,2608677-2105578,604.40,KIMBLESWORTH NURSING HOME.
Adults Wellbeing and Health,Financing-Adult Services,Debtors,930024,Debtor-free nursing care,20-Jun-2013,2608862-2104614,"1,361.89",MELBURY COURT.
Adults Wellbeing and Health,Financing-Adult Services,Debtors,930024,Debtor-free nursing care,20-Jun-2013,2609171-2104443,596.00,PREMIER CARE HOMES LTD.
Adults Wellbeing and Health,Financing-Adult Services,Debtors,930024,Debtor-free nursing care,20-Jun-2013,2609197-2105326,604.40,RAYSON HOMES LTD.
Adults Wellbeing and Health,Financing-Adult Services,Debtors,930024,Debtor-free nursing care,20-Jun-2013,2609335-2105618,"1,097.90",ST HELENS NURSING HOME.
Adults Wellbeing and Health,Financing-Adult Services,Debtors,930024,Debtor-free nursing care,20-Jun-2013,2609401-2104530,604.40,TAMARIS HEALTHCARE LTD.
Adults Wellbeing and Health,Financing-Adult Services,Debtors,930024,Debtor-free nursing care,20-Jun-2013,2609407-2104704,604.40,TAMARIS HEALTHCARE LTD.
Adults Wellbeing and Health,Financing-Adult Services,Debtors,930024,Debtor-free nursing care,20-Jun-2013,2609407-2104753,604.40,TAMARIS HEALTHCARE LTD.
Adults Wellbeing and Health,Financing-Adult Services,Debtors,930024,Debtor-free nursing care,20-Jun-2013,2609504-2105213,"1,097.90",WEST LODGE HOMES.
Adults Wellbeing and Health,Financing-Adult Services,Debtors,930024,Debtor-free nursing care,20-Jun-2013,2609532-2107297,"1,097.90",YODEN HALL NURSING HOME.
Adults Wellbeing and Health,Financing-Adult Services,Debtors,930024,Debtor-free nursing care,20-Jun-2013,2609532-2107652,"1,097.90",YODEN HALL NURSING HOME.
Adults Wellbeing and Health,Financing-Adult Services,Debtors,930024,Debtor-free nursing care,20-Jun-2013,2609533-2107761,"1,035.16",YODEN LODGE CARE HOME.
Adults Wellbeing and Health,Head of Adults,Employees,080025,Agency Staff,05-Jun-2013,2602266-430025002,813.75,TEES ESK & WEAR VALLEY NHS FOUNDATION TRUST.
Adults Wellbeing and Health,Head of Adults,Employees,080025,Agency Staff,05-Jun-2013,2602266-430025003,"1,627.42",TEES ESK & WEAR VALLEY NHS FOUNDATION TRUST.
Adults Wellbeing and Health,Head of Adults,Employees,080025,Agency Staff,05-Jun-2013,2602266-430025004,"1,627.42",TEES ESK & WEAR VALLEY NHS FOUNDATION TRUST.
Adults Wellbeing and Health,Head of Adults,Employees,080025,Agency Staff,18-Jun-2013,2606984-4810000033,"3,583.09",TEES ESK & WEAR VALLEY NHS FOUNDATION TRUST.
Adults Wellbeing and Health,Head of Adults,Employees,080025,Agency Staff,19-Jun-2013,2607454-4810000029,"1,627.42",TEES ESK & WEAR VALLEY NHS FOUNDATION TRUST.
Adults Wellbeing and Health,Head of Adults,Employees,080025,Agency Staff,20-Jun-2013,2609415-430025008,"4,254.42",TEES ESK & WEAR VALLEY NHS FOUNDATION TRUST.
Adults Wellbeing and Health,Head of Adults,Employees,080025,Agency Staff,20-Jun-2013,2609415-4810000028,813.75,TEES ESK & WEAR VALLEY NHS FOUNDATION TRUST.
Adults Wellbeing and Health,Head of Adults,Employees,080025,Agency Staff,20-Jun-2013,2609415-4810000030,"1,627.42",TEES ESK & WEAR VALLEY NHS FOUNDATION TRUST.
Adults Wellbeing and Health,Head of Adults,Employees,080025,Agency Staff,20-Jun-2013,2609415-4810000034,"4,254.42",TEES ESK & WEAR VALLEY NHS FOUNDATION TRUST.
Adults Wellbeing and Health,Head of Adults,Employees,080025,Agency Staff,26-Jun-2013,2611668-4810000223,813.75,TEES ESK & WEAR VALLEY NHS FOUNDATION TRUST.
Adults Wellbeing and Health,Head of Adults,Employees,080025,Agency Staff,26-Jun-2013,2611668-4810000224,"1,627.42",TEES ESK & WEAR VALLEY NHS FOUNDATION TRUST.
Adults Wellbeing and Health,Head of Adults,Employees,080025,Agency Staff,26-Jun-2013,2611668-4810000225,"1,627.42",TEES ESK & WEAR VALLEY NHS FOUNDATION TRUST.
Adults Wellbeing and Health,Head of Adults,Employees,080025,Agency Staff,26-Jun-2013,2611668-4810000228,"3,583.09",TEES ESK & WEAR VALLEY NHS FOUNDATION TRUST.
Adults Wellbeing and Health,Head of Adults,Employees,080025,Agency Staff,27-Jun-2013,2612257-430025007,"3,583.09",TEES ESK & WEAR VALLEY NHS FOUNDATION TRUST.
Adults Wellbeing and Health,Head of Adults,Premises,125009,Rents,04-Jun-2013,2601489-RMIN/00000436,650.00,DERWENTSIDE HOMES LTD.
Adults Wellbeing and Health,Head of Adults,Premises,120021,Energy Costs,04-Jun-2013,2601543-013924069360,676.47,EON UK PLC.
Adults Wellbeing and Health,Head of Adults,Premises,145023,Cleaning and Domestic Supplies,04-Jun-2013,2601588-06/461958,523.86,GREENHAM TRADING LTD.
Adults Wellbeing and Health,Head of Adults,Premises,145023,Cleaning and Domestic Supplies,04-Jun-2013,2601588-06/462243,586.66,GREENHAM TRADING LTD.
Adults Wellbeing and Health,Head of Adults,Premises,125009,Rents,11-Jun-2013,2604364-RENT,"4,365.01",DERWENTSIDE HOMES LTD.
Adults Wellbeing and Health,Head of Adults,Premises,150005,Apportioned Exps of Operational Blds,11-Jun-2013,2604364-RMIN/00000352,"1,470.53",DERWENTSIDE HOMES LTD.
Adults Wellbeing and Health,Head of Adults,Premises,125009,Rents,13-Jun-2013,2605112-152135,"2,625.00",HARLEY STREET INTERNATIONAL LTD.
Adults Wellbeing and Health,Head of Adults,Premises,125009,Rents,13-Jun-2013,2605175-288276,782.50,KNIGHT FRANK LLP.
Adults Wellbeing and Health,Head of Adults,Premises,150005,Apportioned Exps of Operational Blds,13-Jun-2013,2605360-107854,577.92,SANDERSON WEATHERALL LLP.
Adults Wellbeing and Health,Head of Adults,Premises,108301,Service Repairs and Maintenance,17-Jun-2013,2605700-23929053-61,698.48,ADT FIRE & SECURITY PLC.
Adults Wellbeing and Health,Head of Adults,Premises,106099,Centrally Controlled Rep and Maint,17-Jun-2013,2606024-95317051,"2,627.02",SCHNEIDER ELECTRIC LTD.
Adults Wellbeing and Health,Head of Adults,Premises,108301,Service Repairs and Maintenance,20-Jun-2013,2608599-104377,"3,331.66",JOHNSON WRIGHT FLOORING LTD.
Adults Wellbeing and Health,Head of Adults,Premises,125009,Rents,24-Jun-2013,2610040-2400-049605,"4,385.17",GVA GRIMLEY LLP.
Adults Wellbeing and Health,Head of Adults,Premises,125009,Rents,24-Jun-2013,2610040-2400-052057,"3,297.26",GVA GRIMLEY LLP.
Adults Wellbeing and Health,Head of Adults,Premises,125009,Rents,24-Jun-2013,2610241-241217,"1,172.55",WHITTLE JONES (GROUP) LTD.
Adults Wellbeing and Health,Head of Adults,Premises,125009,Rents,24-Jun-2013,2610241-241363,"5,971.75",WHITTLE JONES (GROUP) LTD.
Adults Wellbeing and Health,Head of Adults,Premises,150005,Apportioned Exps of Operational Blds,27-Jun-2013,2612182-108146,538.00,SANDERSON WEATHERALL LLP.
Adults Wellbeing and Health,Head of Adults,Summary Income Level,720033,Fees and Charges,04-Jun-2013,2601743-REFUND,972.51,REDACTED - PAYMENT TO INDIVIDUAL
Adults Wellbeing and Health,Head of Adults,Summary Income Level,720033,Fees and Charges,04-Jun-2013,2601748-REFUND,619.08,REDACTED - PAYMENT TO INDIVIDUAL
Adults Wellbeing and Health,Head of Adults,Summary Income Level,720033,Fees and Charges,05-Jun-2013,220667-REFUND,556.85,REDACTED - PAYMENT TO INDIVIDUAL
Adults Wellbeing and Health,Head of Adults,Summary Income Level,720045,Fees and Charges,10-Jun-2013,2603279-OVERPA,"1,181.56",REDACTED - PAYMENT TO INDIVIDUAL
Adults Wellbeing and Health,Head of Adults,Summary Income Level,720033,Fees and Charges,10-Jun-2013,2603417-OVERPA,"1,163.95",REDACTED - PAYMENT TO INDIVIDUAL
Adults Wellbeing and Health,Head of Adults,Summary Income Level,720033,Fees and Charges,10-Jun-2013,2603428-OVERPA,"1,082.45",REDACTED - PAYMENT TO INDIVIDUAL
Adults Wellbeing and Health,Head of Adults,Summary Income Level,720045,Fees and Charges,12-Jun-2013,220872-REFUND,"1,166.12",REDACTED - PAYMENT TO INDIVIDUAL
Adults Wellbeing and Health,Head of Adults,Summary Income Level,720047,Fees and Charges,12-Jun-2013,2604783-REFUND,629.91,REDACTED - PAYMENT TO INDIVIDUAL
Adults Wellbeing and Health,Head of Adults,Summary Income Level,720033,Fees and Charges,18-Jun-2013,2606909-REFUND,"1,169.05",REDACTED - PAYMENT TO INDIVIDUAL
Adults Wellbeing and Health,Head of Adults,Summary Income Level,720044,Fees and Charges,19-Jun-2013,221108-REFUND,727.71,REDACTED - PAYMENT TO INDIVIDUAL
Adults Wellbeing and Health,Head of Adults,Summary Income Level,720045,Fees and Charges,19-Jun-2013,221110-REFUND,"1,188.02",REDACTED - PAYMENT TO INDIVIDUAL
Adults Wellbeing and Health,Head of Adults,Summary Income Level,720047,Fees and Charges,19-Jun-2013,221117-258741,773.13,REDACTED - PAYMENT TO INDIVIDUAL
Adults Wellbeing and Health,Head of Adults,Supplies and Services,338094,Services,04-Jun-2013,2601422-12-540,855.00,CHESTER LE STREET CVS BULLION HALL.
Adults Wellbeing and Health,Head of Adults,Supplies and Services,324117,Provisions,04-Jun-2013,2601659-N14336,980.92,JR HOLLAND FOOD SERVICES LTD.
Adults Wellbeing and Health,Head of Adults,Supplies and Services,304259,Equipment and Materials,04-Jun-2013,2601803-CN18376157,581.88,OCS GROUP UK LTD T/A CANNON HYGIENE.
Adults Wellbeing and Health,Head of Adults,Supplies and Services,308013,Furniture,05-Jun-2013,220578-2650,"1,513.00",FRANKS FACTORY FLOORING.
Adults Wellbeing and Health,Head of Adults,Supplies and Services,338365,Services,06-Jun-2013,2602507-188731,"2,179.49",SARABEC LTD.
Adults Wellbeing and Health,Head of Adults,Supplies and Services,304259,Equipment and Materials,06-Jun-2013,2602535-127052,774.00,SWITCH ON.
Adults Wellbeing and Health,Head of Adults,Supplies and Services,338099,Services,07-Jun-2013,2602616-S-127-01,650.00,AVOCA CONSULTING ENGINEERS LTD.
Adults Wellbeing and Health,Head of Adults,Supplies and Services,338094,Services,10-Jun-2013,2603194-2641,800.00,CHESTER LE STREET & DISTRICT CVS.
Adults Wellbeing and Health,Head of Adults,Supplies and Services,384199,Miscellaneous Expenses,10-Jun-2013,2603563-020784,675.00,SKY BLUE THERAPY LTD.
Adults Wellbeing and Health,Head of Adults,Supplies and Services,324117,Provisions,11-Jun-2013,2604309-32967674,589.91,BRAKE BROS FOODSERVICE LTD.
Adults Wellbeing and Health,Head of Adults,Supplies and Services,328041,"Clothing, Uniforms and Laundry",13-Jun-2013,2605104-06/464796,645.00,GREENHAM TRADING LTD.
Adults Wellbeing and Health,Head of Adults,Supplies and Services,338365,Services,13-Jun-2013,2605110-28790,"1,320.00",HANDS FREE COMPUTING LTD.
Adults Wellbeing and Health,Head of Adults,Supplies and Services,308013,Furniture,17-Jun-2013,2605922-147/218,"2,421.69",LONGSTAFF FLOORING.
Adults Wellbeing and Health,Head of Adults,Supplies and Services,338066,Services,18-Jun-2013,2606940-260,"9,375.00",PEOPLETOO LTD.
Adults Wellbeing and Health,Head of Adults,Supplies and Services,308011,Furniture,19-Jun-2013,2607342-7382,"1,915.00",NELSONS OF DURHAM.
Adults Wellbeing and Health,Head of Adults,Supplies and Services,308013,Furniture,20-Jun-2013,2607964-49615,"2,115.71",BAILEYS BLINDS CO LTD.
Adults Wellbeing and Health,Head of Adults,Supplies and Services,338366,Services,20-Jun-2013,2608053-8138,"2,330.51",CARE ABILITY.
Adults Wellbeing and Health,Head of Adults,Supplies and Services,338366,Services,20-Jun-2013,2608053-8139,817.36,CARE ABILITY.
Adults Wellbeing and Health,Head of Adults,Supplies and Services,338366,Services,20-Jun-2013,2608053-8140,817.36,CARE ABILITY.
Adults Wellbeing and Health,Head of Adults,Supplies and Services,338366,Services,20-Jun-2013,2608053-8141,"1,929.52",CARE ABILITY.
Adults Wellbeing and Health,Head of Adults,Supplies and Services,338366,Services,20-Jun-2013,2608053-8142,"1,575.55",CARE ABILITY.
Adults Wellbeing and Health,Head of Adults,Supplies and Services,338366,Services,20-Jun-2013,2608053-8143,708.19,CARE ABILITY.
Adults Wellbeing and Health,Head of Adults,Supplies and Services,328041,"Clothing, Uniforms and Laundry",20-Jun-2013,2608417-06/463872,641.06,GREENHAM TRADING LTD.
Adults Wellbeing and Health,Head of Adults,Supplies and Services,324117,Provisions,20-Jun-2013,2608618-N35196,"1,427.47",JR HOLLAND FOOD SERVICES LTD.
Adults Wellbeing and Health,Head of Adults,Supplies and Services,338365,Services,20-Jun-2013,2608759-2167,"2,910.00",LYNCH HEALTHCARE LTD.
Adults Wellbeing and Health,Head of Adults,Supplies and Services,304083,Equipment and Materials,20-Jun-2013,2609455-106607,644.86,TP ELECTRICAL SUPPLIES & FIXINGS LTD.
Adults Wellbeing and Health,Head of Adults,Supplies and Services,324117,Provisions,24-Jun-2013,2610065-N35195,"1,278.27",JR HOLLAND FOOD SERVICES LTD.
Adults Wellbeing and Health,Head of Adults,Supplies and Services,324117,Provisions,25-Jun-2013,2611079-N35194,"1,201.91",JR HOLLAND FOOD SERVICES LTD.
Adults Wellbeing and Health,Head of Adults,Supplies and Services,304252,Equipment and Materials,25-Jun-2013,2611082-1186,"1,332.00",K MILLER BUILDING SERVICES.
Adults Wellbeing and Health,Head of Adults,Supplies and Services,304259,Equipment and Materials,25-Jun-2013,2611159-CN18380821,503.64,OCS GROUP UK LTD T/A CANNON HYGIENE.
Adults Wellbeing and Health,Head of Adults,Supplies and Services,338045,Services,26-Jun-2013,221312-ILJ601HQ/9037,998.80,HMCTS.
Adults Wellbeing and Health,Head of Adults,Supplies and Services,308011,Furniture,27-Jun-2013,2611739-145496,"18,267.50",ALBANY OFFICE EQUIPMENT (WHOLESALE) LTD.
Adults Wellbeing and Health,Head of Adults,Supplies and Services,304259,Equipment and Materials,27-Jun-2013,2612102-CN18365164,902.76,OCS GROUP UK LTD T/A CANNON HYGIENE.
Adults Wellbeing and Health,Head of Adults,Supplies and Services,384616,Miscellaneous Expenses,27-Jun-2013,2612273-SHO21314,"2,128.49",THREE RIVERS HOUSING ASSOCIATION LTD.
Adults Wellbeing and Health,Head of Adults,Third Party Payments,470101,Purchase of Care,05-Jun-2013,2602177-INV-0154,"9,211.09",INTERACT CARE LTD.
Adults Wellbeing and Health,Head of Adults,Third Party Payments,470101,Purchase of Care,05-Jun-2013,2602253-1140026,"1,285.38",ST CUTHBERTS CARE.
Adults Wellbeing and Health,Head of Adults,Third Party Payments,479101,Purchase of Care,05-Jun-2013,2602266-430025006,"1,666.67",TEES ESK & WEAR VALLEY NHS FOUNDATION TRUST.
Adults Wellbeing and Health,Head of Adults,Third Party Payments,472101,Purchase of Care,06-Jun-2013,2602540-1290,"1,874.56",THE CAMPHILL VILLAGE TRUST LTD LARCHFIELD COMMUNITY.
Adults Wellbeing and Health,Head of Adults,Third Party Payments,472101,Purchase of Care,07-Jun-2013,2603051-1338,"1,874.56",THE CAMPHILL VILLAGE TRUST LTD LARCHFIELD COMMUNITY.
Adults Wellbeing and Health,Head of Adults,Third Party Payments,472101,Purchase of Care,07-Jun-2013,2603051-1496,"1,874.56",THE CAMPHILL VILLAGE TRUST LTD LARCHFIELD COMMUNITY.
Adults Wellbeing and Health,Head of Adults,Third Party Payments,470101,Purchase of Care,12-Jun-2013,2604795-0000012928,"1,275.08",NORTH EAST AUTISM SOCIETY.
Adults Wellbeing and Health,Head of Adults,Third Party Payments,470101,Purchase of Care,12-Jun-2013,2604795-0000013297,"2,038.25",NORTH EAST AUTISM SOCIETY.
Adults Wellbeing and Health,Head of Adults,Third Party Payments,470101,Purchase of Care,12-Jun-2013,2604795-0000013411,"1,338.97",NORTH EAST AUTISM SOCIETY.
Adults Wellbeing and Health,Head of Adults,Third Party Payments,472101,Purchase of Care,13-Jun-2013,2605005-511971,"2,122.88",COUNTY DURHAM PCT .
Adults Wellbeing and Health,Head of Adults,Third Party Payments,472101,Purchase of Care,17-Jun-2013,2605804-3787,"1,929.50",DCS & D LTD T/A HERITAGE HEALTHCARE.
Adults Wellbeing and Health,Head of Adults,Third Party Payments,472101,Purchase of Care,17-Jun-2013,2605804-3908,873.95,DCS & D LTD T/A HERITAGE HEALTHCARE.
Adults Wellbeing and Health,Head of Adults,Third Party Payments,472101,Purchase of Care,18-Jun-2013,2606795-3907,873.95,DCS & D LTD T/A HERITAGE HEALTHCARE.
Adults Wellbeing and Health,Head of Adults,Third Party Payments,479101,Purchase of Care,19-Jun-2013,2607454-4810000032,"1,666.67",TEES ESK & WEAR VALLEY NHS FOUNDATION TRUST.
Adults Wellbeing and Health,Head of Adults,Third Party Payments,470101,Purchase of Care,20-Jun-2013,2607489-2105772,"6,031.16",3 RED ADMIRAL COURT.
Adults Wellbeing and Health,Head of Adults,Third Party Payments,472101,Purchase of Care,20-Jun-2013,2607490-1336998H,517.52,360 HEALTHCARE LTD.
Adults Wellbeing and Health,Head of Adults,Third Party Payments,472101,Purchase of Care,20-Jun-2013,2607490-1337196H,865.03,360 HEALTHCARE LTD.
Adults Wellbeing and Health,Head of Adults,Third Party Payments,472101,Purchase of Care,20-Jun-2013,2607490-1337255H,"1,035.08",360 HEALTHCARE LTD.
Adults Wellbeing and Health,Head of Adults,Third Party Payments,472101,Purchase of Care,20-Jun-2013,2607490-1337697H,"1,212.51",360 HEALTHCARE LTD.
Adults Wellbeing and Health,Head of Adults,Third Party Payments,472101,Purchase of Care,20-Jun-2013,2607490-1337704H,"1,452.80",360 HEALTHCARE LTD.
Adults Wellbeing and Health,Head of Adults,Third Party Payments,472101,Purchase of Care,20-Jun-2013,2607490-1339550H,687.60,360 HEALTHCARE LTD.
Adults Wellbeing and Health,Head of Adults,Third Party Payments,472101,Purchase of Care,20-Jun-2013,2607490-1339805H,510.16,360 HEALTHCARE LTD.
Adults Wellbeing and Health,Head of Adults,Third Party Payments,472101,Purchase of Care,20-Jun-2013,2607490-1340051H,609.96,360 HEALTHCARE LTD.
Adults Wellbeing and Health,Head of Adults,Third Party Payments,472101,Purchase of Care,20-Jun-2013,2607490-1340149H,"1,127.48",360 HEALTHCARE LTD.
Adults Wellbeing and Health,Head of Adults,Third Party Payments,472101,Purchase of Care,20-Jun-2013,2607490-1340416H,"1,449.08",360 HEALTHCARE LTD.
Adults Wellbeing and Health,Head of Adults,Third Party Payments,472101,Purchase of Care,20-Jun-2013,2607490-1340544H,953.76,360 HEALTHCARE LTD.
Adults Wellbeing and Health,Head of Adults,Third Party Payments,472101,Purchase of Care,20-Jun-2013,2607490-1340570H,502.76,360 HEALTHCARE LTD.
Adults Wellbeing and Health,Head of Adults,Third Party Payments,472101,Purchase of Care,20-Jun-2013,2607490-1340655H,754.13,360 HEALTHCARE LTD.
Adults Wellbeing and Health,Head of Adults,Third Party Payments,472101,Purchase of Care,20-Jun-2013,2607490-1340724H,635.84,360 HEALTHCARE LTD.
Adults Wellbeing and Health,Head of Adults,Third Party Payments,472101,Purchase of Care,20-Jun-2013,2607490-1340915H,754.12,360 HEALTHCARE LTD.
Adults Wellbeing and Health,Head of Adults,Third Party Payments,472101,Purchase of Care,20-Jun-2013,2607490-1340986H,591.48,360 HEALTHCARE LTD.
Adults Wellbeing and Health,Head of Adults,Third Party Payments,472101,Purchase of Care,20-Jun-2013,2607490-1341548H,"1,181.10",360 HEALTHCARE LTD.
Adults Wellbeing and Health,Head of Adults,Third Party Payments,472101,Purchase of Care,20-Jun-2013,2607490-1341587H,672.80,360 HEALTHCARE LTD.
Adults Wellbeing and Health,Head of Adults,Third Party Payments,472101,Purchase of Care,20-Jun-2013,2607490-1342039H,621.04,360 HEALTHCARE LTD.
Adults Wellbeing and Health,Head of Adults,Third Party Payments,472101,Purchase of Care,20-Jun-2013,2607490-1342646H,545.27,360 HEALTHCARE LTD.
Adults Wellbeing and Health,Head of Adults,Third Party Payments,472101,Purchase of Care,20-Jun-2013,2607490-1342666H,746.72,360 HEALTHCARE LTD.
Adults Wellbeing and Health,Head of Adults,Third Party Payments,472101,Purchase of Care,20-Jun-2013,2607490-1342733H,931.56,360 HEALTHCARE LTD.
Adults Wellbeing and Health,Head of Adults,Third Party Payments,472101,Purchase of Care,20-Jun-2013,2607490-1342855H,665.40,360 HEALTHCARE LTD.
Adults Wellbeing and Health,Head of Adults,Third Party Payments,472101,Purchase of Care,20-Jun-2013,2607490-1342927H,931.56,360 HEALTHCARE LTD.
Adults Wellbeing and Health,Head of Adults,Third Party Payments,472101,Purchase of Care,20-Jun-2013,2607490-1343001H,621.04,360 HEALTHCARE LTD.
Adults Wellbeing and Health,Head of Adults,Third Party Payments,472101,Purchase of Care,20-Jun-2013,2607490-1343030H,"1,231.00",360 HEALTHCARE LTD.
Adults Wellbeing and Health,Head of Adults,Third Party Payments,470101,Purchase of Care,20-Jun-2013,2607491-2105752,"6,397.60",368 THE RIDGE.
Adults Wellbeing and Health,Head of Adults,Third Party Payments,470101,Purchase of Care,20-Jun-2013,2607495-2104067,"1,792.92",A CHARLES THOMAS (CARE) LTD.
Adults Wellbeing and Health,Head of Adults,Third Party Payments,470101,Purchase of Care,20-Jun-2013,2607495-2104068,"1,792.92",A CHARLES THOMAS (CARE) LTD.
Adults Wellbeing and Health,Head of Adults,Third Party Payments,470101,Purchase of Care,20-Jun-2013,2607495-2104069,"1,792.92",A CHARLES THOMAS (CARE) LTD.
Adults Wellbeing and Health,Head of Adults,Third Party Payments,470101,Purchase of Care,20-Jun-2013,2607495-2104094,"1,792.92",A CHARLES THOMAS (CARE) LTD.
Adults Wellbeing and Health,Head of Adults,Third Party Payments,470101,Purchase of Care,20-Jun-2013,2607495-2104112,"1,792.92",A CHARLES THOMAS (CARE) LTD.
Adults Wellbeing and Health,Head of Adults,Third Party Payments,470101,Purchase of Care,20-Jun-2013,2607495-2104128,"1,216.62",A CHARLES THOMAS (CARE) LTD.
Adults Wellbeing and Health,Head of Adults,Third Party Payments,470101,Purchase of Care,20-Jun-2013,2607495-2104129,"1,664.85",A CHARLES THOMAS (CARE) LTD.
Adults Wellbeing and Health,Head of Adults,Third Party Payments,470101,Purchase of Care,20-Jun-2013,2607495-2104217,"1,792.92",A CHARLES THOMAS (CARE) LTD.
Adults Wellbeing and Health,Head of Adults,Third Party Payments,470101,Purchase of Care,20-Jun-2013,2607495-2104221,"1,792.92",A CHARLES THOMAS (CARE) LTD.
Adults Wellbeing and Health,Head of Adults,Third Party Payments,470101,Purchase of Care,20-Jun-2013,2607495-2104222,576.29,A CHARLES THOMAS (CARE) LTD.
Adults Wellbeing and Health,Head of Adults,Third Party Payments,470101,Purchase of Care,20-Jun-2013,2607495-2104223,"1,792.92",A CHARLES THOMAS (CARE) LTD.
Adults Wellbeing and Health,Head of Adults,Third Party Payments,470101,Purchase of Care,20-Jun-2013,2607495-2104224,"1,792.92",A CHARLES THOMAS (CARE) LTD.
Adults Wellbeing and Health,Head of Adults,Third Party Payments,470101,Purchase of Care,20-Jun-2013,2607495-2104225,"1,792.92",A CHARLES THOMAS (CARE) LTD.
Adults Wellbeing and Health,Head of Adults,Third Party Payments,470101,Purchase of Care,20-Jun-2013,2607495-2104226,"1,792.92",A CHARLES THOMAS (CARE) LTD.
Adults Wellbeing and Health,Head of Adults,Third Party Payments,470101,Purchase of Care,20-Jun-2013,2607495-2104227,"1,792.92",A CHARLES THOMAS (CARE) LTD.
Adults Wellbeing and Health,Head of Adults,Third Party Payments,474101,Purchase of Care,20-Jun-2013,2607495-2104971,"1,882.44",A CHARLES THOMAS (CARE) LTD.
Adults Wellbeing and Health,Head of Adults,Third Party Payments,474101,Purchase of Care,20-Jun-2013,2607495-2105079,"1,882.44",A CHARLES THOMAS (CARE) LTD.
Adults Wellbeing and Health,Head of Adults,Third Party Payments,474101,Purchase of Care,20-Jun-2013,2607495-2105103,"1,378.36",A CHARLES THOMAS (CARE) LTD.
Adults Wellbeing and Health,Head of Adults,Third Party Payments,474101,Purchase of Care,20-Jun-2013,2607495-2105161,"1,882.44",A CHARLES THOMAS (CARE) LTD.
Adults Wellbeing and Health,Head of Adults,Third Party Payments,474101,Purchase of Care,20-Jun-2013,2607495-2105163,"1,882.44",A CHARLES THOMAS (CARE) LTD.
Adults Wellbeing and Health,Head of Adults,Third Party Payments,474101,Purchase of Care,20-Jun-2013,2607495-2105165,"1,882.44",A CHARLES THOMAS (CARE) LTD.
Adults Wellbeing and Health,Head of Adults,Third Party Payments,474101,Purchase of Care,20-Jun-2013,2607495-2105168,"1,882.44",A CHARLES THOMAS (CARE) LTD.
Adults Wellbeing and Health,Head of Adults,Third Party Payments,474101,Purchase of Care,20-Jun-2013,2607495-2105170,"1,882.44",A CHARLES THOMAS (CARE) LTD.
Adults Wellbeing and Health,Head of Adults,Third Party Payments,474101,Purchase of Care,20-Jun-2013,2607495-2105172,"1,882.44",A CHARLES THOMAS (CARE) LTD.
Adults Wellbeing and Health,Head of Adults,Third Party Payments,474101,Purchase of Care,20-Jun-2013,2607495-2105174,"1,882.44",A CHARLES THOMAS (CARE) LTD.
Adults Wellbeing and Health,Head of Adults,Third Party Payments,474101,Purchase of Care,20-Jun-2013,2607495-2105177,"1,680.75",A CHARLES THOMAS (CARE) LTD.
Adults Wellbeing and Health,Head of Adults,Third Party Payments,474101,Purchase of Care,20-Jun-2013,2607495-2105180,"1,882.44",A CHARLES THOMAS (CARE) LTD.
Adults Wellbeing and Health,Head of Adults,Third Party Payments,474101,Purchase of Care,20-Jun-2013,2607495-2105182,"1,882.44",A CHARLES THOMAS (CARE) LTD.
Adults Wellbeing and Health,Head of Adults,Third Party Payments,474101,Purchase of Care,20-Jun-2013,2607495-2105184,"1,882.44",A CHARLES THOMAS (CARE) LTD.
Adults Wellbeing and Health,Head of Adults,Third Party Payments,474101,Purchase of Care,20-Jun-2013,2607495-2105187,"1,882.44",A CHARLES THOMAS (CARE) LTD.
Adults Wellbeing and Health,Head of Adults,Third Party Payments,470101,Purchase of Care,20-Jun-2013,2607495-2107284,704.36,A CHARLES THOMAS (CARE) LTD.
Adults Wellbeing and Health,Head of Adults,Third Party Payments,470101,Purchase of Care,20-Jun-2013,2607495-2107311,640.32,A CHARLES THOMAS (CARE) LTD.
Adults Wellbeing and Health,Head of Adults,Third Party Payments,474101,Purchase of Care,20-Jun-2013,2607501-2105490,"2,303.28",ABBEYMOOR CLINIC.
Adults Wellbeing and Health,Head of Adults,Third Party Payments,470101,Purchase of Care,20-Jun-2013,2607502-2103295,"1,894.36",ABBEYVALE.
Adults Wellbeing and Health,Head of Adults,Third Party Payments,470101,Purchase of Care,20-Jun-2013,2607502-2103296,"1,894.36",ABBEYVALE.
Adults Wellbeing and Health,Head of Adults,Third Party Payments,470101,Purchase of Care,20-Jun-2013,2607502-2103297,"1,894.36",ABBEYVALE.
Adults Wellbeing and Health,Head of Adults,Third Party Payments,470101,Purchase of Care,20-Jun-2013,2607502-2103298,"1,894.36",ABBEYVALE.
Adults Wellbeing and Health,Head of Adults,Third Party Payments,470101,Purchase of Care,20-Jun-2013,2607502-2103299,"1,894.36",ABBEYVALE.
Adults Wellbeing and Health,Head of Adults,Third Party Payments,470101,Purchase of Care,20-Jun-2013,2607502-2103300,"1,894.36",ABBEYVALE.
Adults Wellbeing and Health,Head of Adults,Third Party Payments,470101,Purchase of Care,20-Jun-2013,2607502-2103301,"1,894.36",ABBEYVALE.
Adults Wellbeing and Health,Head of Adults,Third Party Payments,470101,Purchase of Care,20-Jun-2013,2607502-2103302,"1,894.36",ABBEYVALE.
Adults Wellbeing and Health,Head of Adults,Third Party Payments,470101,Purchase of Care,20-Jun-2013,2607502-2103303,"1,894.36",ABBEYVALE.
Adults Wellbeing and Health,Head of Adults,Third Party Payments,470101,Purchase of Care,20-Jun-2013,2607502-2103304,"1,894.36",ABBEYVALE.
Adults Wellbeing and Health,Head of Adults,Third Party Payments,470101,Purchase of Care,20-Jun-2013,2607502-2103305,"1,014.83",ABBEYVALE.
Adults Wellbeing and Health,Head of Adults,Third Party Payments,470101,Purchase of Care,20-Jun-2013,2607502-2103306,"1,954.36",ABBEYVALE.
Adults Wellbeing and Health,Head of Adults,Third Party Payments,470101,Purchase of Care,20-Jun-2013,2607502-2103308,"1,894.36",ABBEYVALE.
Adults Wellbeing and Health,Head of Adults,Third Party Payments,470101,Purchase of Care,20-Jun-2013,2607502-2103309,"1,894.36",ABBEYVALE.
Adults Wellbeing and Health,Head of Adults,Third Party Payments,470101,Purchase of Care,20-Jun-2013,2607502-2103310,"1,894.36",ABBEYVALE.
Adults Wellbeing and Health,Head of Adults,Third Party Payments,470101,Purchase of Care,20-Jun-2013,2607502-2103311,"1,894.36",ABBEYVALE.
Adults Wellbeing and Health,Head of Adults,Third Party Payments,470101,Purchase of Care,20-Jun-2013,2607502-2103312,"1,894.36",ABBEYVALE.
Adults Wellbeing and Health,Head of Adults,Third Party Payments,470101,Purchase of Care,20-Jun-2013,2607502-2103313,"1,894.36",ABBEYVALE.
Adults Wellbeing and Health,Head of Adults,Third Party Payments,470101,Purchase of Care,20-Jun-2013,2607502-2105626,"2,500.00",ABBEYVALE.
Adults Wellbeing and Health,Head of Adults,Third Party Payments,470101,Purchase of Care,20-Jun-2013,2607502-2105652,"1,390.00",ABBEYVALE.
Adults Wellbeing and Health,Head of Adults,Third Party Payments,470101,Purchase of Care,20-Jun-2013,2607502-2105653,"2,500.00",ABBEYVALE.
Adults Wellbeing and Health,Head of Adults,Third Party Payments,470101,Purchase of Care,20-Jun-2013,2607502-2105654,"2,400.00",ABBEYVALE.
Adults Wellbeing and Health,Head of Adults,Third Party Payments,470101,Purchase of Care,20-Jun-2013,2607502-2105655,"2,400.00",ABBEYVALE.
Adults Wellbeing and Health,Head of Adults,Third Party Payments,470101,Purchase of Care,20-Jun-2013,2607502-2105656,"2,400.00",ABBEYVALE.
Adults Wellbeing and Health,Head of Adults,Third Party Payments,470101,Purchase of Care,20-Jun-2013,2607502-2105657,"2,400.00",ABBEYVALE.
Adults Wellbeing and Health,Head of Adults,Third Party Payments,470101,Purchase of Care,20-Jun-2013,2607502-2105658,"1,200.00",ABBEYVALE.
Adults Wellbeing and Health,Head of Adults,Third Party Payments,470101,Purchase of Care,20-Jun-2013,2607502-2105659,"2,400.00",ABBEYVALE.
Adults Wellbeing and Health,Head of Adults,Third Party Payments,470101,Purchase of Care,20-Jun-2013,2607502-2105660,"2,400.00",ABBEYVALE.
Adults Wellbeing and Health,Head of Adults,Third Party Payments,471101,Purchase of Care,20-Jun-2013,2607502-2106550,"1,964.28",ABBEYVALE.
Adults Wellbeing and Health,Head of Adults,Third Party Payments,471101,Purchase of Care,20-Jun-2013,2607502-2106551,"1,964.28",ABBEYVALE.
Adults Wellbeing and Health,Head of Adults,Third Party Payments,471101,Purchase of Care,20-Jun-2013,2607502-2106572,701.52,ABBEYVALE.
Adults Wellbeing and Health,Head of Adults,Third Party Payments,471101,Purchase of Care,20-Jun-2013,2607502-2106573,"1,964.28",ABBEYVALE.
Adults Wellbeing and Health,Head of Adults,Third Party Payments,471101,Purchase of Care,20-Jun-2013,2607502-2106574,911.98,ABBEYVALE.
Adults Wellbeing and Health,Head of Adults,Third Party Payments,471101,Purchase of Care,20-Jun-2013,2607502-2106575,"1,964.28",ABBEYVALE.
Adults Wellbeing and Health,Head of Adults,Third Party Payments,471101,Purchase of Care,20-Jun-2013,2607502-2106576,"1,964.28",ABBEYVALE.
Adults Wellbeing and Health,Head of Adults,Third Party Payments,471101,Purchase of Care,20-Jun-2013,2607502-2106577,"1,964.28",ABBEYVALE.
Adults Wellbeing and Health,Head of Adults,Third Party Payments,471101,Purchase of Care,20-Jun-2013,2607502-2106578,"1,964.28",ABBEYVALE.
Adults Wellbeing and Health,Head of Adults,Third Party Payments,471101,Purchase of Care,20-Jun-2013,2607502-2106579,"1,964.28",ABBEYVALE.
Adults Wellbeing and Health,Head of Adults,Third Party Payments,470101,Purchase of Care,20-Jun-2013,2607502-2107357,947.18,ABBEYVALE.
Adults Wellbeing and Health,Head of Adults,Third Party Payments,470101,Purchase of Care,20-Jun-2013,2607503-2104040,"1,792.92",ABBOTTS COURT CARE HOME.
Adults Wellbeing and Health,Head of Adults,Third Party Payments,470101,Purchase of Care,20-Jun-2013,2607503-2104041,"1,792.92",ABBOTTS COURT CARE HOME.
Adults Wellbeing and Health,Head of Adults,Third Party Payments,470101,Purchase of Care,20-Jun-2013,2607503-2104042,"1,792.92",ABBOTTS COURT CARE HOME.
Adults Wellbeing and Health,Head of Adults,Third Party Payments,470101,Purchase of Care,20-Jun-2013,2607503-2104043,"1,792.92",ABBOTTS COURT CARE HOME.
Adults Wellbeing and Health,Head of Adults,Third Party Payments,470101,Purchase of Care,20-Jun-2013,2607503-2104044,"1,792.92",ABBOTTS COURT CARE HOME.
Adults Wellbeing and Health,Head of Adults,Third Party Payments,470101,Purchase of Care,20-Jun-2013,2607503-2104056,"1,792.92",ABBOTTS COURT CARE HOME.
Adults Wellbeing and Health,Head of Adults,Third Party Payments,470101,Purchase of Care,20-Jun-2013,2607503-2104109,"1,792.92",ABBOTTS COURT CARE HOME.
Adults Wellbeing and Health,Head of Adults,Third Party Payments,470101,Purchase of Care,20-Jun-2013,2607503-2104173,"2,305.17",ABBOTTS COURT CARE HOME.
Adults Wellbeing and Health,Head of Adults,Third Party Payments,470101,Purchase of Care,20-Jun-2013,2607503-2104174,704.36,ABBOTTS COURT CARE HOME.
Adults Wellbeing and Health,Head of Adults,Third Party Payments,470101,Purchase of Care,20-Jun-2013,2607503-2104175,"1,792.92",ABBOTTS COURT CARE HOME.
Adults Wellbeing and Health,Head of Adults,Third Party Payments,470101,Purchase of Care,20-Jun-2013,2607503-2104176,"1,792.92",ABBOTTS COURT CARE HOME.
Adults Wellbeing and Health,Head of Adults,Third Party Payments,470101,Purchase of Care,20-Jun-2013,2607503-2104177,576.29,ABBOTTS COURT CARE HOME.
Adults Wellbeing and Health,Head of Adults,Third Party Payments,470101,Purchase of Care,20-Jun-2013,2607503-2104178,"1,792.92",ABBOTTS COURT CARE HOME.
Adults Wellbeing and Health,Head of Adults,Third Party Payments,470101,Purchase of Care,20-Jun-2013,2607503-2104179,"1,216.62",ABBOTTS COURT CARE HOME.
Adults Wellbeing and Health,Head of Adults,Third Party Payments,471101,Purchase of Care,20-Jun-2013,2607503-2107079,"1,863.80",ABBOTTS COURT CARE HOME.
Adults Wellbeing and Health,Head of Adults,Third Party Payments,471101,Purchase of Care,20-Jun-2013,2607503-2107080,"1,863.80",ABBOTTS COURT CARE HOME.
Adults Wellbeing and Health,Head of Adults,Third Party Payments,471101,Purchase of Care,20-Jun-2013,2607503-2107081,"1,863.80",ABBOTTS COURT CARE HOME.
Adults Wellbeing and Health,Head of Adults,Third Party Payments,471101,Purchase of Care,20-Jun-2013,2607503-2107094,"1,863.80",ABBOTTS COURT CARE HOME.
Adults Wellbeing and Health,Head of Adults,Third Party Payments,471101,Purchase of Care,20-Jun-2013,2607503-2107133,"1,863.80",ABBOTTS COURT CARE HOME.
Adults Wellbeing and Health,Head of Adults,Third Party Payments,471101,Purchase of Care,20-Jun-2013,2607503-2107134,"1,863.80",ABBOTTS COURT CARE HOME.
Adults Wellbeing and Health,Head of Adults,Third Party Payments,471101,Purchase of Care,20-Jun-2013,2607503-2107135,"1,863.80",ABBOTTS COURT CARE HOME.
Adults Wellbeing and Health,Head of Adults,Third Party Payments,471101,Purchase of Care,20-Jun-2013,2607503-2107136,"1,863.80",ABBOTTS COURT CARE HOME.
Adults Wellbeing and Health,Head of Adults,Third Party Payments,471101,Purchase of Care,20-Jun-2013,2607503-2107137,"1,863.80",ABBOTTS COURT CARE HOME.
Adults Wellbeing and Health,Head of Adults,Third Party Payments,471101,Purchase of Care,20-Jun-2013,2607503-2107138,"1,863.80",ABBOTTS COURT CARE HOME.
Adults Wellbeing and Health,Head of Adults,Third Party Payments,471101,Purchase of Care,20-Jun-2013,2607503-2107139,"1,863.80",ABBOTTS COURT CARE HOME.
Adults Wellbeing and Health,Head of Adults,Third Party Payments,471101,Purchase of Care,20-Jun-2013,2607503-2107140,"1,863.80",ABBOTTS COURT CARE HOME.
Adults Wellbeing and Health,Head of Adults,Third Party Payments,470101,Purchase of Care,20-Jun-2013,2607503-2107488,640.32,ABBOTTS COURT CARE HOME.
Adults Wellbeing and Health,Head of Adults,Third Party Payments,470101,Purchase of Care,20-Jun-2013,2607505-1336517H,"2,933.48",ACCEPT CARE LTD.
Adults Wellbeing and Health,Head of Adults,Third Party Payments,478101,Purchase of Care,20-Jun-2013,2607505-1336630H,"3,614.60",ACCEPT CARE LTD.
Adults Wellbeing and Health,Head of Adults,Third Party Payments,478101,Purchase of Care,20-Jun-2013,2607505-1336690H,"5,140.08",ACCEPT CARE LTD.
Adults Wellbeing and Health,Head of Adults,Third Party Payments,478101,Purchase of Care,20-Jun-2013,2607505-1336834H,"2,920.52",ACCEPT CARE LTD.
Adults Wellbeing and Health,Head of Adults,Third Party Payments,478101,Purchase of Care,20-Jun-2013,2607505-1336896H,"1,440.80",ACCEPT CARE LTD.
Adults Wellbeing and Health,Head of Adults,Third Party Payments,478101,Purchase of Care,20-Jun-2013,2607505-1337167H,"4,594.92",ACCEPT CARE LTD.
Adults Wellbeing and Health,Head of Adults,Third Party Payments,478101,Purchase of Care,20-Jun-2013,2607505-1337199H,"1,232.00",ACCEPT CARE LTD.
Adults Wellbeing and Health,Head of Adults,Third Party Payments,478101,Purchase of Care,20-Jun-2013,2607505-1337204H,821.32,ACCEPT CARE LTD.
Adults Wellbeing and Health,Head of Adults,Third Party Payments,478101,Purchase of Care,20-Jun-2013,2607505-1337289H,"1,540.00",ACCEPT CARE LTD.
Adults Wellbeing and Health,Head of Adults,Third Party Payments,478101,Purchase of Care,20-Jun-2013,2607505-1337323H,"5,503.52",ACCEPT CARE LTD.
Adults Wellbeing and Health,Head of Adults,Third Party Payments,478101,Purchase of Care,20-Jun-2013,2607505-1337337H,"3,634.40",ACCEPT CARE LTD.
Adults Wellbeing and Health,Head of Adults,Third Party Payments,478101,Purchase of Care,20-Jun-2013,2607505-1337440H,616.00,ACCEPT CARE LTD.
Adults Wellbeing and Health,Head of Adults,Third Party Payments,478101,Purchase of Care,20-Jun-2013,2607505-1337650H,"5,866.96",ACCEPT CARE LTD.
Adults Wellbeing and Health,Head of Adults,Third Party Payments,478101,Purchase of Care,20-Jun-2013,2607505-1337879H,828.68,ACCEPT CARE LTD.
Adults Wellbeing and Health,Head of Adults,Third Party Payments,478101,Purchase of Care,20-Jun-2013,2607505-1337885H,"7,891.84",ACCEPT CARE LTD.
Adults Wellbeing and Health,Head of Adults,Third Party Payments,478101,Purchase of Care,20-Jun-2013,2607505-1337892H,"1,804.00",ACCEPT CARE LTD.
Adults Wellbeing and Health,Head of Adults,Third Party Payments,478101,Purchase of Care,20-Jun-2013,2607505-1337908H,"2,673.88",ACCEPT CARE LTD.
Adults Wellbeing and Health,Head of Adults,Third Party Payments,472101,Purchase of Care,20-Jun-2013,2607505-1337986H,"3,964.00",ACCEPT CARE LTD.
Adults Wellbeing and Health,Head of Adults,Third Party Payments,478101,Purchase of Care,20-Jun-2013,2607505-1338001H,"4,776.64",ACCEPT CARE LTD.
Adults Wellbeing and Health,Head of Adults,Third Party Payments,478101,Purchase of Care,20-Jun-2013,2607505-1338105H,"5,477.56",ACCEPT CARE LTD.
Adults Wellbeing and Health,Head of Adults,Third Party Payments,478101,Purchase of Care,20-Jun-2013,2607505-1338127H,"4,580.52",ACCEPT CARE LTD.
Adults Wellbeing and Health,Head of Adults,Third Party Payments,478101,Purchase of Care,20-Jun-2013,2607505-1338142H,"3,582.48",ACCEPT CARE LTD.
Adults Wellbeing and Health,Head of Adults,Third Party Payments,478101,Purchase of Care,20-Jun-2013,2607505-1338182H,"1,635.52",ACCEPT CARE LTD.
Adults Wellbeing and Health,Head of Adults,Third Party Payments,478101,Purchase of Care,20-Jun-2013,2607505-1338204H,"3,997.84",ACCEPT CARE LTD.
Adults Wellbeing and Health,Head of Adults,Third Party Payments,478101,Purchase of Care,20-Jun-2013,2607505-1338315H,"7,762.04",ACCEPT CARE LTD.
Adults Wellbeing and Health,Head of Adults,Third Party Payments,478101,Purchase of Care,20-Jun-2013,2607505-1338318H,"11,889.68",ACCEPT CARE LTD.
Adults Wellbeing and Health,Head of Adults,Third Party Payments,478101,Purchase of Care,20-Jun-2013,2607505-1338330H,"3,011.36",ACCEPT CARE LTD.
Adults Wellbeing and Health,Head of Adults,Third Party Payments,478101,Purchase of Care,20-Jun-2013,2607505-1338428H,"5,224.00",ACCEPT CARE LTD.
Adults Wellbeing and Health,Head of Adults,Third Party Payments,478101,Purchase of Care,20-Jun-2013,2607505-1338436H,"6,541.92",ACCEPT CARE LTD.
Adults Wellbeing and Health,Head of Adults,Third Party Payments,478101,Purchase of Care,20-Jun-2013,2607505-1338529H,672.00,ACCEPT CARE LTD.
Adults Wellbeing and Health,Head of Adults,Third Party Payments,478101,Purchase of Care,20-Jun-2013,2607505-1338530H,"3,115.20",ACCEPT CARE LTD.
Adults Wellbeing and Health,Head of Adults,Third Party Payments,472101,Purchase of Care,20-Jun-2013,2607505-1338975H,672.00,ACCEPT CARE LTD.
Adults Wellbeing and Health,Head of Adults,Third Party Payments,478101,Purchase of Care,20-Jun-2013,2607505-1339125H,"6,384.00",ACCEPT CARE LTD.
Adults Wellbeing and Health,Head of Adults,Third Party Payments,478101,Purchase of Care,20-Jun-2013,2607505-1339168H,"2,284.48",ACCEPT CARE LTD.
Adults Wellbeing and Health,Head of Adults,Third Party Payments,478101,Purchase of Care,20-Jun-2013,2607505-1339398H,756.00,ACCEPT CARE LTD.
Adults Wellbeing and Health,Head of Adults,Third Party Payments,478101,Purchase of Care,20-Jun-2013,2607505-1339402H,"1,232.00",ACCEPT CARE LTD.
Adults Wellbeing and Health,Head of Adults,Third Party Payments,478101,Purchase of Care,20-Jun-2013,2607505-1339419H,"1,108.00",ACCEPT CARE LTD.
Adults Wellbeing and Health,Head of Adults,Third Party Payments,478101,Purchase of Care,20-Jun-2013,2607505-1339719H,"6,905.36",ACCEPT CARE LTD.
Adults Wellbeing and Health,Head of Adults,Third Party Payments,478101,Purchase of Care,20-Jun-2013,2607505-1339906H,"4,698.76",ACCEPT CARE LTD.
Adults Wellbeing and Health,Head of Adults,Third Party Payments,478101,Purchase of Care,20-Jun-2013,2607505-1339982H,990.00,ACCEPT CARE LTD.
Adults Wellbeing and Health,Head of Adults,Third Party Payments,478101,Purchase of Care,20-Jun-2013,2607505-1340012H,"4,984.00",ACCEPT CARE LTD.
Adults Wellbeing and Health,Head of Adults,Third Party Payments,478101,Purchase of Care,20-Jun-2013,2607505-1340104H,"13,810.72",ACCEPT CARE LTD.
Adults Wellbeing and Health,Head of Adults,Third Party Payments,478101,Purchase of Care,20-Jun-2013,2607505-1340464H,"3,816.12",ACCEPT CARE LTD.
Adults Wellbeing and Health,Head of Adults,Third Party Payments,478101,Purchase of Care,20-Jun-2013,2607505-1341348H,"5,815.04",ACCEPT CARE LTD.
Adults Wellbeing and Health,Head of Adults,Third Party Payments,478101,Purchase of Care,20-Jun-2013,2607505-1341394H,932.00,ACCEPT CARE LTD.
Adults Wellbeing and Health,Head of Adults,Third Party Payments,478101,Purchase of Care,20-Jun-2013,2607505-1342029H,"1,136.00",ACCEPT CARE LTD.
Adults Wellbeing and Health,Head of Adults,Third Party Payments,478101,Purchase of Care,20-Jun-2013,2607505-1342539H,528.00,ACCEPT CARE LTD.
Adults Wellbeing and Health,Head of Adults,Third Party Payments,470101,Purchase of Care,20-Jun-2013,2607708-1337022D,692.32,REDACTED - PAYMENT TO INDIVIDUAL
Adults Wellbeing and Health,Head of Adults,Third Party Payments,470101,Purchase of Care,20-Jun-2013,2607830-2103149,"1,864.56",ACOMB COURT.
Adults Wellbeing and Health,Head of Adults,Third Party Payments,473101,Purchase of Care,20-Jun-2013,2607831-1342164D,536.96,ACORN GRANGE NURSING HOME.
Adults Wellbeing and Health,Head of Adults,Third Party Payments,473101,Purchase of Care,20-Jun-2013,2607831-1342416D,684.00,ACORN GRANGE NURSING HOME.
Adults Wellbeing and Health,Head of Adults,Third Party Payments,473101,Purchase of Care,20-Jun-2013,2607831-1342604D,575.85,ACORN GRANGE NURSING HOME.
Adults Wellbeing and Health,Head of Adults,Third Party Payments,473101,Purchase of Care,20-Jun-2013,2607831-1342801D,531.96,ACORN GRANGE NURSING HOME.
Adults Wellbeing and Health,Head of Adults,Third Party Payments,470101,Purchase of Care,20-Jun-2013,2607831-2103948,"1,792.92",ACORN GRANGE NURSING HOME.
Adults Wellbeing and Health,Head of Adults,Third Party Payments,470101,Purchase of Care,20-Jun-2013,2607831-2103949,"1,792.92",ACORN GRANGE NURSING HOME.
Adults Wellbeing and Health,Head of Adults,Third Party Payments,470101,Purchase of Care,20-Jun-2013,2607831-2103950,"1,792.92",ACORN GRANGE NURSING HOME.
Adults Wellbeing and Health,Head of Adults,Third Party Payments,470101,Purchase of Care,20-Jun-2013,2607831-2103951,"1,792.92",ACORN GRANGE NURSING HOME.
Adults Wellbeing and Health,Head of Adults,Third Party Payments,470101,Purchase of Care,20-Jun-2013,2607831-2103952,"1,792.92",ACORN GRANGE NURSING HOME.
Adults Wellbeing and Health,Head of Adults,Third Party Payments,470101,Purchase of Care,20-Jun-2013,2607831-2103953,"1,792.92",ACORN GRANGE NURSING HOME.
Adults Wellbeing and Health,Head of Adults,Third Party Payments,470101,Purchase of Care,20-Jun-2013,2607831-2103955,"1,792.92",ACORN GRANGE NURSING HOME.
Adults Wellbeing and Health,Head of Adults,Third Party Payments,470101,Purchase of Care,20-Jun-2013,2607831-2103956,"1,792.92",ACORN GRANGE NURSING HOME.
Adults Wellbeing and Health,Head of Adults,Third Party Payments,470101,Purchase of Care,20-Jun-2013,2607831-2103957,"1,792.92",ACORN GRANGE NURSING HOME.
Adults Wellbeing and Health,Head of Adults,Third Party Payments,470101,Purchase of Care,20-Jun-2013,2607831-2103958,"1,792.92",ACORN GRANGE NURSING HOME.
Adults Wellbeing and Health,Head of Adults,Third Party Payments,470101,Purchase of Care,20-Jun-2013,2607831-2103959,"1,792.92",ACORN GRANGE NURSING HOME.
Adults Wellbeing and Health,Head of Adults,Third Party Payments,470101,Purchase of Care,20-Jun-2013,2607831-2103961,"1,792.92",ACORN GRANGE NURSING HOME.
Adults Wellbeing and Health,Head of Adults,Third Party Payments,470101,Purchase of Care,20-Jun-2013,2607831-2103962,"1,792.92",ACORN GRANGE NURSING HOME.
Adults Wellbeing and Health,Head of Adults,Third Party Payments,470101,Purchase of Care,20-Jun-2013,2607831-2103963,"1,792.92",ACORN GRANGE NURSING HOME.
Adults Wellbeing and Health,Head of Adults,Third Party Payments,471101,Purchase of Care,20-Jun-2013,2607831-2107031,"1,863.80",ACORN GRANGE NURSING HOME.
Adults Wellbeing and Health,Head of Adults,Third Party Payments,471101,Purchase of Care,20-Jun-2013,2607831-2107032,"1,863.80",ACORN GRANGE NURSING HOME.
Adults Wellbeing and Health,Head of Adults,Third Party Payments,471101,Purchase of Care,20-Jun-2013,2607831-2107033,"1,863.80",ACORN GRANGE NURSING HOME.
Adults Wellbeing and Health,Head of Adults,Third Party Payments,471101,Purchase of Care,20-Jun-2013,2607831-2107034,"1,863.80",ACORN GRANGE NURSING HOME.
Adults Wellbeing and Health,Head of Adults,Third Party Payments,471101,Purchase of Care,20-Jun-2013,2607831-2107035,"1,863.80",ACORN GRANGE NURSING HOME.
Adults Wellbeing and Health,Head of Adults,Third Party Payments,471101,Purchase of Care,20-Jun-2013,2607831-2107036,"1,863.80",ACORN GRANGE NURSING HOME.
Adults Wellbeing and Health,Head of Adults,Third Party Payments,471101,Purchase of Care,20-Jun-2013,2607831-2107037,"1,863.80",ACORN GRANGE NURSING HOME.
Adults Wellbeing and Health,Head of Adults,Third Party Payments,471101,Purchase of Care,20-Jun-2013,2607831-2107038,"1,863.80",ACORN GRANGE NURSING HOME.
Adults Wellbeing and Health,Head of Adults,Third Party Payments,471101,Purchase of Care,20-Jun-2013,2607831-2107039,"1,863.80",ACORN GRANGE NURSING HOME.
Adults Wellbeing and Health,Head of Adults,Third Party Payments,471101,Purchase of Care,20-Jun-2013,2607831-2107040,"1,863.80",ACORN GRANGE NURSING HOME.
Adults Wellbeing and Health,Head of Adults,Third Party Payments,471101,Purchase of Care,20-Jun-2013,2607831-2107041,"1,863.80",ACORN GRANGE NURSING HOME.
Adults Wellbeing and Health,Head of Adults,Third Party Payments,471101,Purchase of Care,20-Jun-2013,2607831-2107042,"1,863.80",ACORN GRANGE NURSING HOME.
Adults Wellbeing and Health,Head of Adults,Third Party Payments,471101,Purchase of Care,20-Jun-2013,2607831-2107043,"1,863.80",ACORN GRANGE NURSING HOME.
Adults Wellbeing and Health,Head of Adults,Third Party Payments,471101,Purchase of Care,20-Jun-2013,2607831-2107044,"1,863.80",ACORN GRANGE NURSING HOME.
Adults Wellbeing and Health,Head of Adults,Third Party Payments,471101,Purchase of Care,20-Jun-2013,2607831-2107045,"1,863.80",ACORN GRANGE NURSING HOME.
Adults Wellbeing and Health,Head of Adults,Third Party Payments,471101,Purchase of Care,20-Jun-2013,2607831-2107046,"1,863.80",ACORN GRANGE NURSING HOME.
Adults Wellbeing and Health,Head of Adults,Third Party Payments,471101,Purchase of Care,20-Jun-2013,2607831-2107047,"1,863.80",ACORN GRANGE NURSING HOME.
Adults Wellbeing and Health,Head of Adults,Third Party Payments,471101,Purchase of Care,20-Jun-2013,2607831-2107049,"1,863.80",ACORN GRANGE NURSING HOME.
Adults Wellbeing and Health,Head of Adults,Third Party Payments,471101,Purchase of Care,20-Jun-2013,2607831-2107050,"1,863.80",ACORN GRANGE NURSING HOME.
Adults Wellbeing and Health,Head of Adults,Third Party Payments,471101,Purchase of Care,20-Jun-2013,2607831-2107051,"1,863.80",ACORN GRANGE NURSING HOME.
Adults Wellbeing and Health,Head of Adults,Third Party Payments,471101,Purchase of Care,20-Jun-2013,2607831-2107052,"1,863.80",ACORN GRANGE NURSING HOME.
Adults Wellbeing and Health,Head of Adults,Third Party Payments,471101,Purchase of Care,20-Jun-2013,2607831-2107053,"1,863.80",ACORN GRANGE NURSING HOME.
Adults Wellbeing and Health,Head of Adults,Third Party Payments,474101,Purchase of Care,20-Jun-2013,2607843-2104691,"1,602.80",ADEY GARDENS CARE HOME.
Adults Wellbeing and Health,Head of Adults,Third Party Payments,474101,Purchase of Care,20-Jun-2013,2607844-2106223,"1,672.00",ADMIRAL COURT.
Adults Wellbeing and Health,Head of Adults,Third Party Payments,474101,Purchase of Care,20-Jun-2013,2607844-2106224,"1,672.00",ADMIRAL COURT.
Adults Wellbeing and Health,Head of Adults,Third Party Payments,474101,Purchase of Care,20-Jun-2013,2607844-2106225,"1,672.00",ADMIRAL COURT.
Adults Wellbeing and Health,Head of Adults,Third Party Payments,471101,Purchase of Care,20-Jun-2013,2607844-2106820,"1,672.00",ADMIRAL COURT.
Adults Wellbeing and Health,Head of Adults,Third Party Payments,470101,Purchase of Care,20-Jun-2013,2607883-2103763,"1,792.92",ALLIANCE CARE.
Adults Wellbeing and Health,Head of Adults,Third Party Payments,470101,Purchase of Care,20-Jun-2013,2607883-2103764,"1,792.92",ALLIANCE CARE.
Adults Wellbeing and Health,Head of Adults,Third Party Payments,470101,Purchase of Care,20-Jun-2013,2607883-2103765,"1,268.32",ALLIANCE CARE.
Adults Wellbeing and Health,Head of Adults,Third Party Payments,470101,Purchase of Care,20-Jun-2013,2607883-2103766,"1,189.68",ALLIANCE CARE.
Adults Wellbeing and Health,Head of Adults,Third Party Payments,470101,Purchase of Care,20-Jun-2013,2607883-2103767,"1,306.92",ALLIANCE CARE.
Adults Wellbeing and Health,Head of Adults,Third Party Payments,470101,Purchase of Care,20-Jun-2013,2607883-2103768,"1,257.08",ALLIANCE CARE.
Adults Wellbeing and Health,Head of Adults,Third Party Payments,470101,Purchase of Care,20-Jun-2013,2607883-2103770,"1,052.92",ALLIANCE CARE.
Adults Wellbeing and Health,Head of Adults,Third Party Payments,470101,Purchase of Care,20-Jun-2013,2607883-2103771,"1,068.72",ALLIANCE CARE.
Adults Wellbeing and Health,Head of Adults,Third Party Payments,470101,Purchase of Care,20-Jun-2013,2607883-2103772,"1,792.92",ALLIANCE CARE.
Adults Wellbeing and Health,Head of Adults,Third Party Payments,470101,Purchase of Care,20-Jun-2013,2607883-2103774,"1,306.92",ALLIANCE CARE.
Adults Wellbeing and Health,Head of Adults,Third Party Payments,470101,Purchase of Care,20-Jun-2013,2607883-2103775,"1,031.80",ALLIANCE CARE.
Adults Wellbeing and Health,Head of Adults,Third Party Payments,470101,Purchase of Care,20-Jun-2013,2607883-2103776,"1,792.92",ALLIANCE CARE.
Adults Wellbeing and Health,Head of Adults,Third Party Payments,470101,Purchase of Care,20-Jun-2013,2607883-2103777,"1,911.52",ALLIANCE CARE.
Adults Wellbeing and Health,Head of Adults,Third Party Payments,470101,Purchase of Care,20-Jun-2013,2607883-2103778,"1,306.92",ALLIANCE CARE.
Adults Wellbeing and Health,Head of Adults,Third Party Payments,470101,Purchase of Care,20-Jun-2013,2607883-2103779,"1,306.92",ALLIANCE CARE.
Adults Wellbeing and Health,Head of Adults,Third Party Payments,474101,Purchase of Care,20-Jun-2013,2607883-2104829,"1,379.32",ALLIANCE CARE.
Adults Wellbeing and Health,Head of Adults,Third Party Payments,474101,Purchase of Care,20-Jun-2013,2607883-2104831,"1,247.36",ALLIANCE CARE.
Adults Wellbeing and Health,Head of Adults,Third Party Payments,474101,Purchase of Care,20-Jun-2013,2607883-2104834,"1,468.00",ALLIANCE CARE.
Adults Wellbeing and Health,Head of Adults,Third Party Payments,474101,Purchase of Care,20-Jun-2013,2607883-2104836,"1,396.44",ALLIANCE CARE.
Adults Wellbeing and Health,Head of Adults,Third Party Payments,474101,Purchase of Care,20-Jun-2013,2607883-2104838,"1,334.24",ALLIANCE CARE.
Adults Wellbeing and Health,Head of Adults,Third Party Payments,470101,Purchase of Care,20-Jun-2013,2607883-2105445,"1,563.59",ALLIANCE CARE.
Adults Wellbeing and Health,Head of Adults,Third Party Payments,471101,Purchase of Care,20-Jun-2013,2607883-2106919,"1,261.96",ALLIANCE CARE.
Adults Wellbeing and Health,Head of Adults,Third Party Payments,471101,Purchase of Care,20-Jun-2013,2607883-2106920,"1,029.68",ALLIANCE CARE.
Adults Wellbeing and Health,Head of Adults,Third Party Payments,471101,Purchase of Care,20-Jun-2013,2607883-2106921,"1,622.73",ALLIANCE CARE.
Adults Wellbeing and Health,Head of Adults,Third Party Payments,471101,Purchase of Care,20-Jun-2013,2607883-2106922,"1,377.80",ALLIANCE CARE.
Adults Wellbeing and Health,Head of Adults,Third Party Payments,471101,Purchase of Care,20-Jun-2013,2607883-2106923,"1,312.36",ALLIANCE CARE.
Adults Wellbeing and Health,Head of Adults,Third Party Payments,471101,Purchase of Care,20-Jun-2013,2607883-2106924,"1,377.80",ALLIANCE CARE.
Adults Wellbeing and Health,Head of Adults,Third Party Payments,471101,Purchase of Care,20-Jun-2013,2607883-2106925,"1,863.80",ALLIANCE CARE.
Adults Wellbeing and Health,Head of Adults,Third Party Payments,471101,Purchase of Care,20-Jun-2013,2607883-2106926,"1,144.36",ALLIANCE CARE.
Adults Wellbeing and Health,Head of Adults,Third Party Payments,471101,Purchase of Care,20-Jun-2013,2607883-2106927,"1,365.28",ALLIANCE CARE.
Adults Wellbeing and Health,Head of Adults,Third Party Payments,471101,Purchase of Care,20-Jun-2013,2607883-2106928,"1,863.80",ALLIANCE CARE.
Adults Wellbeing and Health,Head of Adults,Third Party Payments,471101,Purchase of Care,20-Jun-2013,2607883-2106929,"1,272.60",ALLIANCE CARE.
Adults Wellbeing and Health,Head of Adults,Third Party Payments,471101,Purchase of Care,20-Jun-2013,2607883-2106930,"1,194.36",ALLIANCE CARE.
Adults Wellbeing and Health,Head of Adults,Third Party Payments,471101,Purchase of Care,20-Jun-2013,2607883-2106931,"1,863.80",ALLIANCE CARE.
Adults Wellbeing and Health,Head of Adults,Third Party Payments,471101,Purchase of Care,20-Jun-2013,2607883-2106932,916.68,ALLIANCE CARE.
Adults Wellbeing and Health,Head of Adults,Third Party Payments,471101,Purchase of Care,20-Jun-2013,2607883-2107484,"1,065.02",ALLIANCE CARE.
Adults Wellbeing and Health,Head of Adults,Third Party Payments,470101,Purchase of Care,20-Jun-2013,2607883-2107562,576.29,ALLIANCE CARE.
Adults Wellbeing and Health,Head of Adults,Third Party Payments,470101,Purchase of Care,20-Jun-2013,2607884-2105455,"1,959.76",ALLIANCE CARE.
Adults Wellbeing and Health,Head of Adults,Third Party Payments,470101,Purchase of Care,20-Jun-2013,2607884-2105458,"1,607.16",ALLIANCE CARE.
Adults Wellbeing and Health,Head of Adults,Third Party Payments,470101,Purchase of Care,20-Jun-2013,2607884-2105460,"1,959.76",ALLIANCE CARE.
Adults Wellbeing and Health,Head of Adults,Third Party Payments,470101,Purchase of Care,20-Jun-2013,2607884-2105462,901.36,ALLIANCE CARE.
Adults Wellbeing and Health,Head of Adults,Third Party Payments,470101,Purchase of Care,20-Jun-2013,2607884-2105463,"1,644.56",ALLIANCE CARE.
Adults Wellbeing and Health,Head of Adults,Third Party Payments,474101,Purchase of Care,20-Jun-2013,2607884-2105519,"1,993.88",ALLIANCE CARE.
Adults Wellbeing and Health,Head of Adults,Third Party Payments,474101,Purchase of Care,20-Jun-2013,2607884-2105525,"1,993.88",ALLIANCE CARE.
Adults Wellbeing and Health,Head of Adults,Third Party Payments,474101,Purchase of Care,20-Jun-2013,2607884-2107458,"1,495.41",ALLIANCE CARE.
Adults Wellbeing and Health,Head of Adults,Third Party Payments,470101,Purchase of Care,20-Jun-2013,2607889-2103150,"1,564.08",AMELIA HOUSE.
Adults Wellbeing and Health,Head of Adults,Third Party Payments,474101,Purchase of Care,20-Jun-2013,2607913-2105496,"1,461.60",ANN CHARLTON LODGE.
Adults Wellbeing and Health,Head of Adults,Third Party Payments,472101,Purchase of Care,20-Jun-2013,2607928-1336956H,637.69,APPLEJACK HOME CARE LTD.
Adults Wellbeing and Health,Head of Adults,Third Party Payments,472101,Purchase of Care,20-Jun-2013,2607928-1337057H,"1,386.24",APPLEJACK HOME CARE LTD.
Adults Wellbeing and Health,Head of Adults,Third Party Payments,472101,Purchase of Care,20-Jun-2013,2607928-1339062H,942.64,APPLEJACK HOME CARE LTD.
Adults Wellbeing and Health,Head of Adults,Third Party Payments,472101,Purchase of Care,20-Jun-2013,2607928-1339144H,532.32,APPLEJACK HOME CARE LTD.
Adults Wellbeing and Health,Head of Adults,Third Party Payments,472101,Purchase of Care,20-Jun-2013,2607928-1339765H,591.48,APPLEJACK HOME CARE LTD.
Adults Wellbeing and Health,Head of Adults,Third Party Payments,472101,Purchase of Care,20-Jun-2013,2607928-1340152H,576.68,APPLEJACK HOME CARE LTD.
Adults Wellbeing and Health,Head of Adults,Third Party Payments,472101,Purchase of Care,20-Jun-2013,2607928-1340468H,654.32,APPLEJACK HOME CARE LTD.
Adults Wellbeing and Health,Head of Adults,Third Party Payments,472101,Purchase of Care,20-Jun-2013,2607928-1340488H,"1,563.68",APPLEJACK HOME CARE LTD.
Adults Wellbeing and Health,Head of Adults,Third Party Payments,472101,Purchase of Care,20-Jun-2013,2607928-1340548H,671.22,APPLEJACK HOME CARE LTD.
Adults Wellbeing and Health,Head of Adults,Third Party Payments,472101,Purchase of Care,20-Jun-2013,2607928-1340910H,547.11,APPLEJACK HOME CARE LTD.
Adults Wellbeing and Health,Head of Adults,Third Party Payments,472101,Purchase of Care,20-Jun-2013,2607928-1341021H,924.16,APPLEJACK HOME CARE LTD.
Adults Wellbeing and Health,Head of Adults,Third Party Payments,472101,Purchase of Care,20-Jun-2013,2607928-1341033H,731.96,APPLEJACK HOME CARE LTD.
Adults Wellbeing and Health,Head of Adults,Third Party Payments,472101,Purchase of Care,20-Jun-2013,2607928-1341266H,525.38,APPLEJACK HOME CARE LTD.
Adults Wellbeing and Health,Head of Adults,Third Party Payments,472101,Purchase of Care,20-Jun-2013,2607928-1341295H,554.51,APPLEJACK HOME CARE LTD.
Adults Wellbeing and Health,Head of Adults,Third Party Payments,472101,Purchase of Care,20-Jun-2013,2607928-1341384H,"1,042.46",APPLEJACK HOME CARE LTD.
Adults Wellbeing and Health,Head of Adults,Third Party Payments,472101,Purchase of Care,20-Jun-2013,2607928-1341398H,713.44,APPLEJACK HOME CARE LTD.
Adults Wellbeing and Health,Head of Adults,Third Party Payments,472101,Purchase of Care,20-Jun-2013,2607928-1341663H,765.77,APPLEJACK HOME CARE LTD.
Adults Wellbeing and Health,Head of Adults,Third Party Payments,472101,Purchase of Care,20-Jun-2013,2607928-1341837H,572.25,APPLEJACK HOME CARE LTD.
Adults Wellbeing and Health,Head of Adults,Third Party Payments,472101,Purchase of Care,20-Jun-2013,2607928-1341843H,576.68,APPLEJACK HOME CARE LTD.
Adults Wellbeing and Health,Head of Adults,Third Party Payments,472101,Purchase of Care,20-Jun-2013,2607928-1341898H,627.51,APPLEJACK HOME CARE LTD.
Adults Wellbeing and Health,Head of Adults,Third Party Payments,472101,Purchase of Care,20-Jun-2013,2607928-1341967H,539.72,APPLEJACK HOME CARE LTD.
Adults Wellbeing and Health,Head of Adults,Third Party Payments,472101,Purchase of Care,20-Jun-2013,2607928-1342129H,709.76,APPLEJACK HOME CARE LTD.
Adults Wellbeing and Health,Head of Adults,Third Party Payments,472101,Purchase of Care,20-Jun-2013,2607928-1342160H,687.60,APPLEJACK HOME CARE LTD.
Adults Wellbeing and Health,Head of Adults,Third Party Payments,472101,Purchase of Care,20-Jun-2013,2607928-1342420H,505.68,APPLEJACK HOME CARE LTD.
Adults Wellbeing and Health,Head of Adults,Third Party Payments,472101,Purchase of Care,20-Jun-2013,2607928-1342690H,743.04,APPLEJACK HOME CARE LTD.
Adults Wellbeing and Health,Head of Adults,Third Party Payments,472101,Purchase of Care,20-Jun-2013,2607928-1342702H,"1,763.51",APPLEJACK HOME CARE LTD.
Adults Wellbeing and Health,Head of Adults,Third Party Payments,472101,Purchase of Care,20-Jun-2013,2607928-1342816H,510.88,APPLEJACK HOME CARE LTD.
Adults Wellbeing and Health,Head of Adults,Third Party Payments,472101,Purchase of Care,20-Jun-2013,2607928-1342867H,731.02,APPLEJACK HOME CARE LTD.
Adults Wellbeing and Health,Head of Adults,Third Party Payments,472101,Purchase of Care,20-Jun-2013,2607928-1342947H,"1,394.09",APPLEJACK HOME CARE LTD.
Adults Wellbeing and Health,Head of Adults,Third Party Payments,472101,Purchase of Care,20-Jun-2013,2607928-1343094H,537.87,APPLEJACK HOME CARE LTD.
Adults Wellbeing and Health,Head of Adults,Third Party Payments,472101,Purchase of Care,20-Jun-2013,2607928-1343111H,724.56,APPLEJACK HOME CARE LTD.
Adults Wellbeing and Health,Head of Adults,Third Party Payments,472101,Purchase of Care,20-Jun-2013,2607928-1343119H,804.40,APPLEJACK HOME CARE LTD.
Adults Wellbeing and Health,Head of Adults,Third Party Payments,472101,Purchase of Care,20-Jun-2013,2607928-1343120H,760.92,APPLEJACK HOME CARE LTD.
Adults Wellbeing and Health,Head of Adults,Third Party Payments,470101,Purchase of Care,20-Jun-2013,2607933-2104097,"1,319.28",ASCOT CARE NORTHEAST LTD.
Adults Wellbeing and Health,Head of Adults,Third Party Payments,470101,Purchase of Care,20-Jun-2013,2607933-2104100,"1,792.92",ASCOT CARE NORTHEAST LTD.
Adults Wellbeing and Health,Head of Adults,Third Party Payments,470101,Purchase of Care,20-Jun-2013,2607933-2104127,"1,024.52",ASCOT CARE NORTHEAST LTD.
Adults Wellbeing and Health,Head of Adults,Third Party Payments,470101,Purchase of Care,20-Jun-2013,2607933-2104150,"1,162.64",ASCOT CARE NORTHEAST LTD.
Adults Wellbeing and Health,Head of Adults,Third Party Payments,470101,Purchase of Care,20-Jun-2013,2607933-2104197,"1,205.84",ASCOT CARE NORTHEAST LTD.
Adults Wellbeing and Health,Head of Adults,Third Party Payments,470101,Purchase of Care,20-Jun-2013,2607933-2104198,"1,792.92",ASCOT CARE NORTHEAST LTD.
Adults Wellbeing and Health,Head of Adults,Third Party Payments,474101,Purchase of Care,20-Jun-2013,2607933-2104969,"1,285.00",ASCOT CARE NORTHEAST LTD.
Adults Wellbeing and Health,Head of Adults,Third Party Payments,474101,Purchase of Care,20-Jun-2013,2607933-2105050,"1,348.04",ASCOT CARE NORTHEAST LTD.
Adults Wellbeing and Health,Head of Adults,Third Party Payments,474101,Purchase of Care,20-Jun-2013,2607933-2105052,"1,295.32",ASCOT CARE NORTHEAST LTD.
Adults Wellbeing and Health,Head of Adults,Third Party Payments,474101,Purchase of Care,20-Jun-2013,2607933-2105054,519.80,ASCOT CARE NORTHEAST LTD.
Adults Wellbeing and Health,Head of Adults,Third Party Payments,474101,Purchase of Care,20-Jun-2013,2607933-2105125,"1,226.36",ASCOT CARE NORTHEAST LTD.
Adults Wellbeing and Health,Head of Adults,Third Party Payments,471101,Purchase of Care,20-Jun-2013,2607933-2107141,"1,110.72",ASCOT CARE NORTHEAST LTD.
Adults Wellbeing and Health,Head of Adults,Third Party Payments,471101,Purchase of Care,20-Jun-2013,2607933-2107142,"1,072.92",ASCOT CARE NORTHEAST LTD.
Adults Wellbeing and Health,Head of Adults,Third Party Payments,471101,Purchase of Care,20-Jun-2013,2607933-2107143,"1,863.80",ASCOT CARE NORTHEAST LTD.
Adults Wellbeing and Health,Head of Adults,Third Party Payments,471101,Purchase of Care,20-Jun-2013,2607933-2107144,"1,346.68",ASCOT CARE NORTHEAST LTD.
Adults Wellbeing and Health,Head of Adults,Third Party Payments,470101,Purchase of Care,20-Jun-2013,2607934-2103800,"1,672.00",ASCOT CARE T/A THE GARDENS CARE HOME.
Adults Wellbeing and Health,Head of Adults,Third Party Payments,470101,Purchase of Care,20-Jun-2013,2607934-2103821,"1,672.00",ASCOT CARE T/A THE GARDENS CARE HOME.
Adults Wellbeing and Health,Head of Adults,Third Party Payments,470101,Purchase of Care,20-Jun-2013,2607938-2103154,"2,352.00",ASHFIELD NURSING HOME LTD.
Adults Wellbeing and Health,Head of Adults,Third Party Payments,470101,Purchase of Care,20-Jun-2013,2607940-2105663,950.00,ASHLEIGH HOUSE CARE HOME.
Adults Wellbeing and Health,Head of Adults,Third Party Payments,470101,Purchase of Care,20-Jun-2013,2607940-2105664,"1,102.00",ASHLEIGH HOUSE CARE HOME.
Adults Wellbeing and Health,Head of Adults,Third Party Payments,470101,Purchase of Care,20-Jun-2013,2607940-2105665,"1,660.20",ASHLEIGH HOUSE CARE HOME.
Adults Wellbeing and Health,Head of Adults,Third Party Payments,471101,Purchase of Care,20-Jun-2013,2607943-2106481,"1,818.56",ASTOR LODGE VIEW.
Adults Wellbeing and Health,Head of Adults,Third Party Payments,478101,Purchase of Care,20-Jun-2013,2607953-1336525H,"6,807.20",AUTISM CARE UK (4) LTD.
Adults Wellbeing and Health,Head of Adults,Third Party Payments,478101,Purchase of Care,20-Jun-2013,2607953-1336953H,"4,148.64",AUTISM CARE UK (4) LTD.
Adults Wellbeing and Health,Head of Adults,Third Party Payments,478101,Purchase of Care,20-Jun-2013,2607953-1338037H,"6,400.80",AUTISM CARE UK (4) LTD.
Adults Wellbeing and Health,Head of Adults,Third Party Payments,478101,Purchase of Care,20-Jun-2013,2607953-1338075H,"4,148.64",AUTISM CARE UK (4) LTD.
Adults Wellbeing and Health,Head of Adults,Third Party Payments,478101,Purchase of Care,20-Jun-2013,2607953-1338192H,"3,378.20",AUTISM CARE UK (4) LTD.
Adults Wellbeing and Health,Head of Adults,Third Party Payments,478101,Purchase of Care,20-Jun-2013,2607953-1338288H,"3,200.40",AUTISM CARE UK (4) LTD.
Adults Wellbeing and Health,Head of Adults,Third Party Payments,478101,Purchase of Care,20-Jun-2013,2607953-1338308H,"4,148.64",AUTISM CARE UK (4) LTD.
Adults Wellbeing and Health,Head of Adults,Third Party Payments,478101,Purchase of Care,20-Jun-2013,2607953-1338309H,"4,148.64",AUTISM CARE UK (4) LTD.
Adults Wellbeing and Health,Head of Adults,Third Party Payments,478101,Purchase of Care,20-Jun-2013,2607953-1338310H,"4,148.64",AUTISM CARE UK (4) LTD.
Adults Wellbeing and Health,Head of Adults,Third Party Payments,478101,Purchase of Care,20-Jun-2013,2607953-1339128H,"4,958.08",AUTISM CARE UK (4) LTD.
Adults Wellbeing and Health,Head of Adults,Third Party Payments,470101,Purchase of Care,20-Jun-2013,2607953-2105754,"4,480.00",AUTISM CARE UK (4) LTD.
Adults Wellbeing and Health,Head of Adults,Third Party Payments,470101,Purchase of Care,20-Jun-2013,2607953-2105756,"1,797.68",AUTISM CARE UK (4) LTD.
Adults Wellbeing and Health,Head of Adults,Third Party Payments,470101,Purchase of Care,20-Jun-2013,2607953-2105757,"2,907.80",AUTISM CARE UK (4) LTD.
Adults Wellbeing and Health,Head of Adults,Third Party Payments,470101,Purchase of Care,20-Jun-2013,2607954-2105732,"9,625.52",AUTISM NORTH.
Adults Wellbeing and Health,Head of Adults,Third Party Payments,470101,Purchase of Care,20-Jun-2013,2607954-2105733,"9,803.68",AUTISM NORTH.
Adults Wellbeing and Health,Head of Adults,Third Party Payments,470101,Purchase of Care,20-Jun-2013,2607955-2105753,"6,478.68",AUTISM NORTH.
Adults Wellbeing and Health,Head of Adults,Third Party Payments,470101,Purchase of Care,20-Jun-2013,2607959-2103283,"1,792.92",AYCLIFFE CARE HOME.
Adults Wellbeing and Health,Head of Adults,Third Party Payments,470101,Purchase of Care,20-Jun-2013,2607959-2103284,"1,792.92",AYCLIFFE CARE HOME.
Adults Wellbeing and Health,Head of Adults,Third Party Payments,470101,Purchase of Care,20-Jun-2013,2607959-2103285,"1,792.92",AYCLIFFE CARE HOME.
Adults Wellbeing and Health,Head of Adults,Third Party Payments,470101,Purchase of Care,20-Jun-2013,2607959-2103288,"1,792.92",AYCLIFFE CARE HOME.
Adults Wellbeing and Health,Head of Adults,Third Party Payments,470101,Purchase of Care,20-Jun-2013,2607959-2103290,"1,792.92",AYCLIFFE CARE HOME.
Adults Wellbeing and Health,Head of Adults,Third Party Payments,470101,Purchase of Care,20-Jun-2013,2607959-2103291,"1,792.92",AYCLIFFE CARE HOME.
Adults Wellbeing and Health,Head of Adults,Third Party Payments,470101,Purchase of Care,20-Jun-2013,2607959-2103292,"1,792.92",AYCLIFFE CARE HOME.
Adults Wellbeing and Health,Head of Adults,Third Party Payments,470101,Purchase of Care,20-Jun-2013,2607959-2103293,"1,792.92",AYCLIFFE CARE HOME.
Adults Wellbeing and Health,Head of Adults,Third Party Payments,474101,Purchase of Care,20-Jun-2013,2607959-2106029,"1,882.44",AYCLIFFE CARE HOME.
Adults Wellbeing and Health,Head of Adults,Third Party Payments,474101,Purchase of Care,20-Jun-2013,2607959-2106031,922.76,AYCLIFFE CARE HOME.
Adults Wellbeing and Health,Head of Adults,Third Party Payments,474101,Purchase of Care,20-Jun-2013,2607959-2106033,"1,882.44",AYCLIFFE CARE HOME.
Adults Wellbeing and Health,Head of Adults,Third Party Payments,474101,Purchase of Care,20-Jun-2013,2607959-2106040,"1,882.44",AYCLIFFE CARE HOME.
Adults Wellbeing and Health,Head of Adults,Third Party Payments,474101,Purchase of Care,20-Jun-2013,2607959-2106042,"1,882.44",AYCLIFFE CARE HOME.
Adults Wellbeing and Health,Head of Adults,Third Party Payments,474101,Purchase of Care,20-Jun-2013,2607959-2106044,"1,882.44",AYCLIFFE CARE HOME.
Adults Wellbeing and Health,Head of Adults,Third Party Payments,474101,Purchase of Care,20-Jun-2013,2607959-2106046,672.30,AYCLIFFE CARE HOME.
Adults Wellbeing and Health,Head of Adults,Third Party Payments,474101,Purchase of Care,20-Jun-2013,2607959-2106048,"1,882.44",AYCLIFFE CARE HOME.
Adults Wellbeing and Health,Head of Adults,Third Party Payments,471101,Purchase of Care,20-Jun-2013,2607959-2106548,"1,863.80",AYCLIFFE CARE HOME.
Adults Wellbeing and Health,Head of Adults,Third Party Payments,471101,Purchase of Care,20-Jun-2013,2607959-2106552,"1,863.80",AYCLIFFE CARE HOME.
Adults Wellbeing and Health,Head of Adults,Third Party Payments,471101,Purchase of Care,20-Jun-2013,2607959-2106553,"1,198.15",AYCLIFFE CARE HOME.
Adults Wellbeing and Health,Head of Adults,Third Party Payments,471101,Purchase of Care,20-Jun-2013,2607959-2106554,"1,863.80",AYCLIFFE CARE HOME.
Adults Wellbeing and Health,Head of Adults,Third Party Payments,471101,Purchase of Care,20-Jun-2013,2607959-2106555,"1,597.54",AYCLIFFE CARE HOME.
Adults Wellbeing and Health,Head of Adults,Third Party Payments,471101,Purchase of Care,20-Jun-2013,2607959-2106556,"1,863.80",AYCLIFFE CARE HOME.
Adults Wellbeing and Health,Head of Adults,Third Party Payments,471101,Purchase of Care,20-Jun-2013,2607959-2106557,"1,863.80",AYCLIFFE CARE HOME.
Adults Wellbeing and Health,Head of Adults,Third Party Payments,471101,Purchase of Care,20-Jun-2013,2607959-2106558,"1,863.80",AYCLIFFE CARE HOME.
Adults Wellbeing and Health,Head of Adults,Third Party Payments,471101,Purchase of Care,20-Jun-2013,2607959-2106559,"1,863.80",AYCLIFFE CARE HOME.
Adults Wellbeing and Health,Head of Adults,Third Party Payments,471101,Purchase of Care,20-Jun-2013,2607959-2106560,798.77,AYCLIFFE CARE HOME.
Adults Wellbeing and Health,Head of Adults,Third Party Payments,471101,Purchase of Care,20-Jun-2013,2607959-2106561,"1,863.80",AYCLIFFE CARE HOME.
Adults Wellbeing and Health,Head of Adults,Third Party Payments,471101,Purchase of Care,20-Jun-2013,2607959-2106562,"1,863.80",AYCLIFFE CARE HOME.
Adults Wellbeing and Health,Head of Adults,Third Party Payments,478101,Purchase of Care,20-Jun-2013,2607962-1340818H,"1,036.00",B & J DUNCAN.
Adults Wellbeing and Health,Head of Adults,Third Party Payments,471101,Purchase of Care,20-Jun-2013,2607968-2106841,"1,744.00",BARCHESTER HEALTHCARE HOMES LTD.
Adults Wellbeing and Health,Head of Adults,Third Party Payments,471101,Purchase of Care,20-Jun-2013,2607968-2106842,"1,744.00",BARCHESTER HEALTHCARE HOMES LTD.
Adults Wellbeing and Health,Head of Adults,Third Party Payments,471101,Purchase of Care,20-Jun-2013,2607968-2106843,"1,744.00",BARCHESTER HEALTHCARE HOMES LTD.
Adults Wellbeing and Health,Head of Adults,Third Party Payments,471101,Purchase of Care,20-Jun-2013,2607968-2107270,809.71,BARCHESTER HEALTHCARE HOMES LTD.
Adults Wellbeing and Health,Head of Adults,Third Party Payments,474101,Purchase of Care,20-Jun-2013,2607969-2104898,"1,882.44",BARCHESTER HEALTHCARE HOMES LTD.
Adults Wellbeing and Health,Head of Adults,Third Party Payments,474101,Purchase of Care,20-Jun-2013,2607969-2104902,"1,882.44",BARCHESTER HEALTHCARE HOMES LTD.
Adults Wellbeing and Health,Head of Adults,Third Party Payments,474101,Purchase of Care,20-Jun-2013,2607969-2104905,"1,882.44",BARCHESTER HEALTHCARE HOMES LTD.
Adults Wellbeing and Health,Head of Adults,Third Party Payments,474101,Purchase of Care,20-Jun-2013,2607969-2104920,"1,882.44",BARCHESTER HEALTHCARE HOMES LTD.
Adults Wellbeing and Health,Head of Adults,Third Party Payments,474101,Purchase of Care,20-Jun-2013,2607969-2104923,"2,622.88",BARCHESTER HEALTHCARE HOMES LTD.
Adults Wellbeing and Health,Head of Adults,Third Party Payments,474101,Purchase of Care,20-Jun-2013,2607969-2104926,"1,882.44",BARCHESTER HEALTHCARE HOMES LTD.
Adults Wellbeing and Health,Head of Adults,Third Party Payments,474101,Purchase of Care,20-Jun-2013,2607969-2104929,"1,882.44",BARCHESTER HEALTHCARE HOMES LTD.
Adults Wellbeing and Health,Head of Adults,Third Party Payments,474101,Purchase of Care,20-Jun-2013,2607969-2104934,"1,882.44",BARCHESTER HEALTHCARE HOMES LTD.
Adults Wellbeing and Health,Head of Adults,Third Party Payments,474101,Purchase of Care,20-Jun-2013,2607969-2105499,"2,053.04",BARCHESTER HEALTHCARE HOMES LTD.
Adults Wellbeing and Health,Head of Adults,Third Party Payments,474101,Purchase of Care,20-Jun-2013,2607969-2105564,"2,053.04",BARCHESTER HEALTHCARE HOMES LTD.
Adults Wellbeing and Health,Head of Adults,Third Party Payments,474101,Purchase of Care,20-Jun-2013,2607969-2106323,"1,882.44",BARCHESTER HEALTHCARE HOMES LTD.
Adults Wellbeing and Health,Head of Adults,Third Party Payments,474101,Purchase of Care,20-Jun-2013,2607969-2106326,"1,882.44",BARCHESTER HEALTHCARE HOMES LTD.
Adults Wellbeing and Health,Head of Adults,Third Party Payments,474101,Purchase of Care,20-Jun-2013,2607969-2106329,"1,882.44",BARCHESTER HEALTHCARE HOMES LTD.
Adults Wellbeing and Health,Head of Adults,Third Party Payments,474101,Purchase of Care,20-Jun-2013,2607969-2106331,"1,882.44",BARCHESTER HEALTHCARE HOMES LTD.
Adults Wellbeing and Health,Head of Adults,Third Party Payments,474101,Purchase of Care,20-Jun-2013,2607969-2106338,"1,882.44",BARCHESTER HEALTHCARE HOMES LTD.
Adults Wellbeing and Health,Head of Adults,Third Party Payments,474101,Purchase of Care,20-Jun-2013,2607969-2106340,"1,882.44",BARCHESTER HEALTHCARE HOMES LTD.
Adults Wellbeing and Health,Head of Adults,Third Party Payments,474101,Purchase of Care,20-Jun-2013,2607969-2107425,"3,630.42",BARCHESTER HEALTHCARE HOMES LTD.
Adults Wellbeing and Health,Head of Adults,Third Party Payments,474101,Purchase of Care,20-Jun-2013,2607969-2107428,"1,882.44",BARCHESTER HEALTHCARE HOMES LTD.
Adults Wellbeing and Health,Head of Adults,Third Party Payments,474101,Purchase of Care,20-Jun-2013,2607969-2107431,"1,882.44",BARCHESTER HEALTHCARE HOMES LTD.
Adults Wellbeing and Health,Head of Adults,Third Party Payments,474101,Purchase of Care,20-Jun-2013,2607969-2107655,"1,142.91",BARCHESTER HEALTHCARE HOMES LTD.
Adults Wellbeing and Health,Head of Adults,Third Party Payments,471101,Purchase of Care,20-Jun-2013,2607970-2101713,"1,812.92",BARCHESTER HEALTHCARE HOMES LTD.
Adults Wellbeing and Health,Head of Adults,Third Party Payments,471101,Purchase of Care,20-Jun-2013,2607970-2106441,"1,896.08",BARCHESTER HEALTHCARE HOMES LTD.
Adults Wellbeing and Health,Head of Adults,Third Party Payments,471101,Purchase of Care,20-Jun-2013,2607971-2106442,"1,642.20",BARCHESTER HEALTHCARE HOMES LTD.
Adults Wellbeing and Health,Head of Adults,Third Party Payments,470101,Purchase of Care,20-Jun-2013,2607972-2098889,"1,752.00",BARCHESTER HEALTHCARE HOMES LTD.
Adults Wellbeing and Health,Head of Adults,Third Party Payments,470101,Purchase of Care,20-Jun-2013,2607972-2103636,"1,752.00",BARCHESTER HEALTHCARE HOMES LTD.
Adults Wellbeing and Health,Head of Adults,Third Party Payments,474101,Purchase of Care,20-Jun-2013,2607973-2105486,"1,843.32",BARNES COURT NURSING HOME.
Adults Wellbeing and Health,Head of Adults,Third Party Payments,470101,Purchase of Care,20-Jun-2013,2607977-2103791,"1,792.92",BEACONSFIELD COURT.
Adults Wellbeing and Health,Head of Adults,Third Party Payments,470101,Purchase of Care,20-Jun-2013,2607977-2103792,"1,792.92",BEACONSFIELD COURT.
Adults Wellbeing and Health,Head of Adults,Third Party Payments,470101,Purchase of Care,20-Jun-2013,2607977-2103801,"1,792.92",BEACONSFIELD COURT.
Adults Wellbeing and Health,Head of Adults,Third Party Payments,470101,Purchase of Care,20-Jun-2013,2607977-2103802,"1,792.92",BEACONSFIELD COURT.
Adults Wellbeing and Health,Head of Adults,Third Party Payments,470101,Purchase of Care,20-Jun-2013,2607977-2103803,"1,792.92",BEACONSFIELD COURT.
Adults Wellbeing and Health,Head of Adults,Third Party Payments,470101,Purchase of Care,20-Jun-2013,2607977-2103804,"1,792.92",BEACONSFIELD COURT.
Adults Wellbeing and Health,Head of Adults,Third Party Payments,470101,Purchase of Care,20-Jun-2013,2607977-2103805,"1,792.92",BEACONSFIELD COURT.
Adults Wellbeing and Health,Head of Adults,Third Party Payments,470101,Purchase of Care,20-Jun-2013,2607977-2103806,"2,433.24",BEACONSFIELD COURT.
Adults Wellbeing and Health,Head of Adults,Third Party Payments,470101,Purchase of Care,20-Jun-2013,2607977-2103807,"1,792.92",BEACONSFIELD COURT.
Adults Wellbeing and Health,Head of Adults,Third Party Payments,474101,Purchase of Care,20-Jun-2013,2607977-2104869,"3,294.27",BEACONSFIELD COURT.
Adults Wellbeing and Health,Head of Adults,Third Party Payments,474101,Purchase of Care,20-Jun-2013,2607977-2104871,"1,882.44",BEACONSFIELD COURT.
Adults Wellbeing and Health,Head of Adults,Third Party Payments,474101,Purchase of Care,20-Jun-2013,2607977-2104873,"1,882.44",BEACONSFIELD COURT.
Adults Wellbeing and Health,Head of Adults,Third Party Payments,474101,Purchase of Care,20-Jun-2013,2607977-2104875,"1,882.44",BEACONSFIELD COURT.
Adults Wellbeing and Health,Head of Adults,Third Party Payments,474101,Purchase of Care,20-Jun-2013,2607977-2104877,"1,882.44",BEACONSFIELD COURT.
Adults Wellbeing and Health,Head of Adults,Third Party Payments,474101,Purchase of Care,20-Jun-2013,2607977-2104879,"1,882.44",BEACONSFIELD COURT.
Adults Wellbeing and Health,Head of Adults,Third Party Payments,470101,Purchase of Care,20-Jun-2013,2607977-2107228,"1,344.69",BEACONSFIELD COURT.
Adults Wellbeing and Health,Head of Adults,Third Party Payments,470101,Purchase of Care,20-Jun-2013,2607977-2107489,"1,728.88",BEACONSFIELD COURT.
Adults Wellbeing and Health,Head of Adults,Third Party Payments,470101,Purchase of Care,20-Jun-2013,2607978-2103287,"1,102.24",BEAMISH RESIDENTIAL HOME.
Adults Wellbeing and Health,Head of Adults,Third Party Payments,470101,Purchase of Care,20-Jun-2013,2607978-2103333,"1,306.92",BEAMISH RESIDENTIAL HOME.
Adults Wellbeing and Health,Head of Adults,Third Party Payments,470101,Purchase of Care,20-Jun-2013,2607978-2103334,"1,792.92",BEAMISH RESIDENTIAL HOME.
Adults Wellbeing and Health,Head of Adults,Third Party Payments,470101,Purchase of Care,20-Jun-2013,2607978-2103335,"1,306.92",BEAMISH RESIDENTIAL HOME.
Adults Wellbeing and Health,Head of Adults,Third Party Payments,470101,Purchase of Care,20-Jun-2013,2607978-2103336,"1,792.92",BEAMISH RESIDENTIAL HOME.
Adults Wellbeing and Health,Head of Adults,Third Party Payments,470101,Purchase of Care,20-Jun-2013,2607978-2103338,"1,309.38",BEAMISH RESIDENTIAL HOME.
Adults Wellbeing and Health,Head of Adults,Third Party Payments,470101,Purchase of Care,20-Jun-2013,2607978-2103339,"1,792.92",BEAMISH RESIDENTIAL HOME.
Adults Wellbeing and Health,Head of Adults,Third Party Payments,470101,Purchase of Care,20-Jun-2013,2607978-2103341,946.64,BEAMISH RESIDENTIAL HOME.
Adults Wellbeing and Health,Head of Adults,Third Party Payments,470101,Purchase of Care,20-Jun-2013,2607978-2103342,"1,248.44",BEAMISH RESIDENTIAL HOME.
Adults Wellbeing and Health,Head of Adults,Third Party Payments,470101,Purchase of Care,20-Jun-2013,2607978-2103343,"1,258.36",BEAMISH RESIDENTIAL HOME.
Adults Wellbeing and Health,Head of Adults,Third Party Payments,470101,Purchase of Care,20-Jun-2013,2607978-2103344,"1,792.92",BEAMISH RESIDENTIAL HOME.
Adults Wellbeing and Health,Head of Adults,Third Party Payments,470101,Purchase of Care,20-Jun-2013,2607978-2107493,960.49,BEAMISH RESIDENTIAL HOME.
Adults Wellbeing and Health,Head of Adults,Third Party Payments,470101,Purchase of Care,20-Jun-2013,2607981-2103829,"1,894.36",BEDDELL HOUSE.
Adults Wellbeing and Health,Head of Adults,Third Party Payments,470101,Purchase of Care,20-Jun-2013,2607981-2103830,"1,894.36",BEDDELL HOUSE.
Adults Wellbeing and Health,Head of Adults,Third Party Payments,470101,Purchase of Care,20-Jun-2013,2607981-2103864,947.16,BEDDELL HOUSE.
Adults Wellbeing and Health,Head of Adults,Third Party Payments,470101,Purchase of Care,20-Jun-2013,2607981-2103866,"1,894.36",BEDDELL HOUSE.
Adults Wellbeing and Health,Head of Adults,Third Party Payments,470101,Purchase of Care,20-Jun-2013,2607981-2103867,"1,894.36",BEDDELL HOUSE.
Adults Wellbeing and Health,Head of Adults,Third Party Payments,470101,Purchase of Care,20-Jun-2013,2607981-2103869,"1,894.36",BEDDELL HOUSE.
Adults Wellbeing and Health,Head of Adults,Third Party Payments,470101,Purchase of Care,20-Jun-2013,2607981-2103870,"1,894.36",BEDDELL HOUSE.
Adults Wellbeing and Health,Head of Adults,Third Party Payments,470101,Purchase of Care,20-Jun-2013,2607981-2103871,"1,894.36",BEDDELL HOUSE.
Adults Wellbeing and Health,Head of Adults,Third Party Payments,470101,Purchase of Care,20-Jun-2013,2607981-2103872,"1,894.36",BEDDELL HOUSE.
Adults Wellbeing and Health,Head of Adults,Third Party Payments,470101,Purchase of Care,20-Jun-2013,2607981-2103873,"1,894.36",BEDDELL HOUSE.
Adults Wellbeing and Health,Head of Adults,Third Party Payments,470101,Purchase of Care,20-Jun-2013,2607981-2103874,"1,894.36",BEDDELL HOUSE.
Adults Wellbeing and Health,Head of Adults,Third Party Payments,470101,Purchase of Care,20-Jun-2013,2607981-2107355,"1,691.39",BEDDELL HOUSE.
Adults Wellbeing and Health,Head of Adults,Third Party Payments,470101,Purchase of Care,20-Jun-2013,2607982-2105800,"2,145.00",BEECHWOOD RESIDENTIAL CARE SERVICES.
Adults Wellbeing and Health,Head of Adults,Third Party Payments,470101,Purchase of Care,20-Jun-2013,2607982-2105801,"2,145.00",BEECHWOOD RESIDENTIAL CARE SERVICES.
Adults Wellbeing and Health,Head of Adults,Third Party Payments,470101,Purchase of Care,20-Jun-2013,2607982-2105802,"2,145.00",BEECHWOOD RESIDENTIAL CARE SERVICES.
Adults Wellbeing and Health,Head of Adults,Third Party Payments,470101,Purchase of Care,20-Jun-2013,2607983-2103601,"1,772.00",BELLE VUE HEALTHCARE LTD.
Adults Wellbeing and Health,Head of Adults,Third Party Payments,470101,Purchase of Care,20-Jun-2013,2607984-2103984,724.64,BELMONT NURSING HOME.
Adults Wellbeing and Health,Head of Adults,Third Party Payments,470101,Purchase of Care,20-Jun-2013,2607984-2103985,"1,595.12",BELMONT NURSING HOME.
Adults Wellbeing and Health,Head of Adults,Third Party Payments,470101,Purchase of Care,20-Jun-2013,2607984-2104058,"1,019.32",BELMONT NURSING HOME.
Adults Wellbeing and Health,Head of Adults,Third Party Payments,470101,Purchase of Care,20-Jun-2013,2607984-2104083,894.56,BELMONT NURSING HOME.
Adults Wellbeing and Health,Head of Adults,Third Party Payments,470101,Purchase of Care,20-Jun-2013,2607984-2104163,"1,595.12",BELMONT NURSING HOME.
Adults Wellbeing and Health,Head of Adults,Third Party Payments,470101,Purchase of Care,20-Jun-2013,2607984-2104205,"1,036.40",BELMONT NURSING HOME.
Adults Wellbeing and Health,Head of Adults,Third Party Payments,474101,Purchase of Care,20-Jun-2013,2607984-2105065,"1,196.56",BELMONT NURSING HOME.
Adults Wellbeing and Health,Head of Adults,Third Party Payments,474101,Purchase of Care,20-Jun-2013,2607984-2105068,"1,196.56",BELMONT NURSING HOME.
Adults Wellbeing and Health,Head of Adults,Third Party Payments,474101,Purchase of Care,20-Jun-2013,2607984-2105143,"1,682.56",BELMONT NURSING HOME.
Adults Wellbeing and Health,Head of Adults,Third Party Payments,474101,Purchase of Care,20-Jun-2013,2607984-2105145,"1,682.56",BELMONT NURSING HOME.
Adults Wellbeing and Health,Head of Adults,Third Party Payments,470101,Purchase of Care,20-Jun-2013,2607987-2105793,"1,482.48",BENAMY HOUSE.
Adults Wellbeing and Health,Head of Adults,Third Party Payments,470101,Purchase of Care,20-Jun-2013,2607987-2105794,"1,311.68",BENAMY HOUSE.
Adults Wellbeing and Health,Head of Adults,Third Party Payments,470101,Purchase of Care,20-Jun-2013,2607987-2105818,"1,482.48",BENAMY HOUSE.
Adults Wellbeing and Health,Head of Adults,Third Party Payments,470101,Purchase of Care,20-Jun-2013,2607987-2105819,"1,482.48",BENAMY HOUSE.
Adults Wellbeing and Health,Head of Adults,Third Party Payments,470101,Purchase of Care,20-Jun-2013,2607987-2105820,"1,482.48",BENAMY HOUSE.
Adults Wellbeing and Health,Head of Adults,Third Party Payments,474101,Purchase of Care,20-Jun-2013,2607988-2105587,912.72,BENFIELD HALL.
Adults Wellbeing and Health,Head of Adults,Third Party Payments,474101,Purchase of Care,20-Jun-2013,2607988-2105589,"1,825.44",BENFIELD HALL.
Adults Wellbeing and Health,Head of Adults,Third Party Payments,474101,Purchase of Care,20-Jun-2013,2607988-2105592,"1,132.32",BENFIELD HALL.
Adults Wellbeing and Health,Head of Adults,Third Party Payments,474101,Purchase of Care,20-Jun-2013,2607988-2105593,912.72,BENFIELD HALL.
Adults Wellbeing and Health,Head of Adults,Third Party Payments,474101,Purchase of Care,20-Jun-2013,2607988-2105595,912.72,BENFIELD HALL.
Adults Wellbeing and Health,Head of Adults,Third Party Payments,474101,Purchase of Care,20-Jun-2013,2607988-2105597,"1,825.44",BENFIELD HALL.
Adults Wellbeing and Health,Head of Adults,Third Party Payments,474101,Purchase of Care,20-Jun-2013,2607988-2105599,"1,510.24",BENFIELD HALL.
Adults Wellbeing and Health,Head of Adults,Third Party Payments,470101,Purchase of Care,20-Jun-2013,2607988-2105697,"2,460.00",BENFIELD HALL.
Adults Wellbeing and Health,Head of Adults,Third Party Payments,478101,Purchase of Care,20-Jun-2013,2607997-1337279H,"1,453.75",REDACTED - PAYMENT TO INDIVIDUAL
Adults Wellbeing and Health,Head of Adults,Third Party Payments,478101,Purchase of Care,20-Jun-2013,2607997-2106431,"1,234.20",REDACTED - PAYMENT TO INDIVIDUAL
Adults Wellbeing and Health,Head of Adults,Third Party Payments,470101,Purchase of Care,20-Jun-2013,2608001-2103917,"4,211.20",BHACHU CARE LTD.
Adults Wellbeing and Health,Head of Adults,Third Party Payments,470101,Purchase of Care,20-Jun-2013,2608001-2103918,"1,595.12",BHACHU CARE LTD.
Adults Wellbeing and Health,Head of Adults,Third Party Payments,471101,Purchase of Care,20-Jun-2013,2608001-2107006,"1,665.92",BHACHU CARE LTD.
Adults Wellbeing and Health,Head of Adults,Third Party Payments,470101,Purchase of Care,20-Jun-2013,2608001-2107007,"1,665.92",BHACHU CARE LTD.
Adults Wellbeing and Health,Head of Adults,Third Party Payments,471101,Purchase of Care,20-Jun-2013,2608001-2107010,"1,665.92",BHACHU CARE LTD.
Adults Wellbeing and Health,Head of Adults,Third Party Payments,471101,Purchase of Care,20-Jun-2013,2608001-2107011,"1,665.92",BHACHU CARE LTD.
Adults Wellbeing and Health,Head of Adults,Third Party Payments,471101,Purchase of Care,20-Jun-2013,2608001-2107012,"1,665.92",BHACHU CARE LTD.
Adults Wellbeing and Health,Head of Adults,Third Party Payments,471101,Purchase of Care,20-Jun-2013,2608001-2107013,"1,665.92",BHACHU CARE LTD.
Adults Wellbeing and Health,Head of Adults,Third Party Payments,471101,Purchase of Care,20-Jun-2013,2608001-2107014,"1,665.92",BHACHU CARE LTD.
Adults Wellbeing and Health,Head of Adults,Third Party Payments,471101,Purchase of Care,20-Jun-2013,2608001-2107015,"1,665.92",BHACHU CARE LTD.
Adults Wellbeing and Health,Head of Adults,Third Party Payments,470101,Purchase of Care,20-Jun-2013,2608006-2104332,"1,792.92",BISHOPSGATE LODGE.
Adults Wellbeing and Health,Head of Adults,Third Party Payments,470101,Purchase of Care,20-Jun-2013,2608006-2104368,"1,792.92",BISHOPSGATE LODGE.
Adults Wellbeing and Health,Head of Adults,Third Party Payments,470101,Purchase of Care,20-Jun-2013,2608006-2104369,"1,792.92",BISHOPSGATE LODGE.
Adults Wellbeing and Health,Head of Adults,Third Party Payments,470101,Purchase of Care,20-Jun-2013,2608006-2104370,"1,792.92",BISHOPSGATE LODGE.
Adults Wellbeing and Health,Head of Adults,Third Party Payments,470101,Purchase of Care,20-Jun-2013,2608006-2104371,"1,792.92",BISHOPSGATE LODGE.
Adults Wellbeing and Health,Head of Adults,Third Party Payments,470101,Purchase of Care,20-Jun-2013,2608006-2104372,"1,792.92",BISHOPSGATE LODGE.
Adults Wellbeing and Health,Head of Adults,Third Party Payments,470101,Purchase of Care,20-Jun-2013,2608006-2104373,"1,792.92",BISHOPSGATE LODGE.
Adults Wellbeing and Health,Head of Adults,Third Party Payments,470101,Purchase of Care,20-Jun-2013,2608006-2104386,"1,792.92",BISHOPSGATE LODGE.
Adults Wellbeing and Health,Head of Adults,Third Party Payments,470101,Purchase of Care,20-Jun-2013,2608006-2104397,"1,792.92",BISHOPSGATE LODGE.
Adults Wellbeing and Health,Head of Adults,Third Party Payments,470101,Purchase of Care,20-Jun-2013,2608006-2104413,"1,792.92",BISHOPSGATE LODGE.
Adults Wellbeing and Health,Head of Adults,Third Party Payments,470101,Purchase of Care,20-Jun-2013,2608006-2104414,"1,792.92",BISHOPSGATE LODGE.
Adults Wellbeing and Health,Head of Adults,Third Party Payments,470101,Purchase of Care,20-Jun-2013,2608006-2104415,"1,792.92",BISHOPSGATE LODGE.
Adults Wellbeing and Health,Head of Adults,Third Party Payments,470101,Purchase of Care,20-Jun-2013,2608006-2104416,"1,792.92",BISHOPSGATE LODGE.
Adults Wellbeing and Health,Head of Adults,Third Party Payments,470101,Purchase of Care,20-Jun-2013,2608006-2104417,"1,792.92",BISHOPSGATE LODGE.
Adults Wellbeing and Health,Head of Adults,Third Party Payments,470101,Purchase of Care,20-Jun-2013,2608006-2104418,"1,792.92",BISHOPSGATE LODGE.
Adults Wellbeing and Health,Head of Adults,Third Party Payments,474101,Purchase of Care,20-Jun-2013,2608006-2105237,"1,882.44",BISHOPSGATE LODGE.
Adults Wellbeing and Health,Head of Adults,Third Party Payments,470101,Purchase of Care,20-Jun-2013,2608006-2105267,"1,882.44",BISHOPSGATE LODGE.
Adults Wellbeing and Health,Head of Adults,Third Party Payments,474101,Purchase of Care,20-Jun-2013,2608006-2105269,"1,882.44",BISHOPSGATE LODGE.
Adults Wellbeing and Health,Head of Adults,Third Party Payments,474101,Purchase of Care,20-Jun-2013,2608006-2105271,"1,882.44",BISHOPSGATE LODGE.
Adults Wellbeing and Health,Head of Adults,Third Party Payments,474101,Purchase of Care,20-Jun-2013,2608006-2105273,"1,882.44",BISHOPSGATE LODGE.
Adults Wellbeing and Health,Head of Adults,Third Party Payments,474101,Purchase of Care,20-Jun-2013,2608006-2105275,"1,882.44",BISHOPSGATE LODGE.
Adults Wellbeing and Health,Head of Adults,Third Party Payments,474101,Purchase of Care,20-Jun-2013,2608006-2105277,"1,882.44",BISHOPSGATE LODGE.
Adults Wellbeing and Health,Head of Adults,Third Party Payments,474101,Purchase of Care,20-Jun-2013,2608006-2105302,"1,882.44",BISHOPSGATE LODGE.
Adults Wellbeing and Health,Head of Adults,Third Party Payments,474101,Purchase of Care,20-Jun-2013,2608006-2105359,"1,882.44",BISHOPSGATE LODGE.
Adults Wellbeing and Health,Head of Adults,Third Party Payments,474101,Purchase of Care,20-Jun-2013,2608006-2105360,"1,882.44",BISHOPSGATE LODGE.
Adults Wellbeing and Health,Head of Adults,Third Party Payments,474101,Purchase of Care,20-Jun-2013,2608006-2105362,"1,882.44",BISHOPSGATE LODGE.
Adults Wellbeing and Health,Head of Adults,Third Party Payments,474101,Purchase of Care,20-Jun-2013,2608006-2105364,"1,882.44",BISHOPSGATE LODGE.
Adults Wellbeing and Health,Head of Adults,Third Party Payments,474101,Purchase of Care,20-Jun-2013,2608006-2105366,"1,882.44",BISHOPSGATE LODGE.
Adults Wellbeing and Health,Head of Adults,Third Party Payments,471101,Purchase of Care,20-Jun-2013,2608006-2107211,"1,863.80",BISHOPSGATE LODGE.
Adults Wellbeing and Health,Head of Adults,Third Party Payments,471101,Purchase of Care,20-Jun-2013,2608006-2107212,"1,863.80",BISHOPSGATE LODGE.
Adults Wellbeing and Health,Head of Adults,Third Party Payments,471101,Purchase of Care,20-Jun-2013,2608006-2107213,"1,863.80",BISHOPSGATE LODGE.
Adults Wellbeing and Health,Head of Adults,Third Party Payments,471101,Purchase of Care,20-Jun-2013,2608006-2107214,"1,863.80",BISHOPSGATE LODGE.
Adults Wellbeing and Health,Head of Adults,Third Party Payments,472101,Purchase of Care,20-Jun-2013,2608010-1337600H,627.50,BOLTONSHAW HOMECARE.
Adults Wellbeing and Health,Head of Adults,Third Party Payments,472101,Purchase of Care,20-Jun-2013,2608010-1338043H,"1,714.65",BOLTONSHAW HOMECARE.
Adults Wellbeing and Health,Head of Adults,Third Party Payments,472101,Purchase of Care,20-Jun-2013,2608010-1338925H,840.00,BOLTONSHAW HOMECARE.
Adults Wellbeing and Health,Head of Adults,Third Party Payments,470101,Purchase of Care,20-Jun-2013,2608012-2105413,"2,222.00",BOWES COURT CARE HOME.
Adults Wellbeing and Health,Head of Adults,Third Party Payments,474101,Purchase of Care,20-Jun-2013,2608012-2105478,"4,800.00",BOWES COURT CARE HOME.
Adults Wellbeing and Health,Head of Adults,Third Party Payments,474101,Purchase of Care,20-Jun-2013,2608012-2105480,"2,525.00",BOWES COURT CARE HOME.
Adults Wellbeing and Health,Head of Adults,Third Party Payments,474101,Purchase of Care,20-Jun-2013,2608012-2105482,"2,400.00",BOWES COURT CARE HOME.
Adults Wellbeing and Health,Head of Adults,Third Party Payments,474101,Purchase of Care,20-Jun-2013,2608012-2105483,"2,400.00",BOWES COURT CARE HOME.
Adults Wellbeing and Health,Head of Adults,Third Party Payments,470101,Purchase of Care,20-Jun-2013,2608012-2105758,"3,657.13",BOWES COURT CARE HOME.
Adults Wellbeing and Health,Head of Adults,Third Party Payments,470101,Purchase of Care,20-Jun-2013,2608012-2105759,"4,444.00",BOWES COURT CARE HOME.
Adults Wellbeing and Health,Head of Adults,Third Party Payments,470101,Purchase of Care,20-Jun-2013,2608012-2105760,"4,444.00",BOWES COURT CARE HOME.
Adults Wellbeing and Health,Head of Adults,Third Party Payments,470101,Purchase of Care,20-Jun-2013,2608012-2105761,"2,300.00",BOWES COURT CARE HOME.
Adults Wellbeing and Health,Head of Adults,Third Party Payments,470101,Purchase of Care,20-Jun-2013,2608012-2105762,"5,082.00",BOWES COURT CARE HOME.
Adults Wellbeing and Health,Head of Adults,Third Party Payments,474101,Purchase of Care,20-Jun-2013,2608012-2105953,"4,800.00",BOWES COURT CARE HOME.
Adults Wellbeing and Health,Head of Adults,Third Party Payments,470101,Purchase of Care,20-Jun-2013,2608016-2104335,"1,767.30",BRANCEPETH COURT.
Adults Wellbeing and Health,Head of Adults,Third Party Payments,470101,Purchase of Care,20-Jun-2013,2608016-2104355,"1,792.92",BRANCEPETH COURT.
Adults Wellbeing and Health,Head of Adults,Third Party Payments,470101,Purchase of Care,20-Jun-2013,2608016-2104391,"1,792.92",BRANCEPETH COURT.
Adults Wellbeing and Health,Head of Adults,Third Party Payments,470101,Purchase of Care,20-Jun-2013,2608016-2104392,"1,792.92",BRANCEPETH COURT.
Adults Wellbeing and Health,Head of Adults,Third Party Payments,470101,Purchase of Care,20-Jun-2013,2608016-2104394,"1,792.92",BRANCEPETH COURT.
Adults Wellbeing and Health,Head of Adults,Third Party Payments,470101,Purchase of Care,20-Jun-2013,2608016-2104395,"1,792.92",BRANCEPETH COURT.
Adults Wellbeing and Health,Head of Adults,Third Party Payments,470101,Purchase of Care,20-Jun-2013,2608016-2104396,"1,792.92",BRANCEPETH COURT.
Adults Wellbeing and Health,Head of Adults,Third Party Payments,470101,Purchase of Care,20-Jun-2013,2608016-2104428,768.39,BRANCEPETH COURT.
Adults Wellbeing and Health,Head of Adults,Third Party Payments,474101,Purchase of Care,20-Jun-2013,2608016-2105335,"1,882.44",BRANCEPETH COURT.
Adults Wellbeing and Health,Head of Adults,Third Party Payments,474101,Purchase of Care,20-Jun-2013,2608016-2105337,"1,882.44",BRANCEPETH COURT.
Adults Wellbeing and Health,Head of Adults,Third Party Payments,474101,Purchase of Care,20-Jun-2013,2608016-2105339,"1,882.44",BRANCEPETH COURT.
Adults Wellbeing and Health,Head of Adults,Third Party Payments,474101,Purchase of Care,20-Jun-2013,2608016-2105399,"1,882.44",BRANCEPETH COURT.
Adults Wellbeing and Health,Head of Adults,Third Party Payments,474101,Purchase of Care,20-Jun-2013,2608016-2105401,"1,882.44",BRANCEPETH COURT.
Adults Wellbeing and Health,Head of Adults,Third Party Payments,474101,Purchase of Care,20-Jun-2013,2608016-2105403,"1,966.44",BRANCEPETH COURT.
Adults Wellbeing and Health,Head of Adults,Third Party Payments,470101,Purchase of Care,20-Jun-2013,2608016-2105942,"1,854.68",BRANCEPETH COURT.
Adults Wellbeing and Health,Head of Adults,Third Party Payments,470101,Purchase of Care,20-Jun-2013,2608016-2105943,"1,854.68",BRANCEPETH COURT.
Adults Wellbeing and Health,Head of Adults,Third Party Payments,470101,Purchase of Care,20-Jun-2013,2608016-2105944,"1,854.68",BRANCEPETH COURT.
Adults Wellbeing and Health,Head of Adults,Third Party Payments,470101,Purchase of Care,20-Jun-2013,2608016-2105945,"1,854.68",BRANCEPETH COURT.
Adults Wellbeing and Health,Head of Adults,Third Party Payments,470101,Purchase of Care,20-Jun-2013,2608016-2105946,"1,854.68",BRANCEPETH COURT.
Adults Wellbeing and Health,Head of Adults,Third Party Payments,470101,Purchase of Care,20-Jun-2013,2608016-2105947,"1,854.68",BRANCEPETH COURT.
Adults Wellbeing and Health,Head of Adults,Third Party Payments,470101,Purchase of Care,20-Jun-2013,2608016-2105948,"1,854.68",BRANCEPETH COURT.
Adults Wellbeing and Health,Head of Adults,Third Party Payments,470101,Purchase of Care,20-Jun-2013,2608016-2105949,"1,854.68",BRANCEPETH COURT.
Adults Wellbeing and Health,Head of Adults,Third Party Payments,474101,Purchase of Care,20-Jun-2013,2608016-2105968,"1,890.96",BRANCEPETH COURT.
Adults Wellbeing and Health,Head of Adults,Third Party Payments,474101,Purchase of Care,20-Jun-2013,2608016-2105972,"1,890.96",BRANCEPETH COURT.
Adults Wellbeing and Health,Head of Adults,Third Party Payments,474101,Purchase of Care,20-Jun-2013,2608016-2107751,"1,680.75",BRANCEPETH COURT.
Adults Wellbeing and Health,Head of Adults,Third Party Payments,470101,Purchase of Care,20-Jun-2013,2608016-2107753,"1,792.92",BRANCEPETH COURT.
Adults Wellbeing and Health,Head of Adults,Third Party Payments,470101,Purchase of Care,20-Jun-2013,2608028-2105839,"2,176.56",BRIDGEWOOD TRUST LTD.
Adults Wellbeing and Health,Head of Adults,Third Party Payments,470101,Purchase of Care,20-Jun-2013,2608033-2104070,673.04,BROOMHOUSE CARE LTD.
Adults Wellbeing and Health,Head of Adults,Third Party Payments,470101,Purchase of Care,20-Jun-2013,2608033-2104071,"1,306.92",BROOMHOUSE CARE LTD.
Adults Wellbeing and Health,Head of Adults,Third Party Payments,470101,Purchase of Care,20-Jun-2013,2608033-2104228,"1,306.92",BROOMHOUSE CARE LTD.
Adults Wellbeing and Health,Head of Adults,Third Party Payments,470101,Purchase of Care,20-Jun-2013,2608033-2104229,"1,972.80",BROOMHOUSE CARE LTD.
Adults Wellbeing and Health,Head of Adults,Third Party Payments,470101,Purchase of Care,20-Jun-2013,2608033-2104230,"1,302.00",BROOMHOUSE CARE LTD.
Adults Wellbeing and Health,Head of Adults,Third Party Payments,471101,Purchase of Care,20-Jun-2013,2608033-2107095,"1,250.60",BROOMHOUSE CARE LTD.
Adults Wellbeing and Health,Head of Adults,Third Party Payments,471101,Purchase of Care,20-Jun-2013,2608033-2107096,"1,363.60",BROOMHOUSE CARE LTD.
Adults Wellbeing and Health,Head of Adults,Third Party Payments,471101,Purchase of Care,20-Jun-2013,2608033-2107158,"1,417.80",BROOMHOUSE CARE LTD.
Adults Wellbeing and Health,Head of Adults,Third Party Payments,471101,Purchase of Care,20-Jun-2013,2608033-2107159,"1,730.67",BROOMHOUSE CARE LTD.
Adults Wellbeing and Health,Head of Adults,Third Party Payments,471101,Purchase of Care,20-Jun-2013,2608033-2107160,"1,346.08",BROOMHOUSE CARE LTD.
Adults Wellbeing and Health,Head of Adults,Third Party Payments,471101,Purchase of Care,20-Jun-2013,2608033-2107161,"1,863.80",BROOMHOUSE CARE LTD.
Adults Wellbeing and Health,Head of Adults,Third Party Payments,471101,Purchase of Care,20-Jun-2013,2608033-2107163,"1,053.08",BROOMHOUSE CARE LTD.
Adults Wellbeing and Health,Head of Adults,Third Party Payments,478101,Purchase of Care,20-Jun-2013,2608034-1337346H,"2,919.08",BROTHERS OF CHARITY.
Adults Wellbeing and Health,Head of Adults,Third Party Payments,474101,Purchase of Care,20-Jun-2013,2608037-2105959,"1,635.32",BUPA CARE SERVICES.
Adults Wellbeing and Health,Head of Adults,Third Party Payments,474101,Purchase of Care,20-Jun-2013,2608037-2105960,"1,950.52",BUPA CARE SERVICES.
Adults Wellbeing and Health,Head of Adults,Third Party Payments,474101,Purchase of Care,20-Jun-2013,2608038-2106272,"1,620.00",BUPA CARE SERVICES.
Adults Wellbeing and Health,Head of Adults,Third Party Payments,474101,Purchase of Care,20-Jun-2013,2608039-2104667,"1,143.68",REDACTED - PAYMENT TO INDIVIDUAL
Adults Wellbeing and Health,Head of Adults,Third Party Payments,474101,Purchase of Care,20-Jun-2013,2608039-2106216,"1,744.00",REDACTED - PAYMENT TO INDIVIDUAL
Adults Wellbeing and Health,Head of Adults,Third Party Payments,478101,Purchase of Care,20-Jun-2013,2608047-2107422,"1,381.20",REDACTED - PAYMENT TO INDIVIDUAL
Adults Wellbeing and Health,Head of Adults,Third Party Payments,472101,Purchase of Care,20-Jun-2013,2608054-1339416H,749.04,CARE CONCERN (DURHAM) LTD.
Adults Wellbeing and Health,Head of Adults,Third Party Payments,472101,Purchase of Care,20-Jun-2013,2608054-1339921H,675.20,CARE CONCERN (DURHAM) LTD.
Adults Wellbeing and Health,Head of Adults,Third Party Payments,472101,Purchase of Care,20-Jun-2013,2608054-1340033H,540.68,CARE CONCERN (DURHAM) LTD.
Adults Wellbeing and Health,Head of Adults,Third Party Payments,472101,Purchase of Care,20-Jun-2013,2608054-1342262H,"1,118.32",CARE CONCERN (DURHAM) LTD.
Adults Wellbeing and Health,Head of Adults,Third Party Payments,474101,Purchase of Care,20-Jun-2013,2608055-2105475,"2,808.00",CARELINE LIFESTYLES LTD.
Adults Wellbeing and Health,Head of Adults,Third Party Payments,474101,Purchase of Care,20-Jun-2013,2608055-2105952,"4,800.00",CARELINE LIFESTYLES LTD.
Adults Wellbeing and Health,Head of Adults,Third Party Payments,470101,Purchase of Care,20-Jun-2013,2608056-2105773,"2,461.68",CARELINE LIFESTYLES LTD.
Adults Wellbeing and Health,Head of Adults,Third Party Payments,472101,Purchase of Care,20-Jun-2013,2608058-1336407H,604.41,CAREWATCH (DURHAM & EASINGTON) FASTFLOW ACC.
Adults Wellbeing and Health,Head of Adults,Third Party Payments,478101,Purchase of Care,20-Jun-2013,2608058-1336549H,"1,056.00",CAREWATCH (DURHAM & EASINGTON) FASTFLOW ACC.
Adults Wellbeing and Health,Head of Adults,Third Party Payments,478101,Purchase of Care,20-Jun-2013,2608058-1336804H,"2,471.76",CAREWATCH (DURHAM & EASINGTON) FASTFLOW ACC.
Adults Wellbeing and Health,Head of Adults,Third Party Payments,478101,Purchase of Care,20-Jun-2013,2608058-1336825H,902.00,CAREWATCH (DURHAM & EASINGTON) FASTFLOW ACC.
Adults Wellbeing and Health,Head of Adults,Third Party Payments,478101,Purchase of Care,20-Jun-2013,2608058-1336860H,"1,320.00",CAREWATCH (DURHAM & EASINGTON) FASTFLOW ACC.
Adults Wellbeing and Health,Head of Adults,Third Party Payments,478101,Purchase of Care,20-Jun-2013,2608058-1336864H,"2,472.04",CAREWATCH (DURHAM & EASINGTON) FASTFLOW ACC.
Adults Wellbeing and Health,Head of Adults,Third Party Payments,478101,Purchase of Care,20-Jun-2013,2608058-1336901H,"1,320.00",CAREWATCH (DURHAM & EASINGTON) FASTFLOW ACC.
Adults Wellbeing and Health,Head of Adults,Third Party Payments,478101,Purchase of Care,20-Jun-2013,2608058-1336910H,924.00,CAREWATCH (DURHAM & EASINGTON) FASTFLOW ACC.
Adults Wellbeing and Health,Head of Adults,Third Party Payments,478101,Purchase of Care,20-Jun-2013,2608058-1336930H,"1,452.00",CAREWATCH (DURHAM & EASINGTON) FASTFLOW ACC.
Adults Wellbeing and Health,Head of Adults,Third Party Payments,478101,Purchase of Care,20-Jun-2013,2608058-1336949H,528.00,CAREWATCH (DURHAM & EASINGTON) FASTFLOW ACC.
Adults Wellbeing and Health,Head of Adults,Third Party Payments,478101,Purchase of Care,20-Jun-2013,2608058-1336962H,880.00,CAREWATCH (DURHAM & EASINGTON) FASTFLOW ACC.
Adults Wellbeing and Health,Head of Adults,Third Party Payments,478101,Purchase of Care,20-Jun-2013,2608058-1336969H,748.00,CAREWATCH (DURHAM & EASINGTON) FASTFLOW ACC.
Adults Wellbeing and Health,Head of Adults,Third Party Payments,478101,Purchase of Care,20-Jun-2013,2608058-1337075H,"1,188.00",CAREWATCH (DURHAM & EASINGTON) FASTFLOW ACC.
Adults Wellbeing and Health,Head of Adults,Third Party Payments,472101,Purchase of Care,20-Jun-2013,2608058-1337127H,569.29,CAREWATCH (DURHAM & EASINGTON) FASTFLOW ACC.
Adults Wellbeing and Health,Head of Adults,Third Party Payments,472101,Purchase of Care,20-Jun-2013,2608058-1337134H,"1,530.42",CAREWATCH (DURHAM & EASINGTON) FASTFLOW ACC.
Adults Wellbeing and Health,Head of Adults,Third Party Payments,472101,Purchase of Care,20-Jun-2013,2608058-1337143H,"1,544.29",CAREWATCH (DURHAM & EASINGTON) FASTFLOW ACC.
Adults Wellbeing and Health,Head of Adults,Third Party Payments,472101,Purchase of Care,20-Jun-2013,2608058-1337169H,"1,455.56",CAREWATCH (DURHAM & EASINGTON) FASTFLOW ACC.
Adults Wellbeing and Health,Head of Adults,Third Party Payments,472101,Purchase of Care,20-Jun-2013,2608058-1337179H,654.32,CAREWATCH (DURHAM & EASINGTON) FASTFLOW ACC.
Adults Wellbeing and Health,Head of Adults,Third Party Payments,472101,Purchase of Care,20-Jun-2013,2608058-1337219H,887.20,CAREWATCH (DURHAM & EASINGTON) FASTFLOW ACC.
Adults Wellbeing and Health,Head of Adults,Third Party Payments,472101,Purchase of Care,20-Jun-2013,2608058-1337352H,"1,391.81",CAREWATCH (DURHAM & EASINGTON) FASTFLOW ACC.
Adults Wellbeing and Health,Head of Adults,Third Party Payments,472101,Purchase of Care,20-Jun-2013,2608058-1337682H,755.96,CAREWATCH (DURHAM & EASINGTON) FASTFLOW ACC.
Adults Wellbeing and Health,Head of Adults,Third Party Payments,478101,Purchase of Care,20-Jun-2013,2608058-1337690H,"1,801.04",CAREWATCH (DURHAM & EASINGTON) FASTFLOW ACC.
Adults Wellbeing and Health,Head of Adults,Third Party Payments,472101,Purchase of Care,20-Jun-2013,2608058-1337701H,561.88,CAREWATCH (DURHAM & EASINGTON) FASTFLOW ACC.
Adults Wellbeing and Health,Head of Adults,Third Party Payments,472101,Purchase of Care,20-Jun-2013,2608058-1337706H,687.60,CAREWATCH (DURHAM & EASINGTON) FASTFLOW ACC.
Adults Wellbeing and Health,Head of Adults,Third Party Payments,472101,Purchase of Care,20-Jun-2013,2608058-1337782H,606.26,CAREWATCH (DURHAM & EASINGTON) FASTFLOW ACC.
Adults Wellbeing and Health,Head of Adults,Third Party Payments,472101,Purchase of Care,20-Jun-2013,2608058-1337829H,"1,328.96",CAREWATCH (DURHAM & EASINGTON) FASTFLOW ACC.
Adults Wellbeing and Health,Head of Adults,Third Party Payments,478101,Purchase of Care,20-Jun-2013,2608058-1337840H,682.00,CAREWATCH (DURHAM & EASINGTON) FASTFLOW ACC.
Adults Wellbeing and Health,Head of Adults,Third Party Payments,478101,Purchase of Care,20-Jun-2013,2608058-1337911H,"1,672.00",CAREWATCH (DURHAM & EASINGTON) FASTFLOW ACC.
Adults Wellbeing and Health,Head of Adults,Third Party Payments,472101,Purchase of Care,20-Jun-2013,2608058-1338238H,"1,574.80",CAREWATCH (DURHAM & EASINGTON) FASTFLOW ACC.
Adults Wellbeing and Health,Head of Adults,Third Party Payments,472101,Purchase of Care,20-Jun-2013,2608058-1338268H,"2,972.12",CAREWATCH (DURHAM & EASINGTON) FASTFLOW ACC.
Adults Wellbeing and Health,Head of Adults,Third Party Payments,478101,Purchase of Care,20-Jun-2013,2608058-1338276H,924.00,CAREWATCH (DURHAM & EASINGTON) FASTFLOW ACC.
Adults Wellbeing and Health,Head of Adults,Third Party Payments,472101,Purchase of Care,20-Jun-2013,2608058-1338566H,"1,131.20",CAREWATCH (DURHAM & EASINGTON) FASTFLOW ACC.
Adults Wellbeing and Health,Head of Adults,Third Party Payments,472101,Purchase of Care,20-Jun-2013,2608058-1338574H,621.04,CAREWATCH (DURHAM & EASINGTON) FASTFLOW ACC.
Adults Wellbeing and Health,Head of Adults,Third Party Payments,472101,Purchase of Care,20-Jun-2013,2608058-1338589H,"1,474.96",CAREWATCH (DURHAM & EASINGTON) FASTFLOW ACC.
Adults Wellbeing and Health,Head of Adults,Third Party Payments,472101,Purchase of Care,20-Jun-2013,2608058-1338605H,"1,596.96",CAREWATCH (DURHAM & EASINGTON) FASTFLOW ACC.
Adults Wellbeing and Health,Head of Adults,Third Party Payments,472101,Purchase of Care,20-Jun-2013,2608058-1338606H,646.92,CAREWATCH (DURHAM & EASINGTON) FASTFLOW ACC.
Adults Wellbeing and Health,Head of Adults,Third Party Payments,472101,Purchase of Care,20-Jun-2013,2608058-1338638H,776.32,CAREWATCH (DURHAM & EASINGTON) FASTFLOW ACC.
Adults Wellbeing and Health,Head of Adults,Third Party Payments,472101,Purchase of Care,20-Jun-2013,2608058-1338664H,501.83,CAREWATCH (DURHAM & EASINGTON) FASTFLOW ACC.
Adults Wellbeing and Health,Head of Adults,Third Party Payments,472101,Purchase of Care,20-Jun-2013,2608058-1338666H,576.68,CAREWATCH (DURHAM & EASINGTON) FASTFLOW ACC.
Adults Wellbeing and Health,Head of Adults,Third Party Payments,472101,Purchase of Care,20-Jun-2013,2608058-1338668H,665.40,CAREWATCH (DURHAM & EASINGTON) FASTFLOW ACC.
Adults Wellbeing and Health,Head of Adults,Third Party Payments,472101,Purchase of Care,20-Jun-2013,2608058-1338677H,687.60,CAREWATCH (DURHAM & EASINGTON) FASTFLOW ACC.
Adults Wellbeing and Health,Head of Adults,Third Party Payments,472101,Purchase of Care,20-Jun-2013,2608058-1338795H,517.52,CAREWATCH (DURHAM & EASINGTON) FASTFLOW ACC.
Adults Wellbeing and Health,Head of Adults,Third Party Payments,472101,Purchase of Care,20-Jun-2013,2608058-1338886H,840.08,CAREWATCH (DURHAM & EASINGTON) FASTFLOW ACC.
Adults Wellbeing and Health,Head of Adults,Third Party Payments,472101,Purchase of Care,20-Jun-2013,2608058-1338924H,853.92,CAREWATCH (DURHAM & EASINGTON) FASTFLOW ACC.
Adults Wellbeing and Health,Head of Adults,Third Party Payments,472101,Purchase of Care,20-Jun-2013,2608058-1338930H,510.16,CAREWATCH (DURHAM & EASINGTON) FASTFLOW ACC.
Adults Wellbeing and Health,Head of Adults,Third Party Payments,472101,Purchase of Care,20-Jun-2013,2608058-1338932H,665.40,CAREWATCH (DURHAM & EASINGTON) FASTFLOW ACC.
Adults Wellbeing and Health,Head of Adults,Third Party Payments,472101,Purchase of Care,20-Jun-2013,2608058-1338956H,931.56,CAREWATCH (DURHAM & EASINGTON) FASTFLOW ACC.
Adults Wellbeing and Health,Head of Adults,Third Party Payments,472101,Purchase of Care,20-Jun-2013,2608058-1339008H,"1,052.64",CAREWATCH (DURHAM & EASINGTON) FASTFLOW ACC.
Adults Wellbeing and Health,Head of Adults,Third Party Payments,478101,Purchase of Care,20-Jun-2013,2608058-1339074H,"1,430.00",CAREWATCH (DURHAM & EASINGTON) FASTFLOW ACC.
Adults Wellbeing and Health,Head of Adults,Third Party Payments,472101,Purchase of Care,20-Jun-2013,2608058-1339112H,"2,317.81",CAREWATCH (DURHAM & EASINGTON) FASTFLOW ACC.
Adults Wellbeing and Health,Head of Adults,Third Party Payments,478101,Purchase of Care,20-Jun-2013,2608058-1339187H,"1,800.76",CAREWATCH (DURHAM & EASINGTON) FASTFLOW ACC.
Adults Wellbeing and Health,Head of Adults,Third Party Payments,478101,Purchase of Care,20-Jun-2013,2608058-1339227H,924.00,CAREWATCH (DURHAM & EASINGTON) FASTFLOW ACC.
Adults Wellbeing and Health,Head of Adults,Third Party Payments,472101,Purchase of Care,20-Jun-2013,2608058-1339292H,587.77,CAREWATCH (DURHAM & EASINGTON) FASTFLOW ACC.
Adults Wellbeing and Health,Head of Adults,Third Party Payments,478101,Purchase of Care,20-Jun-2013,2608058-1339303H,"1,298.00",CAREWATCH (DURHAM & EASINGTON) FASTFLOW ACC.
Adults Wellbeing and Health,Head of Adults,Third Party Payments,472101,Purchase of Care,20-Jun-2013,2608058-1339340H,"1,397.36",CAREWATCH (DURHAM & EASINGTON) FASTFLOW ACC.
Adults Wellbeing and Health,Head of Adults,Third Party Payments,472101,Purchase of Care,20-Jun-2013,2608058-1339361H,602.56,CAREWATCH (DURHAM & EASINGTON) FASTFLOW ACC.
Adults Wellbeing and Health,Head of Adults,Third Party Payments,472101,Purchase of Care,20-Jun-2013,2608058-1339435H,"1,280.90",CAREWATCH (DURHAM & EASINGTON) FASTFLOW ACC.
Adults Wellbeing and Health,Head of Adults,Third Party Payments,472101,Purchase of Care,20-Jun-2013,2608058-1339564H,"1,208.81",CAREWATCH (DURHAM & EASINGTON) FASTFLOW ACC.
Adults Wellbeing and Health,Head of Adults,Third Party Payments,472101,Purchase of Care,20-Jun-2013,2608058-1339575H,"1,020.00",CAREWATCH (DURHAM & EASINGTON) FASTFLOW ACC.
Adults Wellbeing and Health,Head of Adults,Third Party Payments,472101,Purchase of Care,20-Jun-2013,2608058-1339601H,"1,197.72",CAREWATCH (DURHAM & EASINGTON) FASTFLOW ACC.
Adults Wellbeing and Health,Head of Adults,Third Party Payments,472101,Purchase of Care,20-Jun-2013,2608058-1339674H,584.07,CAREWATCH (DURHAM & EASINGTON) FASTFLOW ACC.
Adults Wellbeing and Health,Head of Adults,Third Party Payments,472101,Purchase of Care,20-Jun-2013,2608058-1339763H,543.40,CAREWATCH (DURHAM & EASINGTON) FASTFLOW ACC.
Adults Wellbeing and Health,Head of Adults,Third Party Payments,472101,Purchase of Care,20-Jun-2013,2608058-1339929H,507.38,CAREWATCH (DURHAM & EASINGTON) FASTFLOW ACC.
Adults Wellbeing and Health,Head of Adults,Third Party Payments,472101,Purchase of Care,20-Jun-2013,2608058-1339949H,"1,542.92",CAREWATCH (DURHAM & EASINGTON) FASTFLOW ACC.
Adults Wellbeing and Health,Head of Adults,Third Party Payments,472101,Purchase of Care,20-Jun-2013,2608058-1340035H,"1,685.68",CAREWATCH (DURHAM & EASINGTON) FASTFLOW ACC.
Adults Wellbeing and Health,Head of Adults,Third Party Payments,478101,Purchase of Care,20-Jun-2013,2608058-1340086H,"1,980.00",CAREWATCH (DURHAM & EASINGTON) FASTFLOW ACC.
Adults Wellbeing and Health,Head of Adults,Third Party Payments,472101,Purchase of Care,20-Jun-2013,2608058-1340180H,532.32,CAREWATCH (DURHAM & EASINGTON) FASTFLOW ACC.
Adults Wellbeing and Health,Head of Adults,Third Party Payments,472101,Purchase of Care,20-Jun-2013,2608058-1340301H,621.04,CAREWATCH (DURHAM & EASINGTON) FASTFLOW ACC.
Adults Wellbeing and Health,Head of Adults,Third Party Payments,472101,Purchase of Care,20-Jun-2013,2608058-1340600H,658.00,CAREWATCH (DURHAM & EASINGTON) FASTFLOW ACC.
Adults Wellbeing and Health,Head of Adults,Third Party Payments,472101,Purchase of Care,20-Jun-2013,2608058-1340645H,591.48,CAREWATCH (DURHAM & EASINGTON) FASTFLOW ACC.
Adults Wellbeing and Health,Head of Adults,Third Party Payments,472101,Purchase of Care,20-Jun-2013,2608058-1340664H,513.84,CAREWATCH (DURHAM & EASINGTON) FASTFLOW ACC.
Adults Wellbeing and Health,Head of Adults,Third Party Payments,472101,Purchase of Care,20-Jun-2013,2608058-1340697H,"1,059.10",CAREWATCH (DURHAM & EASINGTON) FASTFLOW ACC.
Adults Wellbeing and Health,Head of Adults,Third Party Payments,472101,Purchase of Care,20-Jun-2013,2608058-1340770H,547.10,CAREWATCH (DURHAM & EASINGTON) FASTFLOW ACC.
Adults Wellbeing and Health,Head of Adults,Third Party Payments,472101,Purchase of Care,20-Jun-2013,2608058-1340805H,"1,086.84",CAREWATCH (DURHAM & EASINGTON) FASTFLOW ACC.
Adults Wellbeing and Health,Head of Adults,Third Party Payments,472101,Purchase of Care,20-Jun-2013,2608058-1340810H,576.69,CAREWATCH (DURHAM & EASINGTON) FASTFLOW ACC.
Adults Wellbeing and Health,Head of Adults,Third Party Payments,472101,Purchase of Care,20-Jun-2013,2608058-1340843H,"1,397.36",CAREWATCH (DURHAM & EASINGTON) FASTFLOW ACC.
Adults Wellbeing and Health,Head of Adults,Third Party Payments,472101,Purchase of Care,20-Jun-2013,2608058-1341028H,776.32,CAREWATCH (DURHAM & EASINGTON) FASTFLOW ACC.
Adults Wellbeing and Health,Head of Adults,Third Party Payments,472101,Purchase of Care,20-Jun-2013,2608058-1341048H,665.40,CAREWATCH (DURHAM & EASINGTON) FASTFLOW ACC.
Adults Wellbeing and Health,Head of Adults,Third Party Payments,472101,Purchase of Care,20-Jun-2013,2608058-1341071H,596.10,CAREWATCH (DURHAM & EASINGTON) FASTFLOW ACC.
Adults Wellbeing and Health,Head of Adults,Third Party Payments,472101,Purchase of Care,20-Jun-2013,2608058-1341192H,643.24,CAREWATCH (DURHAM & EASINGTON) FASTFLOW ACC.
Adults Wellbeing and Health,Head of Adults,Third Party Payments,472101,Purchase of Care,20-Jun-2013,2608058-1341206H,548.96,CAREWATCH (DURHAM & EASINGTON) FASTFLOW ACC.
Adults Wellbeing and Health,Head of Adults,Third Party Payments,472101,Purchase of Care,20-Jun-2013,2608058-1341209H,"1,300.32",CAREWATCH (DURHAM & EASINGTON) FASTFLOW ACC.
Adults Wellbeing and Health,Head of Adults,Third Party Payments,472101,Purchase of Care,20-Jun-2013,2608058-1341508H,621.04,CAREWATCH (DURHAM & EASINGTON) FASTFLOW ACC.
Adults Wellbeing and Health,Head of Adults,Third Party Payments,472101,Purchase of Care,20-Jun-2013,2608058-1341700H,569.28,CAREWATCH (DURHAM & EASINGTON) FASTFLOW ACC.
Adults Wellbeing and Health,Head of Adults,Third Party Payments,472101,Purchase of Care,20-Jun-2013,2608058-1341795H,"1,530.44",CAREWATCH (DURHAM & EASINGTON) FASTFLOW ACC.
Adults Wellbeing and Health,Head of Adults,Third Party Payments,472101,Purchase of Care,20-Jun-2013,2608058-1341809H,669.08,CAREWATCH (DURHAM & EASINGTON) FASTFLOW ACC.
Adults Wellbeing and Health,Head of Adults,Third Party Payments,472101,Purchase of Care,20-Jun-2013,2608058-1341863H,754.12,CAREWATCH (DURHAM & EASINGTON) FASTFLOW ACC.
Adults Wellbeing and Health,Head of Adults,Third Party Payments,472101,Purchase of Care,20-Jun-2013,2608058-1342011H,687.60,CAREWATCH (DURHAM & EASINGTON) FASTFLOW ACC.
Adults Wellbeing and Health,Head of Adults,Third Party Payments,472101,Purchase of Care,20-Jun-2013,2608058-1342050H,609.96,CAREWATCH (DURHAM & EASINGTON) FASTFLOW ACC.
Adults Wellbeing and Health,Head of Adults,Third Party Payments,472101,Purchase of Care,20-Jun-2013,2608058-1342134H,687.58,CAREWATCH (DURHAM & EASINGTON) FASTFLOW ACC.
Adults Wellbeing and Health,Head of Adults,Third Party Payments,472101,Purchase of Care,20-Jun-2013,2608058-1342199H,713.45,CAREWATCH (DURHAM & EASINGTON) FASTFLOW ACC.
Adults Wellbeing and Health,Head of Adults,Third Party Payments,472101,Purchase of Care,20-Jun-2013,2608058-1342212H,621.04,CAREWATCH (DURHAM & EASINGTON) FASTFLOW ACC.
Adults Wellbeing and Health,Head of Adults,Third Party Payments,472101,Purchase of Care,20-Jun-2013,2608058-1342364H,532.31,CAREWATCH (DURHAM & EASINGTON) FASTFLOW ACC.
Adults Wellbeing and Health,Head of Adults,Third Party Payments,472101,Purchase of Care,20-Jun-2013,2608058-1342579H,565.59,CAREWATCH (DURHAM & EASINGTON) FASTFLOW ACC.
Adults Wellbeing and Health,Head of Adults,Third Party Payments,472101,Purchase of Care,20-Jun-2013,2608058-1342582H,561.89,CAREWATCH (DURHAM & EASINGTON) FASTFLOW ACC.
Adults Wellbeing and Health,Head of Adults,Third Party Payments,472101,Purchase of Care,20-Jun-2013,2608058-1342755H,632.15,CAREWATCH (DURHAM & EASINGTON) FASTFLOW ACC.
Adults Wellbeing and Health,Head of Adults,Third Party Payments,472101,Purchase of Care,20-Jun-2013,2608058-1342761H,513.84,CAREWATCH (DURHAM & EASINGTON) FASTFLOW ACC.
Adults Wellbeing and Health,Head of Adults,Third Party Payments,472101,Purchase of Care,20-Jun-2013,2608058-1342793H,"1,286.44",CAREWATCH (DURHAM & EASINGTON) FASTFLOW ACC.
Adults Wellbeing and Health,Head of Adults,Third Party Payments,472101,Purchase of Care,20-Jun-2013,2608058-1342887H,573.91,CAREWATCH (DURHAM & EASINGTON) FASTFLOW ACC.
Adults Wellbeing and Health,Head of Adults,Third Party Payments,472101,Purchase of Care,20-Jun-2013,2608058-1343026H,532.32,CAREWATCH (DURHAM & EASINGTON) FASTFLOW ACC.
Adults Wellbeing and Health,Head of Adults,Third Party Payments,472101,Purchase of Care,20-Jun-2013,2608058-1343113H,776.32,CAREWATCH (DURHAM & EASINGTON) FASTFLOW ACC.
Adults Wellbeing and Health,Head of Adults,Third Party Payments,472101,Purchase of Care,20-Jun-2013,2608058-1343137H,628.44,CAREWATCH (DURHAM & EASINGTON) FASTFLOW ACC.
Adults Wellbeing and Health,Head of Adults,Third Party Payments,472101,Purchase of Care,20-Jun-2013,2608058-1343138H,621.04,CAREWATCH (DURHAM & EASINGTON) FASTFLOW ACC.
Adults Wellbeing and Health,Head of Adults,Third Party Payments,472101,Purchase of Care,20-Jun-2013,2608058-1343144H,593.33,CAREWATCH (DURHAM & EASINGTON) FASTFLOW ACC.
Adults Wellbeing and Health,Head of Adults,Third Party Payments,472101,Purchase of Care,20-Jun-2013,2608058-1343151H,517.52,CAREWATCH (DURHAM & EASINGTON) FASTFLOW ACC.
Adults Wellbeing and Health,Head of Adults,Third Party Payments,472101,Purchase of Care,20-Jun-2013,2608058-1343184H,665.40,CAREWATCH (DURHAM & EASINGTON) FASTFLOW ACC.
Adults Wellbeing and Health,Head of Adults,Third Party Payments,472101,Purchase of Care,20-Jun-2013,2608058-1343347H,831.76,CAREWATCH (DURHAM & EASINGTON) FASTFLOW ACC.
Adults Wellbeing and Health,Head of Adults,Third Party Payments,472101,Purchase of Care,20-Jun-2013,2608073-1338460H,949.52,CASTLE CARE TEESDALE LTD.
Adults Wellbeing and Health,Head of Adults,Third Party Payments,472101,Purchase of Care,20-Jun-2013,2608073-1341053H,896.76,CASTLE CARE TEESDALE LTD.
Adults Wellbeing and Health,Head of Adults,Third Party Payments,472101,Purchase of Care,20-Jun-2013,2608073-1341091H,"1,455.92",CASTLE CARE TEESDALE LTD.
Adults Wellbeing and Health,Head of Adults,Third Party Payments,471101,Purchase of Care,20-Jun-2013,2608083-2106443,"2,600.00",CEDAR CARE HOMES LTD.
Adults Wellbeing and Health,Head of Adults,Third Party Payments,471101,Purchase of Care,20-Jun-2013,2608095-2106477,"1,780.00",CHERRY TREE LODGE.
Adults Wellbeing and Health,Head of Adults,Third Party Payments,470101,Purchase of Care,20-Jun-2013,2608097-2103437,941.08,CHILTON CARE CENTRE.
Adults Wellbeing and Health,Head of Adults,Third Party Payments,470101,Purchase of Care,20-Jun-2013,2608097-2103445,"1,002.44",CHILTON CARE CENTRE.
Adults Wellbeing and Health,Head of Adults,Third Party Payments,470101,Purchase of Care,20-Jun-2013,2608097-2103446,"1,152.59",CHILTON CARE CENTRE.
Adults Wellbeing and Health,Head of Adults,Third Party Payments,470101,Purchase of Care,20-Jun-2013,2608097-2103447,"1,053.00",CHILTON CARE CENTRE.
Adults Wellbeing and Health,Head of Adults,Third Party Payments,470101,Purchase of Care,20-Jun-2013,2608097-2103448,576.29,CHILTON CARE CENTRE.
Adults Wellbeing and Health,Head of Adults,Third Party Payments,470101,Purchase of Care,20-Jun-2013,2608097-2103449,"1,271.80",CHILTON CARE CENTRE.
Adults Wellbeing and Health,Head of Adults,Third Party Payments,470101,Purchase of Care,20-Jun-2013,2608097-2103450,"1,792.92",CHILTON CARE CENTRE.
Adults Wellbeing and Health,Head of Adults,Third Party Payments,470101,Purchase of Care,20-Jun-2013,2608097-2103451,"1,324.88",CHILTON CARE CENTRE.
Adults Wellbeing and Health,Head of Adults,Third Party Payments,470101,Purchase of Care,20-Jun-2013,2608097-2103452,"1,180.40",CHILTON CARE CENTRE.
Adults Wellbeing and Health,Head of Adults,Third Party Payments,470101,Purchase of Care,20-Jun-2013,2608097-2103453,882.30,CHILTON CARE CENTRE.
Adults Wellbeing and Health,Head of Adults,Third Party Payments,470101,Purchase of Care,20-Jun-2013,2608097-2103454,601.60,CHILTON CARE CENTRE.
Adults Wellbeing and Health,Head of Adults,Third Party Payments,470101,Purchase of Care,20-Jun-2013,2608097-2103455,"1,305.16",CHILTON CARE CENTRE.
Adults Wellbeing and Health,Head of Adults,Third Party Payments,470101,Purchase of Care,20-Jun-2013,2608097-2103456,"1,306.68",CHILTON CARE CENTRE.
Adults Wellbeing and Health,Head of Adults,Third Party Payments,470101,Purchase of Care,20-Jun-2013,2608097-2103457,"1,306.92",CHILTON CARE CENTRE.
Adults Wellbeing and Health,Head of Adults,Third Party Payments,470101,Purchase of Care,20-Jun-2013,2608097-2103458,"1,792.92",CHILTON CARE CENTRE.
Adults Wellbeing and Health,Head of Adults,Third Party Payments,470101,Purchase of Care,20-Jun-2013,2608097-2103459,"1,792.92",CHILTON CARE CENTRE.
Adults Wellbeing and Health,Head of Adults,Third Party Payments,470101,Purchase of Care,20-Jun-2013,2608097-2103460,"1,154.84",CHILTON CARE CENTRE.
Adults Wellbeing and Health,Head of Adults,Third Party Payments,470101,Purchase of Care,20-Jun-2013,2608097-2103461,683.08,CHILTON CARE CENTRE.
Adults Wellbeing and Health,Head of Adults,Third Party Payments,471101,Purchase of Care,20-Jun-2013,2608097-2106686,"1,184.16",CHILTON CARE CENTRE.
Adults Wellbeing and Health,Head of Adults,Third Party Payments,471101,Purchase of Care,20-Jun-2013,2608097-2106687,"1,377.80",CHILTON CARE CENTRE.
Adults Wellbeing and Health,Head of Adults,Third Party Payments,471101,Purchase of Care,20-Jun-2013,2608097-2106688,"1,173.80",CHILTON CARE CENTRE.
Adults Wellbeing and Health,Head of Adults,Third Party Payments,471101,Purchase of Care,20-Jun-2013,2608097-2106690,"1,377.80",CHILTON CARE CENTRE.
Adults Wellbeing and Health,Head of Adults,Third Party Payments,471101,Purchase of Care,20-Jun-2013,2608097-2106691,"1,863.80",CHILTON CARE CENTRE.
Adults Wellbeing and Health,Head of Adults,Third Party Payments,471101,Purchase of Care,20-Jun-2013,2608097-2106698,"1,255.60",CHILTON CARE CENTRE.
Adults Wellbeing and Health,Head of Adults,Third Party Payments,471101,Purchase of Care,20-Jun-2013,2608097-2106699,"1,863.80",CHILTON CARE CENTRE.
Adults Wellbeing and Health,Head of Adults,Third Party Payments,471101,Purchase of Care,20-Jun-2013,2608097-2106700,"1,195.64",CHILTON CARE CENTRE.
Adults Wellbeing and Health,Head of Adults,Third Party Payments,471101,Purchase of Care,20-Jun-2013,2608097-2106701,"1,863.80",CHILTON CARE CENTRE.
Adults Wellbeing and Health,Head of Adults,Third Party Payments,471101,Purchase of Care,20-Jun-2013,2608097-2106702,"1,333.28",CHILTON CARE CENTRE.
Adults Wellbeing and Health,Head of Adults,Third Party Payments,471101,Purchase of Care,20-Jun-2013,2608097-2106703,"1,000.52",CHILTON CARE CENTRE.
Adults Wellbeing and Health,Head of Adults,Third Party Payments,471101,Purchase of Care,20-Jun-2013,2608097-2106704,"1,863.80",CHILTON CARE CENTRE.
Adults Wellbeing and Health,Head of Adults,Third Party Payments,471101,Purchase of Care,20-Jun-2013,2608097-2106705,"1,863.80",CHILTON CARE CENTRE.
Adults Wellbeing and Health,Head of Adults,Third Party Payments,471101,Purchase of Care,20-Jun-2013,2608097-2106706,"1,377.80",CHILTON CARE CENTRE.
Adults Wellbeing and Health,Head of Adults,Third Party Payments,471101,Purchase of Care,20-Jun-2013,2608097-2106707,"1,074.52",CHILTON CARE CENTRE.
Adults Wellbeing and Health,Head of Adults,Third Party Payments,471101,Purchase of Care,20-Jun-2013,2608097-2106708,"1,377.80",CHILTON CARE CENTRE.
Adults Wellbeing and Health,Head of Adults,Third Party Payments,471101,Purchase of Care,20-Jun-2013,2608097-2106709,"1,377.80",CHILTON CARE CENTRE.
Adults Wellbeing and Health,Head of Adults,Third Party Payments,470101,Purchase of Care,20-Jun-2013,2608097-2106710,"1,265.96",CHILTON CARE CENTRE.
Adults Wellbeing and Health,Head of Adults,Third Party Payments,470101,Purchase of Care,20-Jun-2013,2608097-2107497,640.32,CHILTON CARE CENTRE.
Adults Wellbeing and Health,Head of Adults,Third Party Payments,470101,Purchase of Care,20-Jun-2013,2608097-2107636,"1,797.23",CHILTON CARE CENTRE.
Adults Wellbeing and Health,Head of Adults,Third Party Payments,478101,Purchase of Care,20-Jun-2013,2608100-1337239H,"3,545.64",CHOICES COMMUNITY CARE SERVICES LTD.
Adults Wellbeing and Health,Head of Adults,Third Party Payments,478101,Purchase of Care,20-Jun-2013,2608100-1338078H,"5,528.60",CHOICES COMMUNITY CARE SERVICES LTD.
Adults Wellbeing and Health,Head of Adults,Third Party Payments,478101,Purchase of Care,20-Jun-2013,2608100-1338231H,"2,220.40",CHOICES COMMUNITY CARE SERVICES LTD.
Adults Wellbeing and Health,Head of Adults,Third Party Payments,478101,Purchase of Care,20-Jun-2013,2608100-1338394H,614.60,CHOICES COMMUNITY CARE SERVICES LTD.
Adults Wellbeing and Health,Head of Adults,Third Party Payments,478101,Purchase of Care,20-Jun-2013,2608100-1338395H,"1,605.80",CHOICES COMMUNITY CARE SERVICES LTD.
Adults Wellbeing and Health,Head of Adults,Third Party Payments,478101,Purchase of Care,20-Jun-2013,2608100-1338514H,"3,170.09",CHOICES COMMUNITY CARE SERVICES LTD.
Adults Wellbeing and Health,Head of Adults,Third Party Payments,478101,Purchase of Care,20-Jun-2013,2608100-1338542H,"3,567.64",CHOICES COMMUNITY CARE SERVICES LTD.
Adults Wellbeing and Health,Head of Adults,Third Party Payments,478101,Purchase of Care,20-Jun-2013,2608100-1339120H,"3,320.72",CHOICES COMMUNITY CARE SERVICES LTD.
Adults Wellbeing and Health,Head of Adults,Third Party Payments,470101,Purchase of Care,20-Jun-2013,2608106-2103444,"1,894.36",CHURCH VIEW CARE HOME.
Adults Wellbeing and Health,Head of Adults,Third Party Payments,470101,Purchase of Care,20-Jun-2013,2608106-2103509,"1,894.36",CHURCH VIEW CARE HOME.
Adults Wellbeing and Health,Head of Adults,Third Party Payments,470101,Purchase of Care,20-Jun-2013,2608106-2103510,"1,894.36",CHURCH VIEW CARE HOME.
Adults Wellbeing and Health,Head of Adults,Third Party Payments,470101,Purchase of Care,20-Jun-2013,2608106-2103511,"1,894.36",CHURCH VIEW CARE HOME.
Adults Wellbeing and Health,Head of Adults,Third Party Payments,470101,Purchase of Care,20-Jun-2013,2608106-2103512,"1,894.36",CHURCH VIEW CARE HOME.
Adults Wellbeing and Health,Head of Adults,Third Party Payments,470101,Purchase of Care,20-Jun-2013,2608106-2103513,"1,894.36",CHURCH VIEW CARE HOME.
Adults Wellbeing and Health,Head of Adults,Third Party Payments,470101,Purchase of Care,20-Jun-2013,2608106-2103514,"1,894.36",CHURCH VIEW CARE HOME.
Adults Wellbeing and Health,Head of Adults,Third Party Payments,470101,Purchase of Care,20-Jun-2013,2608106-2103515,"1,894.36",CHURCH VIEW CARE HOME.
Adults Wellbeing and Health,Head of Adults,Third Party Payments,470101,Purchase of Care,20-Jun-2013,2608106-2103516,"1,894.36",CHURCH VIEW CARE HOME.
Adults Wellbeing and Health,Head of Adults,Third Party Payments,470101,Purchase of Care,20-Jun-2013,2608106-2103517,"1,894.36",CHURCH VIEW CARE HOME.
Adults Wellbeing and Health,Head of Adults,Third Party Payments,470101,Purchase of Care,20-Jun-2013,2608106-2103518,"1,894.36",CHURCH VIEW CARE HOME.
Adults Wellbeing and Health,Head of Adults,Third Party Payments,470101,Purchase of Care,20-Jun-2013,2608106-2103519,"1,894.36",CHURCH VIEW CARE HOME.
Adults Wellbeing and Health,Head of Adults,Third Party Payments,470101,Purchase of Care,20-Jun-2013,2608106-2103520,"1,894.36",CHURCH VIEW CARE HOME.
Adults Wellbeing and Health,Head of Adults,Third Party Payments,470101,Purchase of Care,20-Jun-2013,2608106-2103521,"1,894.36",CHURCH VIEW CARE HOME.
Adults Wellbeing and Health,Head of Adults,Third Party Payments,470101,Purchase of Care,20-Jun-2013,2608106-2103522,"1,894.36",CHURCH VIEW CARE HOME.
Adults Wellbeing and Health,Head of Adults,Third Party Payments,470101,Purchase of Care,20-Jun-2013,2608106-2103523,"1,894.36",CHURCH VIEW CARE HOME.
Adults Wellbeing and Health,Head of Adults,Third Party Payments,470101,Purchase of Care,20-Jun-2013,2608106-2103524,"1,894.36",CHURCH VIEW CARE HOME.
Adults Wellbeing and Health,Head of Adults,Third Party Payments,470101,Purchase of Care,20-Jun-2013,2608106-2103525,"1,894.36",CHURCH VIEW CARE HOME.
Adults Wellbeing and Health,Head of Adults,Third Party Payments,471101,Purchase of Care,20-Jun-2013,2608106-2106755,"1,964.28",CHURCH VIEW CARE HOME.
Adults Wellbeing and Health,Head of Adults,Third Party Payments,471101,Purchase of Care,20-Jun-2013,2608106-2106756,"1,964.28",CHURCH VIEW CARE HOME.
Adults Wellbeing and Health,Head of Adults,Third Party Payments,471101,Purchase of Care,20-Jun-2013,2608106-2106757,"1,964.28",CHURCH VIEW CARE HOME.
Adults Wellbeing and Health,Head of Adults,Third Party Payments,471101,Purchase of Care,20-Jun-2013,2608106-2106758,"1,964.28",CHURCH VIEW CARE HOME.
Adults Wellbeing and Health,Head of Adults,Third Party Payments,471101,Purchase of Care,20-Jun-2013,2608106-2106759,"1,964.28",CHURCH VIEW CARE HOME.
Adults Wellbeing and Health,Head of Adults,Third Party Payments,471101,Purchase of Care,20-Jun-2013,2608106-2106760,"1,964.28",CHURCH VIEW CARE HOME.
Adults Wellbeing and Health,Head of Adults,Third Party Payments,471101,Purchase of Care,20-Jun-2013,2608106-2106761,"1,964.28",CHURCH VIEW CARE HOME.
Adults Wellbeing and Health,Head of Adults,Third Party Payments,471101,Purchase of Care,20-Jun-2013,2608106-2106762,"1,964.28",CHURCH VIEW CARE HOME.
Adults Wellbeing and Health,Head of Adults,Third Party Payments,471101,Purchase of Care,20-Jun-2013,2608106-2106763,"5,872.98",CHURCH VIEW CARE HOME.
Adults Wellbeing and Health,Head of Adults,Third Party Payments,471101,Purchase of Care,20-Jun-2013,2608106-2106764,"1,964.28",CHURCH VIEW CARE HOME.
Adults Wellbeing and Health,Head of Adults,Third Party Payments,471101,Purchase of Care,20-Jun-2013,2608106-2106765,"1,964.28",CHURCH VIEW CARE HOME.
Adults Wellbeing and Health,Head of Adults,Third Party Payments,471101,Purchase of Care,20-Jun-2013,2608106-2106766,"1,964.28",CHURCH VIEW CARE HOME.
Adults Wellbeing and Health,Head of Adults,Third Party Payments,471101,Purchase of Care,20-Jun-2013,2608106-2106767,"1,964.28",CHURCH VIEW CARE HOME.
Adults Wellbeing and Health,Head of Adults,Third Party Payments,471101,Purchase of Care,20-Jun-2013,2608106-2106768,"1,964.28",CHURCH VIEW CARE HOME.
Adults Wellbeing and Health,Head of Adults,Third Party Payments,471101,Purchase of Care,20-Jun-2013,2608106-2106769,"1,964.28",CHURCH VIEW CARE HOME.
Adults Wellbeing and Health,Head of Adults,Third Party Payments,470101,Purchase of Care,20-Jun-2013,2608107-2103253,"1,792.92",CHURCH VIEW RESIDENTIAL CARE HOME.
Adults Wellbeing and Health,Head of Adults,Third Party Payments,470101,Purchase of Care,20-Jun-2013,2608107-2103254,"1,792.92",CHURCH VIEW RESIDENTIAL CARE HOME.
Adults Wellbeing and Health,Head of Adults,Third Party Payments,470101,Purchase of Care,20-Jun-2013,2608107-2103255,"1,792.92",CHURCH VIEW RESIDENTIAL CARE HOME.
Adults Wellbeing and Health,Head of Adults,Third Party Payments,470101,Purchase of Care,20-Jun-2013,2608107-2103256,"1,792.92",CHURCH VIEW RESIDENTIAL CARE HOME.
Adults Wellbeing and Health,Head of Adults,Third Party Payments,470101,Purchase of Care,20-Jun-2013,2608107-2103257,"1,216.62",CHURCH VIEW RESIDENTIAL CARE HOME.
Adults Wellbeing and Health,Head of Adults,Third Party Payments,470101,Purchase of Care,20-Jun-2013,2608107-2103258,576.29,CHURCH VIEW RESIDENTIAL CARE HOME.
Adults Wellbeing and Health,Head of Adults,Third Party Payments,470101,Purchase of Care,20-Jun-2013,2608107-2103259,"1,792.92",CHURCH VIEW RESIDENTIAL CARE HOME.
Adults Wellbeing and Health,Head of Adults,Third Party Payments,470101,Purchase of Care,20-Jun-2013,2608107-2103260,"1,792.92",CHURCH VIEW RESIDENTIAL CARE HOME.
Adults Wellbeing and Health,Head of Adults,Third Party Payments,470101,Purchase of Care,20-Jun-2013,2608107-2103261,"1,792.92",CHURCH VIEW RESIDENTIAL CARE HOME.
Adults Wellbeing and Health,Head of Adults,Third Party Payments,470101,Purchase of Care,20-Jun-2013,2608107-2103262,"1,792.92",CHURCH VIEW RESIDENTIAL CARE HOME.
Adults Wellbeing and Health,Head of Adults,Third Party Payments,470101,Purchase of Care,20-Jun-2013,2608107-2103263,"1,792.92",CHURCH VIEW RESIDENTIAL CARE HOME.
Adults Wellbeing and Health,Head of Adults,Third Party Payments,470101,Purchase of Care,20-Jun-2013,2608107-2103264,"1,152.59",CHURCH VIEW RESIDENTIAL CARE HOME.
Adults Wellbeing and Health,Head of Adults,Third Party Payments,470101,Purchase of Care,20-Jun-2013,2608107-2103265,"1,792.92",CHURCH VIEW RESIDENTIAL CARE HOME.
Adults Wellbeing and Health,Head of Adults,Third Party Payments,470101,Purchase of Care,20-Jun-2013,2608107-2103266,"1,792.92",CHURCH VIEW RESIDENTIAL CARE HOME.
Adults Wellbeing and Health,Head of Adults,Third Party Payments,470101,Purchase of Care,20-Jun-2013,2608107-2103267,"1,792.92",CHURCH VIEW RESIDENTIAL CARE HOME.
Adults Wellbeing and Health,Head of Adults,Third Party Payments,470101,Purchase of Care,20-Jun-2013,2608107-2103268,"1,792.92",CHURCH VIEW RESIDENTIAL CARE HOME.
Adults Wellbeing and Health,Head of Adults,Third Party Payments,471101,Purchase of Care,20-Jun-2013,2608107-2106520,"1,863.80",CHURCH VIEW RESIDENTIAL CARE HOME.
Adults Wellbeing and Health,Head of Adults,Third Party Payments,471101,Purchase of Care,20-Jun-2013,2608107-2106521,"1,863.80",CHURCH VIEW RESIDENTIAL CARE HOME.
Adults Wellbeing and Health,Head of Adults,Third Party Payments,471101,Purchase of Care,20-Jun-2013,2608107-2106522,"1,863.80",CHURCH VIEW RESIDENTIAL CARE HOME.
Adults Wellbeing and Health,Head of Adults,Third Party Payments,471101,Purchase of Care,20-Jun-2013,2608107-2106527,"1,863.80",CHURCH VIEW RESIDENTIAL CARE HOME.
Adults Wellbeing and Health,Head of Adults,Third Party Payments,471101,Purchase of Care,20-Jun-2013,2608107-2106528,"2,059.57",CHURCH VIEW RESIDENTIAL CARE HOME.
Adults Wellbeing and Health,Head of Adults,Third Party Payments,471101,Purchase of Care,20-Jun-2013,2608107-2106529,"1,863.80",CHURCH VIEW RESIDENTIAL CARE HOME.
Adults Wellbeing and Health,Head of Adults,Third Party Payments,471101,Purchase of Care,20-Jun-2013,2608107-2106530,"1,863.80",CHURCH VIEW RESIDENTIAL CARE HOME.
Adults Wellbeing and Health,Head of Adults,Third Party Payments,471101,Purchase of Care,20-Jun-2013,2608107-2106532,"1,863.80",CHURCH VIEW RESIDENTIAL CARE HOME.
Adults Wellbeing and Health,Head of Adults,Third Party Payments,471101,Purchase of Care,20-Jun-2013,2608107-2106534,"1,863.80",CHURCH VIEW RESIDENTIAL CARE HOME.
Adults Wellbeing and Health,Head of Adults,Third Party Payments,471101,Purchase of Care,20-Jun-2013,2608107-2106535,"1,863.80",CHURCH VIEW RESIDENTIAL CARE HOME.
Adults Wellbeing and Health,Head of Adults,Third Party Payments,471101,Purchase of Care,20-Jun-2013,2608107-2106536,931.90,CHURCH VIEW RESIDENTIAL CARE HOME.
Adults Wellbeing and Health,Head of Adults,Third Party Payments,471101,Purchase of Care,20-Jun-2013,2608107-2106537,"1,863.80",CHURCH VIEW RESIDENTIAL CARE HOME.
Adults Wellbeing and Health,Head of Adults,Third Party Payments,471101,Purchase of Care,20-Jun-2013,2608107-2106538,"1,863.80",CHURCH VIEW RESIDENTIAL CARE HOME.
Adults Wellbeing and Health,Head of Adults,Third Party Payments,471101,Purchase of Care,20-Jun-2013,2608107-2106539,"1,863.80",CHURCH VIEW RESIDENTIAL CARE HOME.
Adults Wellbeing and Health,Head of Adults,Third Party Payments,471101,Purchase of Care,20-Jun-2013,2608107-2106540,"1,863.80",CHURCH VIEW RESIDENTIAL CARE HOME.
Adults Wellbeing and Health,Head of Adults,Third Party Payments,470101,Purchase of Care,20-Jun-2013,2608107-2107312,"7,716.81",CHURCH VIEW RESIDENTIAL CARE HOME.
Adults Wellbeing and Health,Head of Adults,Third Party Payments,471101,Purchase of Care,20-Jun-2013,2608107-2107556,732.20,CHURCH VIEW RESIDENTIAL CARE HOME.
Adults Wellbeing and Health,Head of Adults,Third Party Payments,471101,Purchase of Care,20-Jun-2013,2608107-2107557,931.90,CHURCH VIEW RESIDENTIAL CARE HOME.
Adults Wellbeing and Health,Head of Adults,Third Party Payments,474101,Purchase of Care,20-Jun-2013,2608124-2105974,"1,673.20",CLEVELAND PARK CARE HOME.
Adults Wellbeing and Health,Head of Adults,Third Party Payments,472101,Purchase of Care,20-Jun-2013,2608138-1336505H,513.84,COMFORT CALL LTD.
Adults Wellbeing and Health,Head of Adults,Third Party Payments,472101,Purchase of Care,20-Jun-2013,2608138-1336516H,591.48,COMFORT CALL LTD.
Adults Wellbeing and Health,Head of Adults,Third Party Payments,472101,Purchase of Care,20-Jun-2013,2608138-1336637H,815.13,COMFORT CALL LTD.
Adults Wellbeing and Health,Head of Adults,Third Party Payments,472101,Purchase of Care,20-Jun-2013,2608138-1336752H,"1,156.13",COMFORT CALL LTD.
Adults Wellbeing and Health,Head of Adults,Third Party Payments,472101,Purchase of Care,20-Jun-2013,2608138-1337116H,"1,001.79",COMFORT CALL LTD.
Adults Wellbeing and Health,Head of Adults,Third Party Payments,472101,Purchase of Care,20-Jun-2013,2608138-1337163H,920.48,COMFORT CALL LTD.
Adults Wellbeing and Health,Head of Adults,Third Party Payments,472101,Purchase of Care,20-Jun-2013,2608138-1337181H,517.52,COMFORT CALL LTD.
Adults Wellbeing and Health,Head of Adults,Third Party Payments,472101,Purchase of Care,20-Jun-2013,2608138-1337188H,792.94,COMFORT CALL LTD.
Adults Wellbeing and Health,Head of Adults,Third Party Payments,472101,Purchase of Care,20-Jun-2013,2608138-1337293H,842.84,COMFORT CALL LTD.
Adults Wellbeing and Health,Head of Adults,Third Party Payments,472101,Purchase of Care,20-Jun-2013,2608138-1337296H,510.16,COMFORT CALL LTD.
Adults Wellbeing and Health,Head of Adults,Third Party Payments,472101,Purchase of Care,20-Jun-2013,2608138-1337311H,513.84,COMFORT CALL LTD.
Adults Wellbeing and Health,Head of Adults,Third Party Payments,472101,Purchase of Care,20-Jun-2013,2608138-1337460H,550.80,COMFORT CALL LTD.
Adults Wellbeing and Health,Head of Adults,Third Party Payments,472101,Purchase of Care,20-Jun-2013,2608138-1337612H,"1,175.55",COMFORT CALL LTD.
Adults Wellbeing and Health,Head of Adults,Third Party Payments,472101,Purchase of Care,20-Jun-2013,2608138-1337718H,550.80,COMFORT CALL LTD.
Adults Wellbeing and Health,Head of Adults,Third Party Payments,472101,Purchase of Care,20-Jun-2013,2608138-1337752H,"1,242.08",COMFORT CALL LTD.
Adults Wellbeing and Health,Head of Adults,Third Party Payments,472101,Purchase of Care,20-Jun-2013,2608138-1338553H,717.16,COMFORT CALL LTD.
Adults Wellbeing and Health,Head of Adults,Third Party Payments,472101,Purchase of Care,20-Jun-2013,2608138-1338556H,"1,030.64",COMFORT CALL LTD.
Adults Wellbeing and Health,Head of Adults,Third Party Payments,472101,Purchase of Care,20-Jun-2013,2608138-1338565H,554.52,COMFORT CALL LTD.
Adults Wellbeing and Health,Head of Adults,Third Party Payments,472101,Purchase of Care,20-Jun-2013,2608138-1338568H,953.74,COMFORT CALL LTD.
Adults Wellbeing and Health,Head of Adults,Third Party Payments,472101,Purchase of Care,20-Jun-2013,2608138-1338627H,"1,236.55",COMFORT CALL LTD.
Adults Wellbeing and Health,Head of Adults,Third Party Payments,472101,Purchase of Care,20-Jun-2013,2608138-1338630H,615.50,COMFORT CALL LTD.
Adults Wellbeing and Health,Head of Adults,Third Party Payments,472101,Purchase of Care,20-Jun-2013,2608138-1338639H,526.78,COMFORT CALL LTD.
Adults Wellbeing and Health,Head of Adults,Third Party Payments,472101,Purchase of Care,20-Jun-2013,2608138-1338674H,502.76,COMFORT CALL LTD.
Adults Wellbeing and Health,Head of Adults,Third Party Payments,472101,Purchase of Care,20-Jun-2013,2608138-1338682H,"1,035.08",COMFORT CALL LTD.
Adults Wellbeing and Health,Head of Adults,Third Party Payments,472101,Purchase of Care,20-Jun-2013,2608138-1338685H,"1,086.84",COMFORT CALL LTD.
Adults Wellbeing and Health,Head of Adults,Third Party Payments,472101,Purchase of Care,20-Jun-2013,2608138-1338738H,546.18,COMFORT CALL LTD.
Adults Wellbeing and Health,Head of Adults,Third Party Payments,472101,Purchase of Care,20-Jun-2013,2608138-1338763H,723.67,COMFORT CALL LTD.
Adults Wellbeing and Health,Head of Adults,Third Party Payments,472101,Purchase of Care,20-Jun-2013,2608138-1338787H,515.68,COMFORT CALL LTD.
Adults Wellbeing and Health,Head of Adults,Third Party Payments,472101,Purchase of Care,20-Jun-2013,2608138-1338797H,698.67,COMFORT CALL LTD.
Adults Wellbeing and Health,Head of Adults,Third Party Payments,472101,Purchase of Care,20-Jun-2013,2608138-1338798H,"1,397.36",COMFORT CALL LTD.
Adults Wellbeing and Health,Head of Adults,Third Party Payments,472101,Purchase of Care,20-Jun-2013,2608138-1338799H,"1,547.06",COMFORT CALL LTD.
Adults Wellbeing and Health,Head of Adults,Third Party Payments,472101,Purchase of Care,20-Jun-2013,2608138-1338804H,"1,449.08",COMFORT CALL LTD.
Adults Wellbeing and Health,Head of Adults,Third Party Payments,472101,Purchase of Care,20-Jun-2013,2608138-1338805H,613.64,COMFORT CALL LTD.
Adults Wellbeing and Health,Head of Adults,Third Party Payments,472101,Purchase of Care,20-Jun-2013,2608138-1338834H,720.00,COMFORT CALL LTD.
Adults Wellbeing and Health,Head of Adults,Third Party Payments,472101,Purchase of Care,20-Jun-2013,2608138-1338866H,521.23,COMFORT CALL LTD.
Adults Wellbeing and Health,Head of Adults,Third Party Payments,472101,Purchase of Care,20-Jun-2013,2608138-1338909H,698.67,COMFORT CALL LTD.
Adults Wellbeing and Health,Head of Adults,Third Party Payments,472101,Purchase of Care,20-Jun-2013,2608138-1339045H,504.61,COMFORT CALL LTD.
Adults Wellbeing and Health,Head of Adults,Third Party Payments,472101,Purchase of Care,20-Jun-2013,2608138-1339057H,504.61,COMFORT CALL LTD.
Adults Wellbeing and Health,Head of Adults,Third Party Payments,472101,Purchase of Care,20-Jun-2013,2608138-1339072H,621.06,COMFORT CALL LTD.
Adults Wellbeing and Health,Head of Adults,Third Party Payments,472101,Purchase of Care,20-Jun-2013,2608138-1339148H,"1,242.08",COMFORT CALL LTD.
Adults Wellbeing and Health,Head of Adults,Third Party Payments,472101,Purchase of Care,20-Jun-2013,2608138-1339186H,510.13,COMFORT CALL LTD.
Adults Wellbeing and Health,Head of Adults,Third Party Payments,472101,Purchase of Care,20-Jun-2013,2608138-1339271H,565.59,COMFORT CALL LTD.
Adults Wellbeing and Health,Head of Adults,Third Party Payments,472101,Purchase of Care,20-Jun-2013,2608138-1339283H,524.92,COMFORT CALL LTD.
Adults Wellbeing and Health,Head of Adults,Third Party Payments,472101,Purchase of Care,20-Jun-2013,2608138-1339321H,876.12,COMFORT CALL LTD.
Adults Wellbeing and Health,Head of Adults,Third Party Payments,472101,Purchase of Care,20-Jun-2013,2608138-1339390H,"1,197.72",COMFORT CALL LTD.
Adults Wellbeing and Health,Head of Adults,Third Party Payments,472101,Purchase of Care,20-Jun-2013,2608138-1339436H,892.76,COMFORT CALL LTD.
Adults Wellbeing and Health,Head of Adults,Third Party Payments,472101,Purchase of Care,20-Jun-2013,2608138-1339560H,815.12,COMFORT CALL LTD.
Adults Wellbeing and Health,Head of Adults,Third Party Payments,472101,Purchase of Care,20-Jun-2013,2608138-1339571H,580.36,COMFORT CALL LTD.
Adults Wellbeing and Health,Head of Adults,Third Party Payments,472101,Purchase of Care,20-Jun-2013,2608138-1339790H,510.16,COMFORT CALL LTD.
Adults Wellbeing and Health,Head of Adults,Third Party Payments,472101,Purchase of Care,20-Jun-2013,2608138-1339794H,743.04,COMFORT CALL LTD.
Adults Wellbeing and Health,Head of Adults,Third Party Payments,472101,Purchase of Care,20-Jun-2013,2608138-1339808H,809.56,COMFORT CALL LTD.
Adults Wellbeing and Health,Head of Adults,Third Party Payments,472101,Purchase of Care,20-Jun-2013,2608138-1339977H,621.04,COMFORT CALL LTD.
Adults Wellbeing and Health,Head of Adults,Third Party Payments,472101,Purchase of Care,20-Jun-2013,2608138-1340074H,794.80,COMFORT CALL LTD.
Adults Wellbeing and Health,Head of Adults,Third Party Payments,472101,Purchase of Care,20-Jun-2013,2608138-1340175H,"1,228.23",COMFORT CALL LTD.
Adults Wellbeing and Health,Head of Adults,Third Party Payments,472101,Purchase of Care,20-Jun-2013,2608138-1340230H,665.40,COMFORT CALL LTD.
Adults Wellbeing and Health,Head of Adults,Third Party Payments,472101,Purchase of Care,20-Jun-2013,2608138-1340308H,609.95,COMFORT CALL LTD.
Adults Wellbeing and Health,Head of Adults,Third Party Payments,472101,Purchase of Care,20-Jun-2013,2608138-1340407H,"1,035.08",COMFORT CALL LTD.
Adults Wellbeing and Health,Head of Adults,Third Party Payments,472101,Purchase of Care,20-Jun-2013,2608138-1340425H,"1,031.37",COMFORT CALL LTD.
Adults Wellbeing and Health,Head of Adults,Third Party Payments,472101,Purchase of Care,20-Jun-2013,2608138-1340511H,709.76,COMFORT CALL LTD.
Adults Wellbeing and Health,Head of Adults,Third Party Payments,472101,Purchase of Care,20-Jun-2013,2608138-1340755H,669.08,COMFORT CALL LTD.
Adults Wellbeing and Health,Head of Adults,Third Party Payments,472101,Purchase of Care,20-Jun-2013,2608138-1340781H,"1,718.96",COMFORT CALL LTD.
Adults Wellbeing and Health,Head of Adults,Third Party Payments,472101,Purchase of Care,20-Jun-2013,2608138-1341035H,537.87,COMFORT CALL LTD.
Adults Wellbeing and Health,Head of Adults,Third Party Payments,472101,Purchase of Care,20-Jun-2013,2608138-1341066H,632.12,COMFORT CALL LTD.
Adults Wellbeing and Health,Head of Adults,Third Party Payments,472101,Purchase of Care,20-Jun-2013,2608138-1341114H,"1,234.68",COMFORT CALL LTD.
Adults Wellbeing and Health,Head of Adults,Third Party Payments,472101,Purchase of Care,20-Jun-2013,2608138-1341226H,554.52,COMFORT CALL LTD.
Adults Wellbeing and Health,Head of Adults,Third Party Payments,472101,Purchase of Care,20-Jun-2013,2608138-1341259H,892.74,COMFORT CALL LTD.
Adults Wellbeing and Health,Head of Adults,Third Party Payments,472101,Purchase of Care,20-Jun-2013,2608138-1341502H,621.04,COMFORT CALL LTD.
Adults Wellbeing and Health,Head of Adults,Third Party Payments,472101,Purchase of Care,20-Jun-2013,2608138-1341511H,630.28,COMFORT CALL LTD.
Adults Wellbeing and Health,Head of Adults,Third Party Payments,472101,Purchase of Care,20-Jun-2013,2608138-1341556H,562.82,COMFORT CALL LTD.
Adults Wellbeing and Health,Head of Adults,Third Party Payments,472101,Purchase of Care,20-Jun-2013,2608138-1341633H,"1,308.62",COMFORT CALL LTD.
Adults Wellbeing and Health,Head of Adults,Third Party Payments,472101,Purchase of Care,20-Jun-2013,2608138-1341785H,"1,242.08",COMFORT CALL LTD.
Adults Wellbeing and Health,Head of Adults,Third Party Payments,472101,Purchase of Care,20-Jun-2013,2608138-1341801H,"1,242.08",COMFORT CALL LTD.
Adults Wellbeing and Health,Head of Adults,Third Party Payments,472101,Purchase of Care,20-Jun-2013,2608138-1341841H,720.84,COMFORT CALL LTD.
Adults Wellbeing and Health,Head of Adults,Third Party Payments,472101,Purchase of Care,20-Jun-2013,2608138-1341918H,517.52,COMFORT CALL LTD.
Adults Wellbeing and Health,Head of Adults,Third Party Payments,472101,Purchase of Care,20-Jun-2013,2608138-1342218H,515.70,COMFORT CALL LTD.
Adults Wellbeing and Health,Head of Adults,Third Party Payments,472101,Purchase of Care,20-Jun-2013,2608138-1342290H,826.21,COMFORT CALL LTD.
Adults Wellbeing and Health,Head of Adults,Third Party Payments,472101,Purchase of Care,20-Jun-2013,2608138-1342346H,704.23,COMFORT CALL LTD.
Adults Wellbeing and Health,Head of Adults,Third Party Payments,472101,Purchase of Care,20-Jun-2013,2608138-1342395H,881.66,COMFORT CALL LTD.
Adults Wellbeing and Health,Head of Adults,Third Party Payments,472101,Purchase of Care,20-Jun-2013,2608138-1342511H,"1,242.08",COMFORT CALL LTD.
Adults Wellbeing and Health,Head of Adults,Third Party Payments,472101,Purchase of Care,20-Jun-2013,2608138-1342525H,510.16,COMFORT CALL LTD.
Adults Wellbeing and Health,Head of Adults,Third Party Payments,472101,Purchase of Care,20-Jun-2013,2608138-1342598H,872.40,COMFORT CALL LTD.
Adults Wellbeing and Health,Head of Adults,Third Party Payments,472101,Purchase of Care,20-Jun-2013,2608138-1342649H,"1,020.28",COMFORT CALL LTD.
Adults Wellbeing and Health,Head of Adults,Third Party Payments,472101,Purchase of Care,20-Jun-2013,2608138-1342699H,609.96,COMFORT CALL LTD.
Adults Wellbeing and Health,Head of Adults,Third Party Payments,472101,Purchase of Care,20-Jun-2013,2608138-1342768H,627.51,COMFORT CALL LTD.
Adults Wellbeing and Health,Head of Adults,Third Party Payments,472101,Purchase of Care,20-Jun-2013,2608138-1342799H,"1,286.44",COMFORT CALL LTD.
Adults Wellbeing and Health,Head of Adults,Third Party Payments,472101,Purchase of Care,20-Jun-2013,2608138-1342846H,609.96,COMFORT CALL LTD.
Adults Wellbeing and Health,Head of Adults,Third Party Payments,472101,Purchase of Care,20-Jun-2013,2608138-1342932H,980.55,COMFORT CALL LTD.
Adults Wellbeing and Health,Head of Adults,Third Party Payments,472101,Purchase of Care,20-Jun-2013,2608138-1342978H,"1,079.44",COMFORT CALL LTD.
Adults Wellbeing and Health,Head of Adults,Third Party Payments,472101,Purchase of Care,20-Jun-2013,2608138-1342995H,589.62,COMFORT CALL LTD.
Adults Wellbeing and Health,Head of Adults,Third Party Payments,472101,Purchase of Care,20-Jun-2013,2608138-1343005H,530.48,COMFORT CALL LTD.
Adults Wellbeing and Health,Head of Adults,Third Party Payments,472101,Purchase of Care,20-Jun-2013,2608138-1343018H,557.28,COMFORT CALL LTD.
Adults Wellbeing and Health,Head of Adults,Third Party Payments,472101,Purchase of Care,20-Jun-2013,2608138-1343055H,687.60,COMFORT CALL LTD.
Adults Wellbeing and Health,Head of Adults,Third Party Payments,472101,Purchase of Care,20-Jun-2013,2608138-1343169H,"1,227.30",COMFORT CALL LTD.
Adults Wellbeing and Health,Head of Adults,Third Party Payments,472101,Purchase of Care,20-Jun-2013,2608138-1343418H,626.59,COMFORT CALL LTD.
Adults Wellbeing and Health,Head of Adults,Third Party Payments,478101,Purchase of Care,20-Jun-2013,2608139-1337111H,"4,537.16",COMMUNITY INTEGRATED CARE LTD.
Adults Wellbeing and Health,Head of Adults,Third Party Payments,478101,Purchase of Care,20-Jun-2013,2608139-1337166H,"3,822.28",COMMUNITY INTEGRATED CARE LTD.
Adults Wellbeing and Health,Head of Adults,Third Party Payments,478101,Purchase of Care,20-Jun-2013,2608139-1337212H,"3,434.64",COMMUNITY INTEGRATED CARE LTD.
Adults Wellbeing and Health,Head of Adults,Third Party Payments,478101,Purchase of Care,20-Jun-2013,2608139-1337248H,"3,822.28",COMMUNITY INTEGRATED CARE LTD.
Adults Wellbeing and Health,Head of Adults,Third Party Payments,478101,Purchase of Care,20-Jun-2013,2608139-1337359H,"4,537.16",COMMUNITY INTEGRATED CARE LTD.
Adults Wellbeing and Health,Head of Adults,Third Party Payments,478101,Purchase of Care,20-Jun-2013,2608139-1337364H,"4,574.36",COMMUNITY INTEGRATED CARE LTD.
Adults Wellbeing and Health,Head of Adults,Third Party Payments,478101,Purchase of Care,20-Jun-2013,2608139-1337366H,"4,797.76",COMMUNITY INTEGRATED CARE LTD.
Adults Wellbeing and Health,Head of Adults,Third Party Payments,478101,Purchase of Care,20-Jun-2013,2608139-1337367H,"4,537.16",COMMUNITY INTEGRATED CARE LTD.
Adults Wellbeing and Health,Head of Adults,Third Party Payments,478101,Purchase of Care,20-Jun-2013,2608139-1337368H,"3,630.28",COMMUNITY INTEGRATED CARE LTD.
Adults Wellbeing and Health,Head of Adults,Third Party Payments,478101,Purchase of Care,20-Jun-2013,2608139-1337371H,"3,630.28",COMMUNITY INTEGRATED CARE LTD.
Adults Wellbeing and Health,Head of Adults,Third Party Payments,478101,Purchase of Care,20-Jun-2013,2608139-1337442H,"5,763.76",COMMUNITY INTEGRATED CARE LTD.
Adults Wellbeing and Health,Head of Adults,Third Party Payments,478101,Purchase of Care,20-Jun-2013,2608139-1337459H,"3,434.64",COMMUNITY INTEGRATED CARE LTD.
Adults Wellbeing and Health,Head of Adults,Third Party Payments,478101,Purchase of Care,20-Jun-2013,2608139-1337461H,"4,082.88",COMMUNITY INTEGRATED CARE LTD.
Adults Wellbeing and Health,Head of Adults,Third Party Payments,478101,Purchase of Care,20-Jun-2013,2608139-1337463H,"4,574.36",COMMUNITY INTEGRATED CARE LTD.
Adults Wellbeing and Health,Head of Adults,Third Party Payments,478101,Purchase of Care,20-Jun-2013,2608139-1337499H,"6,031.84",COMMUNITY INTEGRATED CARE LTD.
Adults Wellbeing and Health,Head of Adults,Third Party Payments,478101,Purchase of Care,20-Jun-2013,2608139-1337507H,"6,272.20",COMMUNITY INTEGRATED CARE LTD.
Adults Wellbeing and Health,Head of Adults,Third Party Payments,478101,Purchase of Care,20-Jun-2013,2608139-1337561H,"6,456.28",COMMUNITY INTEGRATED CARE LTD.
Adults Wellbeing and Health,Head of Adults,Third Party Payments,478101,Purchase of Care,20-Jun-2013,2608139-1337578H,"4,604.16",COMMUNITY INTEGRATED CARE LTD.
Adults Wellbeing and Health,Head of Adults,Third Party Payments,478101,Purchase of Care,20-Jun-2013,2608139-1337659H,"3,630.28",COMMUNITY INTEGRATED CARE LTD.
Adults Wellbeing and Health,Head of Adults,Third Party Payments,478101,Purchase of Care,20-Jun-2013,2608139-1337672H,"3,434.64",COMMUNITY INTEGRATED CARE LTD.
Adults Wellbeing and Health,Head of Adults,Third Party Payments,478101,Purchase of Care,20-Jun-2013,2608139-1337729H,"4,604.16",COMMUNITY INTEGRATED CARE LTD.
Adults Wellbeing and Health,Head of Adults,Third Party Payments,478101,Purchase of Care,20-Jun-2013,2608139-1337791H,"4,574.36",COMMUNITY INTEGRATED CARE LTD.
Adults Wellbeing and Health,Head of Adults,Third Party Payments,478101,Purchase of Care,20-Jun-2013,2608139-1338046H,"3,434.64",COMMUNITY INTEGRATED CARE LTD.
Adults Wellbeing and Health,Head of Adults,Third Party Payments,478101,Purchase of Care,20-Jun-2013,2608139-1338051H,"3,822.28",COMMUNITY INTEGRATED CARE LTD.
Adults Wellbeing and Health,Head of Adults,Third Party Payments,478101,Purchase of Care,20-Jun-2013,2608139-1338348H,"6,040.76",COMMUNITY INTEGRATED CARE LTD.
Adults Wellbeing and Health,Head of Adults,Third Party Payments,478101,Purchase of Care,20-Jun-2013,2608139-1338369H,"3,822.28",COMMUNITY INTEGRATED CARE LTD.
Adults Wellbeing and Health,Head of Adults,Third Party Payments,478101,Purchase of Care,20-Jun-2013,2608139-1339459H,"6,069.08",COMMUNITY INTEGRATED CARE LTD.
Adults Wellbeing and Health,Head of Adults,Third Party Payments,478101,Purchase of Care,20-Jun-2013,2608139-1339672H,"1,338.68",COMMUNITY INTEGRATED CARE LTD.
Adults Wellbeing and Health,Head of Adults,Third Party Payments,478101,Purchase of Care,20-Jun-2013,2608139-1340162H,"7,088.00",COMMUNITY INTEGRATED CARE LTD.
Adults Wellbeing and Health,Head of Adults,Third Party Payments,470101,Purchase of Care,20-Jun-2013,2608144-2098411,"1,916.00",CORTON HOUSE.
Adults Wellbeing and Health,Head of Adults,Third Party Payments,470101,Purchase of Care,20-Jun-2013,2608144-2103151,"1,916.00",CORTON HOUSE.
Adults Wellbeing and Health,Head of Adults,Third Party Payments,470101,Purchase of Care,20-Jun-2013,2608145-2105785,"1,999.28",COTTAGE & RURAL ENTERPRISES LTD.
Adults Wellbeing and Health,Head of Adults,Third Party Payments,474101,Purchase of Care,20-Jun-2013,2608148-2104439,"1,720.00",REDACTED - PAYMENT TO INDIVIDUAL
Adults Wellbeing and Health,Head of Adults,Third Party Payments,474101,Purchase of Care,20-Jun-2013,2608148-2105976,"1,792.00",REDACTED - PAYMENT TO INDIVIDUAL
Adults Wellbeing and Health,Head of Adults,Third Party Payments,471101,Purchase of Care,20-Jun-2013,2608148-2106444,"1,744.00",REDACTED - PAYMENT TO INDIVIDUAL
Adults Wellbeing and Health,Head of Adults,Third Party Payments,471101,Purchase of Care,20-Jun-2013,2608148-2106445,"1,744.00",REDACTED - PAYMENT TO INDIVIDUAL
Adults Wellbeing and Health,Head of Adults,Third Party Payments,471101,Purchase of Care,20-Jun-2013,2608149-2106610,"1,968.00",COVERAGE CARE SERVICES LTD/COTON HILL HOUSE.
Adults Wellbeing and Health,Head of Adults,Third Party Payments,470101,Purchase of Care,20-Jun-2013,2608153-2103780,"1,894.36",CRAIGARRAN CARE HOME WITH NURSING.
Adults Wellbeing and Health,Head of Adults,Third Party Payments,470101,Purchase of Care,20-Jun-2013,2608153-2103781,"1,894.36",CRAIGARRAN CARE HOME WITH NURSING.
Adults Wellbeing and Health,Head of Adults,Third Party Payments,470101,Purchase of Care,20-Jun-2013,2608153-2103782,"1,894.36",CRAIGARRAN CARE HOME WITH NURSING.
Adults Wellbeing and Health,Head of Adults,Third Party Payments,470101,Purchase of Care,20-Jun-2013,2608153-2103783,"1,894.36",CRAIGARRAN CARE HOME WITH NURSING.
Adults Wellbeing and Health,Head of Adults,Third Party Payments,470101,Purchase of Care,20-Jun-2013,2608153-2103784,"1,894.36",CRAIGARRAN CARE HOME WITH NURSING.
Adults Wellbeing and Health,Head of Adults,Third Party Payments,470101,Purchase of Care,20-Jun-2013,2608153-2103785,"1,894.36",CRAIGARRAN CARE HOME WITH NURSING.
Adults Wellbeing and Health,Head of Adults,Third Party Payments,470101,Purchase of Care,20-Jun-2013,2608153-2103786,"1,894.36",CRAIGARRAN CARE HOME WITH NURSING.
Adults Wellbeing and Health,Head of Adults,Third Party Payments,470101,Purchase of Care,20-Jun-2013,2608153-2103787,"1,894.36",CRAIGARRAN CARE HOME WITH NURSING.
Adults Wellbeing and Health,Head of Adults,Third Party Payments,470101,Purchase of Care,20-Jun-2013,2608153-2103788,"1,894.36",CRAIGARRAN CARE HOME WITH NURSING.
Adults Wellbeing and Health,Head of Adults,Third Party Payments,470101,Purchase of Care,20-Jun-2013,2608153-2103789,"1,894.36",CRAIGARRAN CARE HOME WITH NURSING.
Adults Wellbeing and Health,Head of Adults,Third Party Payments,470101,Purchase of Care,20-Jun-2013,2608153-2103790,"1,894.36",CRAIGARRAN CARE HOME WITH NURSING.
Adults Wellbeing and Health,Head of Adults,Third Party Payments,474101,Purchase of Care,20-Jun-2013,2608153-2104843,"1,983.92",CRAIGARRAN CARE HOME WITH NURSING.
Adults Wellbeing and Health,Head of Adults,Third Party Payments,474101,Purchase of Care,20-Jun-2013,2608153-2104847,"1,983.92",CRAIGARRAN CARE HOME WITH NURSING.
Adults Wellbeing and Health,Head of Adults,Third Party Payments,474101,Purchase of Care,20-Jun-2013,2608153-2104849,"1,983.92",CRAIGARRAN CARE HOME WITH NURSING.
Adults Wellbeing and Health,Head of Adults,Third Party Payments,474101,Purchase of Care,20-Jun-2013,2608153-2104851,"1,983.92",CRAIGARRAN CARE HOME WITH NURSING.
Adults Wellbeing and Health,Head of Adults,Third Party Payments,474101,Purchase of Care,20-Jun-2013,2608153-2104854,"1,983.92",CRAIGARRAN CARE HOME WITH NURSING.
Adults Wellbeing and Health,Head of Adults,Third Party Payments,474101,Purchase of Care,20-Jun-2013,2608153-2104856,"1,983.92",CRAIGARRAN CARE HOME WITH NURSING.
Adults Wellbeing and Health,Head of Adults,Third Party Payments,474101,Purchase of Care,20-Jun-2013,2608153-2104858,"1,983.92",CRAIGARRAN CARE HOME WITH NURSING.
Adults Wellbeing and Health,Head of Adults,Third Party Payments,474101,Purchase of Care,20-Jun-2013,2608153-2104860,"1,983.92",CRAIGARRAN CARE HOME WITH NURSING.
Adults Wellbeing and Health,Head of Adults,Third Party Payments,474101,Purchase of Care,20-Jun-2013,2608153-2104862,"1,983.92",CRAIGARRAN CARE HOME WITH NURSING.
Adults Wellbeing and Health,Head of Adults,Third Party Payments,474101,Purchase of Care,20-Jun-2013,2608153-2104864,"1,983.92",CRAIGARRAN CARE HOME WITH NURSING.
Adults Wellbeing and Health,Head of Adults,Third Party Payments,474101,Purchase of Care,20-Jun-2013,2608153-2106273,"1,983.92",CRAIGARRAN CARE HOME WITH NURSING.
Adults Wellbeing and Health,Head of Adults,Third Party Payments,474101,Purchase of Care,20-Jun-2013,2608153-2106275,"1,983.92",CRAIGARRAN CARE HOME WITH NURSING.
Adults Wellbeing and Health,Head of Adults,Third Party Payments,474101,Purchase of Care,20-Jun-2013,2608153-2106277,"1,983.92",CRAIGARRAN CARE HOME WITH NURSING.
Adults Wellbeing and Health,Head of Adults,Third Party Payments,474101,Purchase of Care,20-Jun-2013,2608153-2106279,"1,983.92",CRAIGARRAN CARE HOME WITH NURSING.
Adults Wellbeing and Health,Head of Adults,Third Party Payments,474101,Purchase of Care,20-Jun-2013,2608153-2106281,"1,983.92",CRAIGARRAN CARE HOME WITH NURSING.
Adults Wellbeing and Health,Head of Adults,Third Party Payments,471101,Purchase of Care,20-Jun-2013,2608153-2106936,"1,964.28",CRAIGARRAN CARE HOME WITH NURSING.
Adults Wellbeing and Health,Head of Adults,Third Party Payments,471101,Purchase of Care,20-Jun-2013,2608153-2106937,"1,964.28",CRAIGARRAN CARE HOME WITH NURSING.
Adults Wellbeing and Health,Head of Adults,Third Party Payments,471101,Purchase of Care,20-Jun-2013,2608153-2106968,"1,964.28",CRAIGARRAN CARE HOME WITH NURSING.
Adults Wellbeing and Health,Head of Adults,Third Party Payments,471101,Purchase of Care,20-Jun-2013,2608153-2106969,"1,823.97",CRAIGARRAN CARE HOME WITH NURSING.
Adults Wellbeing and Health,Head of Adults,Third Party Payments,471101,Purchase of Care,20-Jun-2013,2608153-2106970,"1,964.28",CRAIGARRAN CARE HOME WITH NURSING.
Adults Wellbeing and Health,Head of Adults,Third Party Payments,471101,Purchase of Care,20-Jun-2013,2608153-2106971,"1,964.28",CRAIGARRAN CARE HOME WITH NURSING.
Adults Wellbeing and Health,Head of Adults,Third Party Payments,471101,Purchase of Care,20-Jun-2013,2608153-2106972,"1,964.28",CRAIGARRAN CARE HOME WITH NURSING.
Adults Wellbeing and Health,Head of Adults,Third Party Payments,471101,Purchase of Care,20-Jun-2013,2608153-2106973,"1,964.28",CRAIGARRAN CARE HOME WITH NURSING.
Adults Wellbeing and Health,Head of Adults,Third Party Payments,474101,Purchase of Care,20-Jun-2013,2608153-2107371,566.83,CRAIGARRAN CARE HOME WITH NURSING.
Adults Wellbeing and Health,Head of Adults,Third Party Payments,478101,Purchase of Care,20-Jun-2013,2608154-1336865H,"2,594.24",CRAIGMORE / TAYLOURMADE DAY SERVICES.
Adults Wellbeing and Health,Head of Adults,Third Party Payments,478101,Purchase of Care,20-Jun-2013,2608154-1337820H,"1,686.04",CRAIGMORE / TAYLOURMADE DAY SERVICES.
Adults Wellbeing and Health,Head of Adults,Third Party Payments,478101,Purchase of Care,20-Jun-2013,2608154-1337868H,"2,833.24",CRAIGMORE / TAYLOURMADE DAY SERVICES.
Adults Wellbeing and Health,Head of Adults,Third Party Payments,478101,Purchase of Care,20-Jun-2013,2608154-1338482H,"1,686.04",CRAIGMORE / TAYLOURMADE DAY SERVICES.
Adults Wellbeing and Health,Head of Adults,Third Party Payments,478101,Purchase of Care,20-Jun-2013,2608154-1338500H,"3,311.24",CRAIGMORE / TAYLOURMADE DAY SERVICES.
Adults Wellbeing and Health,Head of Adults,Third Party Payments,478101,Purchase of Care,20-Jun-2013,2608154-1338984H,"1,686.04",CRAIGMORE / TAYLOURMADE DAY SERVICES.
Adults Wellbeing and Health,Head of Adults,Third Party Payments,478101,Purchase of Care,20-Jun-2013,2608154-1339541H,"2,164.04",CRAIGMORE / TAYLOURMADE DAY SERVICES.
Adults Wellbeing and Health,Head of Adults,Third Party Payments,478101,Purchase of Care,20-Jun-2013,2608154-1340496H,"2,760.44",CRAIGMORE / TAYLOURMADE DAY SERVICES.
Adults Wellbeing and Health,Head of Adults,Third Party Payments,478101,Purchase of Care,20-Jun-2013,2608154-1341913H,"1,686.04",CRAIGMORE / TAYLOURMADE DAY SERVICES.
Adults Wellbeing and Health,Head of Adults,Third Party Payments,478101,Purchase of Care,20-Jun-2013,2608156-1336436H,"7,176.92",CREATIVE SUPPORT LTD.
Adults Wellbeing and Health,Head of Adults,Third Party Payments,478101,Purchase of Care,20-Jun-2013,2608156-1336617H,"8,217.44",CREATIVE SUPPORT LTD.
Adults Wellbeing and Health,Head of Adults,Third Party Payments,478101,Purchase of Care,20-Jun-2013,2608156-1336646H,"5,753.44",CREATIVE SUPPORT LTD.
Adults Wellbeing and Health,Head of Adults,Third Party Payments,478101,Purchase of Care,20-Jun-2013,2608156-1336708H,"1,248.00",CREATIVE SUPPORT LTD.
Adults Wellbeing and Health,Head of Adults,Third Party Payments,478101,Purchase of Care,20-Jun-2013,2608156-1336821H,960.00,CREATIVE SUPPORT LTD.
Adults Wellbeing and Health,Head of Adults,Third Party Payments,478101,Purchase of Care,20-Jun-2013,2608156-1337241H,"5,976.32",CREATIVE SUPPORT LTD.
Adults Wellbeing and Health,Head of Adults,Third Party Payments,472101,Purchase of Care,20-Jun-2013,2608156-1337861H,"1,488.00",CREATIVE SUPPORT LTD.
Adults Wellbeing and Health,Head of Adults,Third Party Payments,478101,Purchase of Care,20-Jun-2013,2608156-1337933H,"11,899.24",CREATIVE SUPPORT LTD.
Adults Wellbeing and Health,Head of Adults,Third Party Payments,478101,Purchase of Care,20-Jun-2013,2608156-1338665H,"3,388.36",CREATIVE SUPPORT LTD.
Adults Wellbeing and Health,Head of Adults,Third Party Payments,478101,Purchase of Care,20-Jun-2013,2608156-1338710H,"4,784.64",CREATIVE SUPPORT LTD.
Adults Wellbeing and Health,Head of Adults,Third Party Payments,478101,Purchase of Care,20-Jun-2013,2608156-1338950H,"4,482.24",CREATIVE SUPPORT LTD.
Adults Wellbeing and Health,Head of Adults,Third Party Payments,478101,Purchase of Care,20-Jun-2013,2608156-1339093H,"9,711.52",CREATIVE SUPPORT LTD.
Adults Wellbeing and Health,Head of Adults,Third Party Payments,478101,Purchase of Care,20-Jun-2013,2608156-1339162H,"7,168.00",CREATIVE SUPPORT LTD.
Adults Wellbeing and Health,Head of Adults,Third Party Payments,472101,Purchase of Care,20-Jun-2013,2608156-1340195H,672.00,CREATIVE SUPPORT LTD.
Adults Wellbeing and Health,Head of Adults,Third Party Payments,472101,Purchase of Care,20-Jun-2013,2608157-1337160H,"1,861.40",CRESCENT HOMECARE LTD.
Adults Wellbeing and Health,Head of Adults,Third Party Payments,472101,Purchase of Care,20-Jun-2013,2608157-1341269H,525.88,CRESCENT HOMECARE LTD.
Adults Wellbeing and Health,Head of Adults,Third Party Payments,472101,Purchase of Care,20-Jun-2013,2608157-1342074H,"1,857.60",CRESCENT HOMECARE LTD.
Adults Wellbeing and Health,Head of Adults,Third Party Payments,472101,Purchase of Care,20-Jun-2013,2608157-1342624H,635.60,CRESCENT HOMECARE LTD.
Adults Wellbeing and Health,Head of Adults,Third Party Payments,470101,Purchase of Care,20-Jun-2013,2608158-2103314,"1,408.36",CROFT HOUSE RESIDENTIAL HOME.
Adults Wellbeing and Health,Head of Adults,Third Party Payments,470101,Purchase of Care,20-Jun-2013,2608158-2103315,"1,894.36",CROFT HOUSE RESIDENTIAL HOME.
Adults Wellbeing and Health,Head of Adults,Third Party Payments,470101,Purchase of Care,20-Jun-2013,2608158-2103316,"1,433.66",CROFT HOUSE RESIDENTIAL HOME.
Adults Wellbeing and Health,Head of Adults,Third Party Payments,470101,Purchase of Care,20-Jun-2013,2608158-2103317,874.40,CROFT HOUSE RESIDENTIAL HOME.
Adults Wellbeing and Health,Head of Adults,Third Party Payments,470101,Purchase of Care,20-Jun-2013,2608158-2103318,"1,001.36",CROFT HOUSE RESIDENTIAL HOME.
Adults Wellbeing and Health,Head of Adults,Third Party Payments,470101,Purchase of Care,20-Jun-2013,2608158-2103319,"1,178.96",CROFT HOUSE RESIDENTIAL HOME.
Adults Wellbeing and Health,Head of Adults,Third Party Payments,470101,Purchase of Care,20-Jun-2013,2608158-2103320,676.55,CROFT HOUSE RESIDENTIAL HOME.
Adults Wellbeing and Health,Head of Adults,Third Party Payments,470101,Purchase of Care,20-Jun-2013,2608158-2103321,"1,894.36",CROFT HOUSE RESIDENTIAL HOME.
Adults Wellbeing and Health,Head of Adults,Third Party Payments,470101,Purchase of Care,20-Jun-2013,2608158-2103322,"1,408.36",CROFT HOUSE RESIDENTIAL HOME.
Adults Wellbeing and Health,Head of Adults,Third Party Payments,470101,Purchase of Care,20-Jun-2013,2608158-2103323,"1,894.36",CROFT HOUSE RESIDENTIAL HOME.
Adults Wellbeing and Health,Head of Adults,Third Party Payments,470101,Purchase of Care,20-Jun-2013,2608158-2103324,811.86,CROFT HOUSE RESIDENTIAL HOME.
Adults Wellbeing and Health,Head of Adults,Third Party Payments,470101,Purchase of Care,20-Jun-2013,2608158-2103326,"1,894.36",CROFT HOUSE RESIDENTIAL HOME.
Adults Wellbeing and Health,Head of Adults,Third Party Payments,470101,Purchase of Care,20-Jun-2013,2608158-2103327,"1,408.36",CROFT HOUSE RESIDENTIAL HOME.
Adults Wellbeing and Health,Head of Adults,Third Party Payments,470101,Purchase of Care,20-Jun-2013,2608158-2103328,"1,251.12",CROFT HOUSE RESIDENTIAL HOME.
Adults Wellbeing and Health,Head of Adults,Third Party Payments,470101,Purchase of Care,20-Jun-2013,2608158-2103329,"1,894.36",CROFT HOUSE RESIDENTIAL HOME.
Adults Wellbeing and Health,Head of Adults,Third Party Payments,470101,Purchase of Care,20-Jun-2013,2608158-2103330,"1,408.36",CROFT HOUSE RESIDENTIAL HOME.
Adults Wellbeing and Health,Head of Adults,Third Party Payments,470101,Purchase of Care,20-Jun-2013,2608158-2103331,"1,243.28",CROFT HOUSE RESIDENTIAL HOME.
Adults Wellbeing and Health,Head of Adults,Third Party Payments,470101,Purchase of Care,20-Jun-2013,2608158-2103332,"1,408.36",CROFT HOUSE RESIDENTIAL HOME.
Adults Wellbeing and Health,Head of Adults,Third Party Payments,474101,Purchase of Care,20-Jun-2013,2608158-2104536,"1,278.56",CROFT HOUSE RESIDENTIAL HOME.
Adults Wellbeing and Health,Head of Adults,Third Party Payments,474101,Purchase of Care,20-Jun-2013,2608158-2104538,"1,225.90",CROFT HOUSE RESIDENTIAL HOME.
Adults Wellbeing and Health,Head of Adults,Third Party Payments,474101,Purchase of Care,20-Jun-2013,2608158-2104540,"1,032.52",CROFT HOUSE RESIDENTIAL HOME.
Adults Wellbeing and Health,Head of Adults,Third Party Payments,474101,Purchase of Care,20-Jun-2013,2608158-2104542,"1,438.93",CROFT HOUSE RESIDENTIAL HOME.
Adults Wellbeing and Health,Head of Adults,Third Party Payments,474101,Purchase of Care,20-Jun-2013,2608158-2104544,"1,121.92",CROFT HOUSE RESIDENTIAL HOME.
Adults Wellbeing and Health,Head of Adults,Third Party Payments,474101,Purchase of Care,20-Jun-2013,2608158-2104546,"1,983.92",CROFT HOUSE RESIDENTIAL HOME.
Adults Wellbeing and Health,Head of Adults,Third Party Payments,474101,Purchase of Care,20-Jun-2013,2608158-2104548,"1,983.92",CROFT HOUSE RESIDENTIAL HOME.
Adults Wellbeing and Health,Head of Adults,Third Party Payments,470101,Purchase of Care,20-Jun-2013,2608158-2105412,"2,124.40",CROFT HOUSE RESIDENTIAL HOME.
Adults Wellbeing and Health,Head of Adults,Third Party Payments,474101,Purchase of Care,20-Jun-2013,2608158-2106055,999.40,CROFT HOUSE RESIDENTIAL HOME.
Adults Wellbeing and Health,Head of Adults,Third Party Payments,474101,Purchase of Care,20-Jun-2013,2608158-2106057,"1,371.44",CROFT HOUSE RESIDENTIAL HOME.
Adults Wellbeing and Health,Head of Adults,Third Party Payments,474101,Purchase of Care,20-Jun-2013,2608158-2106059,"1,983.92",CROFT HOUSE RESIDENTIAL HOME.
Adults Wellbeing and Health,Head of Adults,Third Party Payments,471101,Purchase of Care,20-Jun-2013,2608158-2106580,"1,964.28",CROFT HOUSE RESIDENTIAL HOME.
Adults Wellbeing and Health,Head of Adults,Third Party Payments,471101,Purchase of Care,20-Jun-2013,2608158-2106581,"1,964.28",CROFT HOUSE RESIDENTIAL HOME.
Adults Wellbeing and Health,Head of Adults,Third Party Payments,471101,Purchase of Care,20-Jun-2013,2608158-2106582,"1,964.28",CROFT HOUSE RESIDENTIAL HOME.
Adults Wellbeing and Health,Head of Adults,Third Party Payments,471101,Purchase of Care,20-Jun-2013,2608158-2106583,"1,395.12",CROFT HOUSE RESIDENTIAL HOME.
Adults Wellbeing and Health,Head of Adults,Third Party Payments,471101,Purchase of Care,20-Jun-2013,2608158-2106584,"1,964.28",CROFT HOUSE RESIDENTIAL HOME.
Adults Wellbeing and Health,Head of Adults,Third Party Payments,471101,Purchase of Care,20-Jun-2013,2608158-2106585,"1,964.28",CROFT HOUSE RESIDENTIAL HOME.
Adults Wellbeing and Health,Head of Adults,Third Party Payments,471101,Purchase of Care,20-Jun-2013,2608158-2106586,"1,482.28",CROFT HOUSE RESIDENTIAL HOME.
Adults Wellbeing and Health,Head of Adults,Third Party Payments,471101,Purchase of Care,20-Jun-2013,2608158-2106587,"1,424.52",CROFT HOUSE RESIDENTIAL HOME.
Adults Wellbeing and Health,Head of Adults,Third Party Payments,471101,Purchase of Care,20-Jun-2013,2608158-2106589,"1,964.28",CROFT HOUSE RESIDENTIAL HOME.
Adults Wellbeing and Health,Head of Adults,Third Party Payments,470101,Purchase of Care,20-Jun-2013,2608158-2107509,676.55,CROFT HOUSE RESIDENTIAL HOME.
Adults Wellbeing and Health,Head of Adults,Third Party Payments,471101,Purchase of Care,20-Jun-2013,2608158-2107513,"1,823.97",CROFT HOUSE RESIDENTIAL HOME.
Adults Wellbeing and Health,Head of Adults,Third Party Payments,470101,Purchase of Care,20-Jun-2013,2608159-2103954,"1,738.00",CROFT UNIT.
Adults Wellbeing and Health,Head of Adults,Third Party Payments,470101,Purchase of Care,20-Jun-2013,2608159-2103964,"1,252.00",CROFT UNIT.
Adults Wellbeing and Health,Head of Adults,Third Party Payments,470101,Purchase of Care,20-Jun-2013,2608159-2105688,"1,738.00",CROFT UNIT.
Adults Wellbeing and Health,Head of Adults,Third Party Payments,470101,Purchase of Care,20-Jun-2013,2608159-2105689,"1,738.00",CROFT UNIT.
Adults Wellbeing and Health,Head of Adults,Third Party Payments,470101,Purchase of Care,20-Jun-2013,2608159-2105690,"1,214.00",CROFT UNIT.
Adults Wellbeing and Health,Head of Adults,Third Party Payments,470101,Purchase of Care,20-Jun-2013,2608159-2105692,"1,088.60",CROFT UNIT.
Adults Wellbeing and Health,Head of Adults,Third Party Payments,470101,Purchase of Care,20-Jun-2013,2608159-2105693,"1,738.00",CROFT UNIT.
Adults Wellbeing and Health,Head of Adults,Third Party Payments,470101,Purchase of Care,20-Jun-2013,2608159-2105694,"1,252.00",CROFT UNIT.
Adults Wellbeing and Health,Head of Adults,Third Party Payments,470101,Purchase of Care,20-Jun-2013,2608159-2105695,"1,738.00",CROFT UNIT.
Adults Wellbeing and Health,Head of Adults,Third Party Payments,472101,Purchase of Care,20-Jun-2013,2608164-1336418H,506.44,DALE CARE LTD.
Adults Wellbeing and Health,Head of Adults,Third Party Payments,472101,Purchase of Care,20-Jun-2013,2608164-1336421H,"1,108.99",DALE CARE LTD.
Adults Wellbeing and Health,Head of Adults,Third Party Payments,472101,Purchase of Care,20-Jun-2013,2608164-1336456H,"1,098.85",DALE CARE LTD.
Adults Wellbeing and Health,Head of Adults,Third Party Payments,472101,Purchase of Care,20-Jun-2013,2608164-1336487H,"1,286.44",DALE CARE LTD.
Adults Wellbeing and Health,Head of Adults,Third Party Payments,472101,Purchase of Care,20-Jun-2013,2608164-1336507H,"1,386.27",DALE CARE LTD.
Adults Wellbeing and Health,Head of Adults,Third Party Payments,472101,Purchase of Care,20-Jun-2013,2608164-1336508H,561.88,DALE CARE LTD.
Adults Wellbeing and Health,Head of Adults,Third Party Payments,472101,Purchase of Care,20-Jun-2013,2608164-1336509H,"1,344.66",DALE CARE LTD.
Adults Wellbeing and Health,Head of Adults,Third Party Payments,472101,Purchase of Care,20-Jun-2013,2608164-1336546H,632.12,DALE CARE LTD.
Adults Wellbeing and Health,Head of Adults,Third Party Payments,472101,Purchase of Care,20-Jun-2013,2608164-1336583H,"1,048.94",DALE CARE LTD.
Adults Wellbeing and Health,Head of Adults,Third Party Payments,472101,Purchase of Care,20-Jun-2013,2608164-1336602H,698.68,DALE CARE LTD.
Adults Wellbeing and Health,Head of Adults,Third Party Payments,472101,Purchase of Care,20-Jun-2013,2608164-1336624H,801.26,DALE CARE LTD.
Adults Wellbeing and Health,Head of Adults,Third Party Payments,472101,Purchase of Care,20-Jun-2013,2608164-1336654H,532.32,DALE CARE LTD.
Adults Wellbeing and Health,Head of Adults,Third Party Payments,472101,Purchase of Care,20-Jun-2013,2608164-1336660H,687.60,DALE CARE LTD.
Adults Wellbeing and Health,Head of Adults,Third Party Payments,472101,Purchase of Care,20-Jun-2013,2608164-1336687H,621.04,DALE CARE LTD.
Adults Wellbeing and Health,Head of Adults,Third Party Payments,472101,Purchase of Care,20-Jun-2013,2608164-1336699H,757.80,DALE CARE LTD.
Adults Wellbeing and Health,Head of Adults,Third Party Payments,472101,Purchase of Care,20-Jun-2013,2608164-1336710H,931.56,DALE CARE LTD.
Adults Wellbeing and Health,Head of Adults,Third Party Payments,472101,Purchase of Care,20-Jun-2013,2608164-1336732H,521.24,DALE CARE LTD.
Adults Wellbeing and Health,Head of Adults,Third Party Payments,472101,Purchase of Care,20-Jun-2013,2608164-1336789H,"1,395.00",DALE CARE LTD.
Adults Wellbeing and Health,Head of Adults,Third Party Payments,472101,Purchase of Care,20-Jun-2013,2608164-1336795H,"1,319.72",DALE CARE LTD.
Adults Wellbeing and Health,Head of Adults,Third Party Payments,472101,Purchase of Care,20-Jun-2013,2608164-1336820H,532.32,DALE CARE LTD.
Adults Wellbeing and Health,Head of Adults,Third Party Payments,472101,Purchase of Care,20-Jun-2013,2608164-1336839H,551.72,DALE CARE LTD.
Adults Wellbeing and Health,Head of Adults,Third Party Payments,472101,Purchase of Care,20-Jun-2013,2608164-1336842H,543.40,DALE CARE LTD.
Adults Wellbeing and Health,Head of Adults,Third Party Payments,472101,Purchase of Care,20-Jun-2013,2608164-1336858H,584.08,DALE CARE LTD.
Adults Wellbeing and Health,Head of Adults,Third Party Payments,472101,Purchase of Care,20-Jun-2013,2608164-1336863H,643.22,DALE CARE LTD.
Adults Wellbeing and Health,Head of Adults,Third Party Payments,472101,Purchase of Care,20-Jun-2013,2608164-1336890H,569.28,DALE CARE LTD.
Adults Wellbeing and Health,Head of Adults,Third Party Payments,472101,Purchase of Care,20-Jun-2013,2608164-1336893H,565.60,DALE CARE LTD.
Adults Wellbeing and Health,Head of Adults,Third Party Payments,472101,Purchase of Care,20-Jun-2013,2608164-1336894H,654.32,DALE CARE LTD.
Adults Wellbeing and Health,Head of Adults,Third Party Payments,472101,Purchase of Care,20-Jun-2013,2608164-1336898H,"1,242.08",DALE CARE LTD.
Adults Wellbeing and Health,Head of Adults,Third Party Payments,472101,Purchase of Care,20-Jun-2013,2608164-1336905H,646.00,DALE CARE LTD.
Adults Wellbeing and Health,Head of Adults,Third Party Payments,472101,Purchase of Care,20-Jun-2013,2608164-1336934H,561.88,DALE CARE LTD.
Adults Wellbeing and Health,Head of Adults,Third Party Payments,472101,Purchase of Care,20-Jun-2013,2608164-1336944H,"1,236.53",DALE CARE LTD.
Adults Wellbeing and Health,Head of Adults,Third Party Payments,472101,Purchase of Care,20-Jun-2013,2608164-1336963H,743.04,DALE CARE LTD.
Adults Wellbeing and Health,Head of Adults,Third Party Payments,472101,Purchase of Care,20-Jun-2013,2608164-1336964H,720.84,DALE CARE LTD.
Adults Wellbeing and Health,Head of Adults,Third Party Payments,472101,Purchase of Care,20-Jun-2013,2608164-1336972H,"1,818.76",DALE CARE LTD.
Adults Wellbeing and Health,Head of Adults,Third Party Payments,472101,Purchase of Care,20-Jun-2013,2608164-1336994H,787.40,DALE CARE LTD.
Adults Wellbeing and Health,Head of Adults,Third Party Payments,472101,Purchase of Care,20-Jun-2013,2608164-1337031H,598.88,DALE CARE LTD.
Adults Wellbeing and Health,Head of Adults,Third Party Payments,472101,Purchase of Care,20-Jun-2013,2608164-1337040H,505.04,DALE CARE LTD.
Adults Wellbeing and Health,Head of Adults,Third Party Payments,472101,Purchase of Care,20-Jun-2013,2608164-1337041H,505.04,DALE CARE LTD.
Adults Wellbeing and Health,Head of Adults,Third Party Payments,472101,Purchase of Care,20-Jun-2013,2608164-1337043H,709.76,DALE CARE LTD.
Adults Wellbeing and Health,Head of Adults,Third Party Payments,472101,Purchase of Care,20-Jun-2013,2608164-1337045H,517.52,DALE CARE LTD.
Adults Wellbeing and Health,Head of Adults,Third Party Payments,472101,Purchase of Care,20-Jun-2013,2608164-1337055H,554.52,DALE CARE LTD.
Adults Wellbeing and Health,Head of Adults,Third Party Payments,472101,Purchase of Care,20-Jun-2013,2608164-1337065H,621.04,DALE CARE LTD.
Adults Wellbeing and Health,Head of Adults,Third Party Payments,472101,Purchase of Care,20-Jun-2013,2608164-1337068H,"1,322.49",DALE CARE LTD.
Adults Wellbeing and Health,Head of Adults,Third Party Payments,472101,Purchase of Care,20-Jun-2013,2608164-1337071H,968.53,DALE CARE LTD.
Adults Wellbeing and Health,Head of Adults,Third Party Payments,472101,Purchase of Care,20-Jun-2013,2608164-1337086H,"1,258.73",DALE CARE LTD.
Adults Wellbeing and Health,Head of Adults,Third Party Payments,472101,Purchase of Care,20-Jun-2013,2608164-1337106H,"1,191.74",DALE CARE LTD.
Adults Wellbeing and Health,Head of Adults,Third Party Payments,472101,Purchase of Care,20-Jun-2013,2608164-1337800H,975.92,DALE CARE LTD.
Adults Wellbeing and Health,Head of Adults,Third Party Payments,472101,Purchase of Care,20-Jun-2013,2608164-1337841H,737.50,DALE CARE LTD.
Adults Wellbeing and Health,Head of Adults,Third Party Payments,472101,Purchase of Care,20-Jun-2013,2608164-1337858H,539.72,DALE CARE LTD.
Adults Wellbeing and Health,Head of Adults,Third Party Payments,472101,Purchase of Care,20-Jun-2013,2608164-1337940H,"1,596.96",DALE CARE LTD.
Adults Wellbeing and Health,Head of Adults,Third Party Payments,472101,Purchase of Care,20-Jun-2013,2608164-1337952H,532.32,DALE CARE LTD.
Adults Wellbeing and Health,Head of Adults,Third Party Payments,472101,Purchase of Care,20-Jun-2013,2608164-1337974H,743.04,DALE CARE LTD.
Adults Wellbeing and Health,Head of Adults,Third Party Payments,472101,Purchase of Care,20-Jun-2013,2608164-1337984H,543.40,DALE CARE LTD.
Adults Wellbeing and Health,Head of Adults,Third Party Payments,472101,Purchase of Care,20-Jun-2013,2608164-1338010H,"1,158.92",DALE CARE LTD.
Adults Wellbeing and Health,Head of Adults,Third Party Payments,472101,Purchase of Care,20-Jun-2013,2608164-1338058H,709.76,DALE CARE LTD.
Adults Wellbeing and Health,Head of Adults,Third Party Payments,472101,Purchase of Care,20-Jun-2013,2608164-1338063H,521.24,DALE CARE LTD.
